Workbook

Sheet Families (hidden)
E1: =AVERAGE(E3:E4991) -> 3.117633594 | F1: Office-Based Care | H1: Outpatient Pharmacy | J1: Allowed Cost of D&C Services
A2: Family ID | B2: Nbr in Family | C2: % of Pov Line | D2: Total Family Weight | E2: Prem Age Fx | F2: Visits | G2: Allowed Cost | H2: Scripts | I2: Allowed Cost | J2: OBO | K2: OBC | L2: OBN | M2: OBE | N2: OBA | O2: OBT | P2: OPF | Q2: OPD | R2: ERT | S2: IPT | T2: HHA | U2: HHN | V2: Sum of OBOTHV16 | W2: Sum of OBCHIR16 | X2: Sum of OBNURS16 | Y2: Sum of OBASST16 | Z2: Sum of OBTHER16 | AA2: Sum of OBOPTO16
A3: 700011A | B3: 1 | C3: 181.08 | D3: 8831.436799 | E3: 2.437 | F3: 1 | G3: 159 | H3: 3 | I3: 58 | J3: 134 | K3: 0 | L3: 0 | M3: 97 | N3: 0 | O3: 0 | P3: 117 | Q3: 0 | R3: 0 | S3: 0 | T3: 0 | U3: 0 | V3: 2 | W3: 0 | X3: 0 | Y3: 0 | Z3: 0 | AA3: 1
A4: 700041A | B4: 1 | C4: 634.31 | D4: 20963.77581 | E4: 1.278 | F4: 0 | G4: 0 | H4: 0 | I4: 0 | J4: 0 | K4: 0 | L4: 0 | M4: 0 | N4: 0 | O4: 0 | P4: 0 | Q4: 0 | R4: 0 | S4: 0 | T4: 0 | U4: 0 | V4: 0 | W4: 0 | X4: 0 | Y4: 0 | Z4: 0 | AA4: 0
A5: 700101A | B5: 4 | C5: 299.93 | D5: 38096.18253 | E5: 4.283 | F5: 1 | G5: 97 | H5: 1 | I5: 6 | J5: 0 | K5: 0 | L5: 0 | M5: 0 | N5: 0 | O5: 0 | P5: 0 | Q5: 0 | R5: 0 | S5: 0 | T5: 0 | U5: 0 | V5: 0 | W5: 0 | X5: 0 | Y5: 0 | Z5: 0 | AA5: 0
A6: 700121A | B6: 2 | C6: 217.77 | D6: 9212.482447 | E6: 3.905 | F6: 12 | G6: 1192 | H6: 26 | I6: 1309 | J6: 613 | K6: 0 | L6: 0 | M6: 0 | N6: 0 | O6: 613 | P6: 0 | Q6: 0 | R6: 0 | S6: 0 | T6: 0 | U6: 0 | V6: 7 | W6: 0 | X6: 0 | Y6: 0 | Z6: 7 | AA6: 0
A7: 700121C | B7: 1 | C7: 319.35 | D7: 15342.25832 | E7: 1 | F7: 0 | G7: 0 | H7: 0 | I7: 0 | J7: 0 | K7: 0 | L7: 0 | M7: 0 | N7: 0 | O7: 0 | P7: 0 | Q7: 0 | R7: 0 | S7: 0 | T7: 0 | U7: 0 | V7: 0 | W7: 0 | X7: 0 | Y7: 0 | Z7: 0 | AA7: 0
A8: 700131A | B8: 2 | C8: 424.52 | D8: 8142.211879 | E8: 3.929 | F8: 6 | G8: 3294 | H8: 14 | I8: 535 | J8: 1294 | K8: 0 | L8: 178 | M8: 0 | N8: 0 | O8: 0 | P8: 0 | Q8: 0 | R8: 0 | S8: 0 | T8: 0 | U8: 0 | V8: 6 | W8: 0 | X8: 2 | Y8: 0 | Z8: 0 | AA8: 0
A9: 700151A | B9: 2 | C9: 192.34 | D9: 29306.6588 | E9: 2.563 | F9: 2 | G9: 393 | H9: 3 | I9: 183 | J9: 758 | K9: 0 | L9: 0 | M9: 0 | N9: 0 | O9: 0 | P9: 0 | Q9: 0 | R9: 0 | S9: 0 | T9: 0 | U9: 50 | V9: 2 | W9: 0 | X9: 0 | Y9: 0 | Z9: 0 | AA9: 0
A10: 700161A | B10: 2 | C10: 243.92 | D10: 12655.35833 | E10: 1.963 | F10: 0 | G10: 0 | H10: 1 | I10: 203 | J10: 0 | K10: 0 | L10: 0 | M10: 0 | N10: 0 | O10: 0 | P10: 0 | Q10: 0 | R10: 7199 | S10: 0 | T10: 0 | U10: 0 | V10: 0 | W10: 0 | X10: 0 | Y10: 0 | Z10: 0 | AA10: 0
A11: 700161B | B11: 1 | C11: 458.11 | D11: 6213.363563 | E11: 1.214 | F11: 0 | G11: 0 | H11: 0 | I11: 0 | J11: 0 | K11: 0 | L11: 0 | M11: 0 | N11: 0 | O11: 0 | P11: 0 | Q11: 0 | R11: 0 | S11: 0 | T11: 0 | U11: 0 | V11: 0 | W11: 0 | X11: 0 | Y11: 0 | Z11: 0 | AA11: 0
A12: 700181A | B12: 1 | C12: 319.16 | D12: 0 | E12: 1 | F12: 0 | G12: 0 | H12: 0 | I12: 0 | J12: 0 | K12: 0 | L12: 0 | M12: 0 | N12: 0 | O12: 0 | P12: 0 | Q12: 0 | R12: 0 | S12: 0 | T12: 0 | U12: 0 | V12: 0 | W12: 0 | X12: 0 | Y12: 0 | Z12: 0 | AA12: 0
A13: 700281A | B13: 1 | C13: 878.43 | D13: 6527.028713 | E13: 1.635 | F13: 5 | G13: 1821 | H13: 2 | I13: 17 | J13: 2085 | K13: 1130 | L13: 0 | M13: 0 | N13: 0 | O13: 230 | P13: 0 | Q13: 0 | R13: 0 | S13: 0 | T13: 0 | U13: 0 | V13: 12 | W13: 5 | X13: 0 | Y13: 0 | Z13: 2 | AA13: 0
A14: 700301A | B14: 1 | C14: 224.25 | D14: 5027.789929 | E14: 1.004 | F14: 1 | G14: 71 | H14: 1 | I14: 690 | J14: 0 | K14: 0 | L14: 0 | M14: 0 | N14: 0 | O14: 0 | P14: 0 | Q14: 0 | R14: 190 | S14: 0 | T14: 0 | U14: 0 | V14: 0 | W14: 0 | X14: 0 | Y14: 0 | Z14: 0 | AA14: 0
A15: 700302B | B15: 1 | C15: 202.84 | D15: 6667.813293 | E15: 1 | F15: 29 | G15: 2806 | H15: 29 | I15: 3109 | J15: 1960 | K15: 0 | L15: 0 | M15: 0 | N15: 0 | O15: 0 | P15: 128 | Q15: 0 | R15: 0 | S15: 0 | T15: 0 | U15: 0 | V15: 23 | W15: 0 | X15: 0 | Y15: 0 | Z15: 0 | AA15: 0
A16: 700411A | B16: 5 | C16: 307.5 | D16: 100046.3177 | E16: 5.324 | F16: 1 | G16: 129 | H16: 18 | I16: 11754 | J16: 0 | K16: 0 | L16: 0 | M16: 0 | N16: 0 | O16: 0 | P16: 0 | Q16: 0 | R16: 0 | S16: 0 | T16: 0 | U16: 0 | V16: 0 | W16: 0 | X16: 0 | Y16: 0 | Z16: 0 | AA16: 0
A17: 700431A | B17: 2 | C17: 990.78 | D17: 49404.07071 | E17: 4.588 | F17: 3 | G17: 317 | H17: 29 | I17: 1975 | J17: 253 | K17: 0 | L17: 0 | M17: 0 | N17: 120 | O17: 0 | P17: 331 | Q17: 0 | R17: 0 | S17: 0 | T17: 0 | U17: 0 | V17: 2 | W17: 0 | X17: 0 | Y17: 1 | Z17: 0 | AA17: 0
A18: 700461A | B18: 1 | C18: 392.44 | D18: 18348.26787 | E18: 1 | F18: 6 | G18: 1361 | H18: 26 | I18: 1929 | J18: 983 | K18: 0 | L18: 0 | M18: 0 | N18: 0 | O18: 0 | P18: 0 | Q18: 0 | R18: 0 | S18: 0 | T18: 0 | U18: 0 | V18: 1 | W18: 0 | X18: 0 | Y18: 0 | Z18: 0 | AA18: 0
A19: 700541B | B19: 1 | C19: 144.16 | D19: 2645.511839 | E19: 2.04 | F19: 5 | G19: 239 | H19: 63 | I19: 6774 | J19: 0 | K19: 0 | L19: 0 | M19: 0 | N19: 0 | O19: 0 | P19: 0 | Q19: 0 | R19: 0 | S19: 0 | T19: 0 | U19: 0 | V19: 0 | W19: 0 | X19: 0 | Y19: 0 | Z19: 0 | AA19: 0
A20: 700581A | B20: 5 | C20: 269.3 | D20: 167098.5705 | E20: 5.405 | F20: 16 | G20: 4388 | H20: 37 | I20: 3970 | J20: 471 | K20: 0 | L20: 53 | M20: 0 | N20: 418 | O20: 0 | P20: 0 | Q20: 0 | R20: 1481 | S20: 0 | T20: 0 | U20: 0 | V20: 3 | W20: 0 | X20: 1 | Y20: 2 | Z20: 0 | AA20: 0
A21: 700601A | B21: 1 | C21: 120.13 | D21: 7117.751962 | E21: 2.437 | F21: 3 | G21: 240 | H21: 22 | I21: 1928 | J21: 49 | K21: 0 | L21: 49 | M21: 0 | N21: 0 | O21: 0 | P21: 151 | Q21: 0 | R21: 140 | S21: 0 | T21: 0 | U21: 0 | V21: 1 | W21: 0 | X21: 1 | Y21: 0 | Z21: 0 | AA21: 0
A22: 700621A | B22: 1 | C22: 271.53 | D22: 39812.67494 | E22: 2.548 | F22: 1 | G22: 93 | H22: 0 | I22: 0 | J22: 622 | K22: 0 | L22: 0 | M22: 622 | N22: 0 | O22: 0 | P22: 1446 | Q22: 0 | R22: 0 | S22: 0 | T22: 0 | U22: 0 | V22: 2 | W22: 0 | X22: 0 | Y22: 0 | Z22: 0 | AA22: 2
A23: 700641A | B23: 1 | C23: 104.12 | D23: 3361.443401 | E23: 2.437 | F23: 0 | G23: 0 | H23: 0 | I23: 0 | J23: 0 | K23: 0 | L23: 0 | M23: 0 | N23: 0 | O23: 0 | P23: 0 | Q23: 0 | R23: 0 | S23: 0 | T23: 0 | U23: 0 | V23: 0 | W23: 0 | X23: 0 | Y23: 0 | Z23: 0 | AA23: 0
A24: 700651A | B24: 1 | C24: 333.17 | D24: 10182.08832 | E24: 2.603 | F24: 11 | G24: 1390 | H24: 1 | I24: 98 | J24: 2070 | K24: 0 | L24: 0 | M24: 0 | N24: 0 | O24: 0 | P24: 0 | Q24: 0 | R24: 0 | S24: 0 | T24: 0 | U24: 0 | V24: 2 | W24: 0 | X24: 0 | Y24: 0 | Z24: 0 | AA24: 0
A25: 700681A | B25: 1 | C25: 625.1 | D25: 26119.63007 | E25: 1.444 | F25: 10 | G25: 10958 | H25: 5 | I25: 1191 | J25: 1869 | K25: 0 | L25: 0 | M25: 0 | N25: 255 | O25: 0 | P25: 0 | Q25: 0 | R25: 0 | S25: 0 | T25: 0 | U25: 50 | V25: 5 | W25: 0 | X25: 0 | Y25: 3 | Z25: 0 | AA25: 0
A26: 700711A | B26: 1 | C26: 668.75 | D26: 6771.579949 | E26: 1.5 | F26: 1 | G26: 194 | H26: 0 | I26: 0 | J26: 80 | K26: 0 | L26: 0 | M26: 80 | N26: 0 | O26: 0 | P26: 0 | Q26: 0 | R26: 0 | S26: 0 | T26: 0 | U26: 0 | V26: 1 | W26: 0 | X26: 0 | Y26: 0 | Z26: 0 | AA26: 1
A27: 700721A | B27: 1 | C27: 720.81 | D27: 11190.87571 | E27: 1.5 | F27: 3 | G27: 305 | H27: 5 | I27: 146 | J27: 36 | K27: 0 | L27: 0 | M27: 0 | N27: 0 | O27: 0 | P27: 0 | Q27: 0 | R27: 0 | S27: 0 | T27: 0 | U27: 0 | V27: 1 | W27: 0 | X27: 0 | Y27: 0 | Z27: 0 | AA27: 0
A28: 700731A | B28: 2 | C28: 189.9 | D28: 17346.38051 | E28: 4.833 | F28: 26 | G28: 12174 | H28: 213 | I28: 19727 | J28: 650 | K28: 0 | L28: 650 | M28: 0 | N28: 0 | O28: 0 | P28: 20896 | Q28: 347 | R28: 889 | S28: 0 | T28: 0 | U28: 0 | V28: 3 | W28: 0 | X28: 3 | Y28: 0 | Z28: 0 | AA28: 0
A29: 700771A | B29: 1 | C29: 640.72 | D29: 9973.459484 | E29: 1.024 | F29: 2 | G29: 342 | H29: 19 | I29: 1534 | J29: 369 | K29: 0 | L29: 369 | M29: 0 | N29: 0 | O29: 0 | P29: 0 | Q29: 0 | R29: 0 | S29: 0 | T29: 0 | U29: 0 | V29: 2 | W29: 0 | X29: 2 | Y29: 0 | Z29: 0 | AA29: 0
A30: 700841A | B30: 2 | C30: 148.1 | D30: 10351.45939 | E30: 2.111 | F30: 0 | G30: 0 | H30: 0 | I30: 0 | J30: 0 | K30: 0 | L30: 0 | M30: 0 | N30: 0 | O30: 0 | P30: 0 | Q30: 0 | R30: 0 | S30: 0 | T30: 0 | U30: 0 | V30: 0 | W30: 0 | X30: 0 | Y30: 0 | Z30: 0 | AA30: 0
A31: 700861A | B31: 2 | C31: 374.78 | D31: 16586.44272 | E31: 1.995 | F31: 0 | G31: 0 | H31: 6 | I31: 710 | J31: 141 | K31: 0 | L31: 0 | M31: 0 | N31: 141 | O31: 0 | P31: 1853 | Q31: 432 | R31: 0 | S31: 0 | T31: 0 | U31: 0 | V31: 1 | W31: 0 | X31: 0 | Y31: 1 | Z31: 0 | AA31: 0
A32: 700891A | B32: 5 | C32: 280.64 | D32: 20585.59256 | E32: 6.129 | F32: 0 | G32: 0 | H32: 0 | I32: 0 | J32: 0 | K32: 0 | L32: 0 | M32: 0 | N32: 0 | O32: 0 | P32: 0 | Q32: 0 | R32: 0 | S32: 0 | T32: 0 | U32: 0 | V32: 0 | W32: 0 | X32: 0 | Y32: 0 | Z32: 0 | AA32: 0
A33: 700901B | B33: 1 | C33: 322.76 | D33: 8786.752139 | E33: 1.214 | F33: 0 | G33: 0 | H33: 0 | I33: 0 | J33: 0 | K33: 0 | L33: 0 | M33: 0 | N33: 0 | O33: 0 | P33: 0 | Q33: 0 | R33: 0 | S33: 0 | T33: 0 | U33: 0 | V33: 0 | W33: 0 | X33: 0 | Y33: 0 | Z33: 0 | AA33: 0
A34: 700951A | B34: 4 | C34: 197.21 | D34: 40722.79927 | E34: 3.998 | F34: 0 | G34: 0 | H34: 0 | I34: 0 | J34: 0 | K34: 0 | L34: 0 | M34: 0 | N34: 0 | O34: 0 | P34: 0 | Q34: 0 | R34: 0 | S34: 0 | T34: 0 | U34: 0 | V34: 0 | W34: 0 | X34: 0 | Y34: 0 | Z34: 0 | AA34: 0
A35: 700961A | B35: 5 | C35: 198.36 | D35: 42377.85997 | E35: 6.159 | F35: 3 | G35: 297 | H35: 4 | I35: 37 | J35: 0 | K35: 0 | L35: 0 | M35: 0 | N35: 0 | O35: 0 | P35: 0 | Q35: 0 | R35: 1836 | S35: 0 | T35: 0 | U35: 0 | V35: 1 | W35: 0 | X35: 0 | Y35: 0 | Z35: 0 | AA35: 0
A36: 700971A | B36: 4 | C36: 324.58 | D36: 54637.34758 | E36: 3.974 | F36: 14 | G36: 1572 | H36: 30 | I36: 1249 | J36: 505 | K36: 0 | L36: 505 | M36: 0 | N36: 0 | O36: 0 | P36: 100 | Q36: 42 | R36: 67 | S36: 0 | T36: 0 | U36: 0 | V36: 2 | W36: 0 | X36: 2 | Y36: 0 | Z36: 0 | AA36: 0
A37: 700981A | B37: 1 | C37: 390.66 | D37: 7873.492228 | E37: 1.865 | F37: 0 | G37: 0 | H37: 0 | I37: 0 | J37: 0 | K37: 0 | L37: 0 | M37: 0 | N37: 0 | O37: 0 | P37: 0 | Q37: 0 | R37: 0 | S37: 0 | T37: 0 | U37: 0 | V37: 0 | W37: 0 | X37: 0 | Y37: 0 | Z37: 0 | AA37: 0
A38: 701021A | B38: 1 | C38: 216.24 | D38: 7330.018268 | E38: 1.262 | F38: 2 | G38: 85 | H38: 1 | I38: 88 | J38: 0 | K38: 0 | L38: 0 | M38: 0 | N38: 0 | O38: 0 | P38: 0 | Q38: 1204 | R38: 0 | S38: 0 | T38: 0 | U38: 0 | V38: 0 | W38: 0 | X38: 0 | Y38: 0 | Z38: 0 | AA38: 0
A39: 701041A | B39: 1 | C39: 199.03 | D39: 10982.95282 | E39: 1.397 | F39: 0 | G39: 0 | H39: 0 | I39: 0 | J39: 0 | K39: 0 | L39: 0 | M39: 0 | N39: 0 | O39: 0 | P39: 0 | Q39: 0 | R39: 0 | S39: 0 | T39: 0 | U39: 0 | V39: 0 | W39: 0 | X39: 0 | Y39: 0 | Z39: 0 | AA39: 0
A40: 701051A | B40: 2 | C40: 311.64 | D40: 25750.54484 | E40: 2.008 | F40: 1 | G40: 816 | H40: 1 | I40: 3 | J40: 0 | K40: 0 | L40: 0 | M40: 0 | N40: 0 | O40: 0 | P40: 0 | Q40: 0 | R40: 0 | S40: 0 | T40: 0 | U40: 0 | V40: 0 | W40: 0 | X40: 0 | Y40: 0 | Z40: 0 | AA40: 0
A41: 701072B | B41: 1 | C41: 240.27 | D41: 4416.565737 | E41: 1.087 | F41: 33 | G41: 8666 | H41: 0 | I41: 0 | J41: 155 | K41: 0 | L41: 155 | M41: 0 | N41: 0 | O41: 0 | P41: 0 | Q41: 0 | R41: 0 | S41: 0 | T41: 0 | U41: 0 | V41: 1 | W41: 0 | X41: 1 | Y41: 0 | Z41: 0 | AA41: 0
A42: 701072C | B42: 4 | C42: 258.35 | D42: 0 | E42: 4.492 | F42: 26 | G42: 8736 | H42: 0 | I42: 0 | J42: 166 | K42: 46 | L42: 120 | M42: 0 | N42: 0 | O42: 0 | P42: 0 | Q42: 0 | R42: 0 | S42: 0 | T42: 0 | U42: 0 | V42: 3 | W42: 2 | X42: 1 | Y42: 0 | Z42: 0 | AA42: 0
A43: 701101A | B43: 3 | C43: 399.42 | D43: 15307.51436 | E43: 3.15 | F43: 1 | G43: 142 | H43: 14 | I43: 459 | J43: 0 | K43: 0 | L43: 0 | M43: 0 | N43: 0 | O43: 0 | P43: 0 | Q43: 0 | R43: 0 | S43: 0 | T43: 0 | U43: 0 | V43: 0 | W43: 0 | X43: 0 | Y43: 0 | Z43: 0 | AA43: 0
A44: 701121A | B44: 1 | C44: 460.43 | D44: 12269.60738 | E44: 1.786 | F44: 0 | G44: 0 | H44: 0 | I44: 0 | J44: 0 | K44: 0 | L44: 0 | M44: 0 | N44: 0 | O44: 0 | P44: 0 | Q44: 0 | R44: 0 | S44: 0 | T44: 0 | U44: 0 | V44: 0 | W44: 0 | X44: 0 | Y44: 0 | Z44: 0 | AA44: 0
A45: 701131A | B45: 1 | C45: 105.72 | D45: 6424.297779 | E45: 1.325 | F45: 2 | G45: 207 | H45: 10 | I45: 365 | J45: 2831 | K45: 0 | L45: 0 | M45: 0 | N45: 0 | O45: 0 | P45: 0 | Q45: 0 | R45: 677 | S45: 0 | T45: 0 | U45: 0 | V45: 18 | W45: 0 | X45: 0 | Y45: 0 | Z45: 0 | AA45: 0
A46: 701141A | B46: 3 | C46: 230.45 | D46: 28577.93622 | E46: 5.405 | F46: 3 | G46: 453 | H46: 8 | I46: 33 | J46: 144 | K46: 0 | L46: 144 | M46: 0 | N46: 0 | O46: 0 | P46: 0 | Q46: 0 | R46: 1303 | S46: 458 | T46: 0 | U46: 0 | V46: 2 | W46: 0 | X46: 2 | Y46: 0 | Z46: 0 | AA46: 0
A47: 701161A | B47: 3 | C47: 672.95 | D47: 12509.89667 | E47: 3.122 | F47: 23 | G47: 15981 | H47: 6 | I47: 154 | J47: 0 | K47: 0 | L47: 0 | M47: 0 | N47: 0 | O47: 0 | P47: 0 | Q47: 0 | R47: 0 | S47: 1986 | T47: 0 | U47: 0 | V47: 0 | W47: 0 | X47: 0 | Y47: 0 | Z47: 0 | AA47: 0
A48: 701181A | B48: 4 | C48: 432.31 | D48: 49966.66362 | E48: 4.229 | F48: 30 | G48: 7519 | H48: 20 | I48: 354 | J48: 1697 | K48: 0 | L48: 0 | M48: 0 | N48: 0 | O48: 760 | P48: 0 | Q48: 0 | R48: 0 | S48: 0 | T48: 0 | U48: 0 | V48: 11 | W48: 0 | X48: 0 | Y48: 0 | Z48: 9 | AA48: 0
A49: 701191A | B49: 5 | C49: 474.81 | D49: 102857.4628 | E49: 4.724 | F49: 19 | G49: 2228 | H49: 3 | I49: 12 | J49: 0 | K49: 0 | L49: 0 | M49: 0 | N49: 0 | O49: 0 | P49: 0 | Q49: 0 | R49: 0 | S49: 22092 | T49: 0 | U49: 0 | V49: 0 | W49: 0 | X49: 0 | Y49: 0 | Z49: 0 | AA49: 0
A50: 701201A | B50: 1 | C50: 720.81 | D50: 10042.71106 | E50: 1.302 | F50: 0 | G50: 0 | H50: 0 | I50: 0 | J50: 0 | K50: 0 | L50: 0 | M50: 0 | N50: 0 | O50: 0 | P50: 0 | Q50: 0 | R50: 0 | S50: 0 | T50: 0 | U50: 0 | V50: 0 | W50: 0 | X50: 0 | Y50: 0 | Z50: 0 | AA50: 0
A51: 701271A | B51: 6 | C51: 230.52 | D51: 18883.19353 | E51: 5.871 | F51: 9 | G51: 996 | H51: 4 | I51: 50 | J51: 0 | K51: 0 | L51: 0 | M51: 0 | N51: 0 | O51: 0 | P51: 247 | Q51: 217 | R51: 0 | S51: 0 | T51: 0 | U51: 0 | V51: 0 | W51: 0 | X51: 0 | Y51: 0 | Z51: 0 | AA51: 0
A52: 701291A | B52: 1 | C52: 370.51 | D52: 4266.563416 | E52: 3 | F52: 0 | G52: 0 | H52: 12 | I52: 14601 | J52: 0 | K52: 0 | L52: 0 | M52: 0 | N52: 0 | O52: 0 | P52: 0 | Q52: 0 | R52: 107 | S52: 280 | T52: 0 | U52: 0 | V52: 0 | W52: 0 | X52: 0 | Y52: 0 | Z52: 0 | AA52: 0
A53: 701301A | B53: 1 | C53: 180.2 | D53: 10384.01332 | E53: 1.135 | F53: 9 | G53: 14219 | H53: 45 | I53: 9313 | J53: 54 | K53: 0 | L53: 39 | M53: 0 | N53: 0 | O53: 0 | P53: 0 | Q53: 0 | R53: 3437 | S53: 0 | T53: 0 | U53: 0 | V53: 3 | W53: 0 | X53: 1 | Y53: 0 | Z53: 0 | AA53: 0
A54: 701311A | B54: 2 | C54: 195.99 | D54: 6218.092013 | E54: 4.175 | F54: 20 | G54: 4491 | H54: 54 | I54: 1111 | J54: 179 | K54: 0 | L54: 0 | M54: 0 | N54: 0 | O54: 0 | P54: 0 | Q54: 0 | R54: 0 | S54: 0 | T54: 0 | U54: 0 | V54: 1 | W54: 0 | X54: 0 | Y54: 0 | Z54: 0 | AA54: 0
A55: 701351A | B55: 5 | C55: 139.65 | D55: 34306.25611 | E55: 4.661 | F55: 0 | G55: 0 | H55: 0 | I55: 0 | J55: 0 | K55: 0 | L55: 0 | M55: 0 | N55: 0 | O55: 0 | P55: 0 | Q55: 0 | R55: 0 | S55: 0 | T55: 0 | U55: 0 | V55: 0 | W55: 0 | X55: 0 | Y55: 0 | Z55: 0 | AA55: 0
A56: 701381A | B56: 4 | C56: 217.44 | D56: 22975.01013 | E56: 5.643 | F56: 7 | G56: 860 | H56: 10 | I56: 239 | J56: 0 | K56: 0 | L56: 0 | M56: 0 | N56: 0 | O56: 0 | P56: 0 | Q56: 0 | R56: 1202 | S56: 0 | T56: 0 | U56: 0 | V56: 0 | W56: 0 | X56: 0 | Y56: 0 | Z56: 0 | AA56: 0
A57: 701391A | B57: 2 | C57: 559.98 | D57: 28711.97935 | E57: 3.492 | F57: 12 | G57: 2957 | H57: 74 | I57: 4091 | J57: 116 | K57: 0 | L57: 116 | M57: 0 | N57: 0 | O57: 0 | P57: 228 | Q57: 13 | R57: 300 | S57: 0 | T57: 0 | U57: 0 | V57: 2 | W57: 0 | X57: 2 | Y57: 0 | Z57: 0 | AA57: 0
A58: 701401A | B58: 2 | C58: 334.68 | D58: 12765.68808 | E58: 3.817 | F58: 17 | G58: 3745 | H58: 231 | I58: 59177 | J58: 1093 | K58: 0 | L58: 258 | M58: 0 | N58: 0 | O58: 0 | P58: 1227 | Q58: 195 | R58: 27 | S58: 0 | T58: 0 | U58: 0 | V58: 11 | W58: 0 | X58: 2 | Y58: 0 | Z58: 0 | AA58: 0
A59: 701411A | B59: 7 | C59: 104.82 | D59: 11109.50969 | E59: 5.764 | F59: 5 | G59: 559 | H59: 16 | I59: 640 | J59: 0 | K59: 0 | L59: 0 | M59: 0 | N59: 0 | O59: 0 | P59: 0 | Q59: 0 | R59: 0 | S59: 21011 | T59: 0 | U59: 0 | V59: 0 | W59: 0 | X59: 0 | Y59: 0 | Z59: 0 | AA59: 0
A60: 701431A | B60: 1 | C60: 284.32 | D60: 10295.76401 | E60: 2.437 | F60: 0 | G60: 0 | H60: 42 | I60: 1397 | J60: 78 | K60: 0 | L60: 0 | M60: 0 | N60: 78 | O60: 0 | P60: 0 | Q60: 0 | R60: 0 | S60: 0 | T60: 0 | U60: 0 | V60: 1 | W60: 0 | X60: 0 | Y60: 1 | Z60: 0 | AA60: 0
A61: 701431B | B61: 1 | C61: 656.74 | D61: 15220.12229 | E61: 2.603 | F61: 0 | G61: 0 | H61: 0 | I61: 0 | J61: 134 | K61: 0 | L61: 0 | M61: 134 | N61: 0 | O61: 0 | P61: 0 | Q61: 0 | R61: 0 | S61: 0 | T61: 0 | U61: 0 | V61: 2 | W61: 0 | X61: 1 | Y61: 0 | Z61: 0 | AA61: 1
A62: 701461A | B62: 1 | C62: 154.65 | D62: 9870.879685 | E62: 1.004 | F62: 0 | G62: 0 | H62: 0 | I62: 0 | J62: 0 | K62: 0 | L62: 0 | M62: 0 | N62: 0 | O62: 0 | P62: 0 | Q62: 0 | R62: 0 | S62: 0 | T62: 0 | U62: 0 | V62: 0 | W62: 0 | X62: 0 | Y62: 0 | Z62: 0 | AA62: 0
A63: 701491A | B63: 1 | C63: 946.29 | D63: 16960.86316 | E63: 2.333 | F63: 10 | G63: 1126 | H63: 41 | I63: 422 | J63: 0 | K63: 0 | L63: 0 | M63: 0 | N63: 0 | O63: 0 | P63: 0 | Q63: 0 | R63: 0 | S63: 0 | T63: 0 | U63: 0 | V63: 0 | W63: 0 | X63: 0 | Y63: 0 | Z63: 0 | AA63: 0
A64: 701511A | B64: 4 | C64: 167.94 | D64: 90920.74814 | E64: 4.204 | F64: 4 | G64: 7216 | H64: 4 | I64: 788 | J64: 343 | K64: 0 | L64: 0 | M64: 0 | N64: 0 | O64: 0 | P64: 0 | Q64: 0 | R64: 2057 | S64: 0 | T64: 0 | U64: 0 | V64: 1 | W64: 0 | X64: 0 | Y64: 0 | Z64: 0 | AA64: 0
A65: 701521A | B65: 2 | C65: 594.43 | D65: 38671.84826 | E65: 2.067 | F65: 7 | G65: 1902 | H65: 8 | I65: 115 | J65: 657 | K65: 0 | L65: 0 | M65: 0 | N65: 0 | O65: 0 | P65: 0 | Q65: 0 | R65: 0 | S65: 0 | T65: 0 | U65: 0 | V65: 3 | W65: 0 | X65: 0 | Y65: 0 | Z65: 0 | AA65: 0
A66: 701561A | B66: 1 | C66: 1841.23 | D66: 14498.63858 | E66: 2.548 | F66: 2 | G66: 306 | H66: 14 | I66: 95 | J66: 450 | K66: 0 | L66: 0 | M66: 0 | N66: 0 | O66: 0 | P66: 0 | Q66: 0 | R66: 0 | S66: 0 | T66: 0 | U66: 0 | V66: 1 | W66: 0 | X66: 0 | Y66: 0 | Z66: 0 | AA66: 0
A67: 701581A | B67: 4 | C67: 369.78 | D67: 26428.11726 | E67: 4.228 | F67: 2 | G67: 832 | H67: 10 | I67: 79 | J67: 0 | K67: 0 | L67: 0 | M67: 0 | N67: 0 | O67: 0 | P67: 647 | Q67: 26 | R67: 0 | S67: 0 | T67: 0 | U67: 0 | V67: 0 | W67: 0 | X67: 0 | Y67: 0 | Z67: 0 | AA67: 0
A68: 701591A | B68: 3 | C68: 697.77 | D68: 58324.21296 | E68: 4.621 | F68: 1 | G68: 75 | H68: 14 | I68: 79992 | J68: 0 | K68: 0 | L68: 0 | M68: 0 | N68: 0 | O68: 0 | P68: 0 | Q68: 0 | R68: 745 | S68: 10613 | T68: 0 | U68: 0 | V68: 0 | W68: 0 | X68: 0 | Y68: 0 | Z68: 0 | AA68: 0
A69: 701601A | B69: 2 | C69: 248.88 | D69: 36136.93787 | E69: 4.365 | F69: 0 | G69: 0 | H69: 67 | I69: 657 | J69: 519 | K69: 0 | L69: 139 | M69: 0 | N69: 379 | O69: 0 | P69: 0 | Q69: 0 | R69: 0 | S69: 0 | T69: 0 | U69: 0 | V69: 3 | W69: 0 | X69: 1 | Y69: 2 | Z69: 0 | AA69: 0
A70: 701611A | B70: 4 | C70: 171.09 | D70: 26596.58217 | E70: 3.319 | F70: 9 | G70: 439 | H70: 1 | I70: 14 | J70: 0 | K70: 0 | L70: 0 | M70: 0 | N70: 0 | O70: 0 | P70: 0 | Q70: 0 | R70: 0 | S70: 0 | T70: 0 | U70: 0 | V70: 0 | W70: 0 | X70: 0 | Y70: 0 | Z70: 0 | AA70: 0
A71: 701621A | B71: 2 | C71: 549.45 | D71: 14958.56684 | E71: 2.551 | F71: 5 | G71: 2101 | H71: 7 | I71: 852 | J71: 181 | K71: 0 | L71: 181 | M71: 0 | N71: 0 | O71: 0 | P71: 0 | Q71: 0 | R71: 0 | S71: 0 | T71: 0 | U71: 0 | V71: 2 | W71: 0 | X71: 2 | Y71: 0 | Z71: 0 | AA71: 0
A72: 701651A | B72: 3 | C72: 1888.8 | D72: 36838.313 | E72: 4.757 | F72: 5 | G72: 862 | H72: 13 | I72: 692 | J72: 862 | K72: 0 | L72: 0 | M72: 482 | N72: 0 | O72: 0 | P72: 0 | Q72: 0 | R72: 0 | S72: 0 | T72: 0 | U72: 0 | V72: 5 | W72: 0 | X72: 0 | Y72: 0 | Z72: 0 | AA72: 2
A73: 701661A | B73: 1 | C73: 1242.3 | D73: 18212.16711 | E73: 2.548 | F73: 11 | G73: 1696 | H73: 23 | I73: 6950 | J73: 282 | K73: 0 | L73: 0 | M73: 0 | N73: 238 | O73: 0 | P73: 0 | Q73: 0 | R73: 0 | S73: 0 | T73: 0 | U73: 0 | V73: 3 | W73: 0 | X73: 0 | Y73: 1 | Z73: 0 | AA73: 0
A74: 701701A | B74: 2 | C74: 373.37 | D74: 19496.83338 | E74: 2.183 | F74: 8 | G74: 1455 | H74: 0 | I74: 0 | J74: 0 | K74: 0 | L74: 0 | M74: 0 | N74: 0 | O74: 0 | P74: 0 | Q74: 0 | R74: 0 | S74: 0 | T74: 0 | U74: 0 | V74: 0 | W74: 0 | X74: 0 | Y74: 0 | Z74: 0 | AA74: 0
A75: 701711A | B75: 1 | C75: 165.04 | D75: 11251.46621 | E75: 1.563 | F75: 0 | G75: 0 | H75: 3 | I75: 88 | J75: 0 | K75: 0 | L75: 0 | M75: 0 | N75: 0 | O75: 0 | P75: 0 | Q75: 0 | R75: 0 | S75: 0 | T75: 0 | U75: 0 | V75: 0 | W75: 0 | X75: 0 | Y75: 0 | Z75: 0 | AA75: 0
A76: 701721A | B76: 5 | C76: 842.32 | D76: 16182.41881 | E76: 6.164 | F76: 0 | G76: 0 | H76: 1 | I76: 1 | J76: 0 | K76: 0 | L76: 0 | M76: 0 | N76: 0 | O76: 0 | P76: 0 | Q76: 0 | R76: 0 | S76: 0 | T76: 0 | U76: 0 | V76: 0 | W76: 0 | X76: 0 | Y76: 0 | Z76: 0 | AA76: 0
A77: 701731A | B77: 3 | C77: 967.3 | D77: 96057.49566 | E77: 4.842 | F77: 2 | G77: 513 | H77: 20 | I77: 847 | J77: 0 | K77: 0 | L77: 0 | M77: 0 | N77: 0 | O77: 0 | P77: 0 | Q77: 0 | R77: 0 | S77: 0 | T77: 0 | U77: 0 | V77: 0 | W77: 0 | X77: 0 | Y77: 0 | Z77: 0 | AA77: 0
A78: 701751A | B78: 3 | C78: 251.06 | D78: 76212.2822 | E78: 2.789 | F78: 4 | G78: 361 | H78: 3 | I78: 1340 | J78: 0 | K78: 0 | L78: 0 | M78: 0 | N78: 0 | O78: 0 | P78: 0 | Q78: 0 | R78: 0 | S78: 0 | T78: 0 | U78: 0 | V78: 0 | W78: 0 | X78: 0 | Y78: 0 | Z78: 0 | AA78: 0
A79: 701781A | B79: 2 | C79: 207.51 | D79: 45176.25774 | E79: 4.413 | F79: 9 | G79: 8987 | H79: 24 | I79: 636 | J79: 40621 | K79: 0 | L79: 39802 | M79: 0 | N79: 0 | O79: 0 | P79: 10383 | Q79: 0 | R79: 0 | S79: 44092 | T79: 0 | U79: 0 | V79: 24 | W79: 0 | X79: 22 | Y79: 0 | Z79: 0 | AA79: 0
A80: 701801A | B80: 1 | C80: 281.9 | D80: 4328.453725 | E80: 1.952 | F80: 17 | G80: 3935 | H80: 72 | I80: 1355 | J80: 0 | K80: 0 | L80: 0 | M80: 0 | N80: 0 | O80: 0 | P80: 0 | Q80: 0 | R80: 0 | S80: 0 | T80: 5706 | U80: 0 | V80: 0 | W80: 0 | X80: 0 | Y80: 0 | Z80: 0 | AA80: 0
A81: 701821A | B81: 2 | C81: 791.44 | D81: 13644.49487 | E81: 2.73 | F81: 20 | G81: 3310 | H81: 6 | I81: 231 | J81: 0 | K81: 0 | L81: 0 | M81: 0 | N81: 0 | O81: 0 | P81: 0 | Q81: 0 | R81: 0 | S81: 0 | T81: 0 | U81: 0 | V81: 0 | W81: 0 | X81: 0 | Y81: 0 | Z81: 0 | AA81: 0
A82: 701831A | B82: 2 | C82: 1504.56 | D82: 13900.13686 | E82: 2.396 | F82: 23 | G82: 11574 | H82: 15 | I82: 7821 | J82: 13294 | K82: 0 | L82: 0 | M82: 0 | N82: 0 | O82: 0 | P82: 0 | Q82: 0 | R82: 0 | S82: 0 | T82: 0 | U82: 0 | V82: 16 | W82: 0 | X82: 0 | Y82: 0 | Z82: 0 | AA82: 0
A83: 701841A | B83: 1 | C83: 317.45 | D83: 5739.740859 | E83: 1.004 | F83: 0 | G83: 0 | H83: 0 | I83: 0 | J83: 124 | K83: 124 | L83: 0 | M83: 0 | N83: 0 | O83: 0 | P83: 0 | Q83: 0 | R83: 171 | S83: 0 | T83: 0 | U83: 0 | V83: 4 | W83: 4 | X83: 0 | Y83: 0 | Z83: 0 | AA83: 0
A84: 701891A | B84: 1 | C84: 137.43 | D84: 6173.561404 | E84: 2.952 | F84: 8 | G84: 1539 | H84: 16 | I84: 467 | J84: 56 | K84: 0 | L84: 0 | M84: 0 | N84: 0 | O84: 0 | P84: 1379 | Q84: 0 | R84: 0 | S84: 0 | T84: 0 | U84: 0 | V84: 1 | W84: 0 | X84: 0 | Y84: 0 | Z84: 0 | AA84: 0
A85: 701931A | B85: 1 | C85: 126.77 | D85: 13579.26993 | E85: 2.873 | F85: 6 | G85: 314 | H85: 66 | I85: 815 | J85: 20 | K85: 0 | L85: 3 | M85: 0 | N85: 0 | O85: 0 | P85: 0 | Q85: 0 | R85: 0 | S85: 0 | T85: 135 | U85: 0 | V85: 2 | W85: 0 | X85: 1 | Y85: 0 | Z85: 0 | AA85: 0
A86: 701941A | B86: 1 | C86: 304.34 | D86: 12890.92135 | E86: 1.325 | F86: 1 | G86: 72 | H86: 4 | I86: 40 | J86: 20 | K86: 0 | L86: 0 | M86: 0 | N86: 0 | O86: 0 | P86: 0 | Q86: 0 | R86: 0 | S86: 0 | T86: 0 | U86: 0 | V86: 1 | W86: 0 | X86: 0 | Y86: 0 | Z86: 0 | AA86: 0
A87: 701941B | B87: 3 | C87: 163.27 | D87: 42358.51629 | E87: 3.328 | F87: 2 | G87: 96 | H87: 9 | I87: 111 | J87: 0 | K87: 0 | L87: 0 | M87: 0 | N87: 0 | O87: 0 | P87: 0 | Q87: 0 | R87: 0 | S87: 0 | T87: 0 | U87: 0 | V87: 0 | W87: 0 | X87: 0 | Y87: 0 | Z87: 0 | AA87: 0
A88: 701952B | B88: 1 | C88: 185.24 | D88: 5126.009022 | E88: 2.437 | F88: 0 | G88: 0 | H88: 0 | I88: 0 | J88: 0 | K88: 0 | L88: 0 | M88: 0 | N88: 0 | O88: 0 | P88: 0 | Q88: 0 | R88: 0 | S88: 0 | T88: 0 | U88: 0 | V88: 0 | W88: 0 | X88: 0 | Y88: 0 | Z88: 0 | AA88: 0
A89: 701971A | B89: 4 | C89: 169.78 | D89: 13504.73999 | E89: 4.682 | F89: 6 | G89: 442 | H89: 0 | I89: 0 | J89: 838 | K89: 0 | L89: 0 | M89: 0 | N89: 0 | O89: 0 | P89: 0 | Q89: 0 | R89: 0 | S89: 0 | T89: 0 | U89: 0 | V89: 1 | W89: 0 | X89: 0 | Y89: 0 | Z89: 0 | AA89: 0
A90: 702011A | B90: 1 | C90: 109.83 | D90: 10507.08425 | E90: 2.873 | F90: 14 | G90: 1709 | H90: 45 | I90: 2966 | J90: 742 | K90: 0 | L90: 0 | M90: 0 | N90: 0 | O90: 0 | P90: 381 | Q90: 0 | R90: 0 | S90: 0 | T90: 0 | U90: 0 | V90: 1 | W90: 0 | X90: 0 | Y90: 0 | Z90: 0 | AA90: 0
A91: 702021A | B91: 2 | C91: 311.1 | D91: 67359.14411 | E91: 2.643 | F91: 0 | G91: 0 | H91: 0 | I91: 0 | J91: 0 | K91: 0 | L91: 0 | M91: 0 | N91: 0 | O91: 0 | P91: 0 | Q91: 0 | R91: 0 | S91: 0 | T91: 0 | U91: 0 | V91: 0 | W91: 0 | X91: 0 | Y91: 0 | Z91: 0 | AA91: 0
A92: 702031A | B92: 4 | C92: 246.58 | D92: 9331.785972 | E92: 5.227 | F92: 43 | G92: 9480 | H92: 74 | I92: 1910 | J92: 31 | K92: 0 | L92: 0 | M92: 0 | N92: 0 | O92: 0 | P92: 53 | Q92: 0 | R92: 0 | S92: 0 | T92: 0 | U92: 0 | V92: 1 | W92: 0 | X92: 0 | Y92: 0 | Z92: 0 | AA92: 0
A93: 702041A | B93: 5 | C93: 303.74 | D93: 91006.94041 | E93: 4.823 | F93: 7 | G93: 1074 | H93: 12 | I93: 173 | J93: 0 | K93: 0 | L93: 0 | M93: 0 | N93: 0 | O93: 0 | P93: 116 | Q93: 0 | R93: 9344 | S93: 0 | T93: 0 | U93: 0 | V93: 0 | W93: 0 | X93: 0 | Y93: 0 | Z93: 0 | AA93: 0
A94: 702091A | B94: 1 | C94: 166.59 | D94: 3637.067957 | E94: 2.952 | F94: 0 | G94: 0 | H94: 0 | I94: 0 | J94: 0 | K94: 0 | L94: 0 | M94: 0 | N94: 0 | O94: 0 | P94: 985 | Q94: 0 | R94: 0 | S94: 0 | T94: 0 | U94: 0 | V94: 0 | W94: 0 | X94: 0 | Y94: 0 | Z94: 0 | AA94: 0
A95: 702101A | B95: 3 | C95: 956 | D95: 35744.72607 | E95: 4.511 | F95: 4 | G95: 727 | H95: 43 | I95: 12148 | J95: 0 | K95: 0 | L95: 0 | M95: 0 | N95: 0 | O95: 0 | P95: 51 | Q95: 0 | R95: 0 | S95: 0 | T95: 0 | U95: 0 | V95: 0 | W95: 0 | X95: 0 | Y95: 0 | Z95: 0 | AA95: 0
A96: 702111B | B96: 1 | C96: 233.22 | D96: 6726.196784 | E96: 1.397 | F96: 0 | G96: 0 | H96: 0 | I96: 0 | J96: 0 | K96: 0 | L96: 0 | M96: 0 | N96: 0 | O96: 0 | P96: 0 | Q96: 0 | R96: 0 | S96: 0 | T96: 0 | U96: 0 | V96: 0 | W96: 0 | X96: 0 | Y96: 0 | Z96: 0 | AA96: 0
A97: 702121A | B97: 1 | C97: 1020.52 | D97: 19387.60401 | E97: 2.23 | F97: 1 | G97: 196 | H97: 3 | I97: 71 | J97: 388 | K97: 0 | L97: 0 | M97: 125 | N97: 0 | O97: 0 | P97: 0 | Q97: 0 | R97: 0 | S97: 0 | T97: 0 | U97: 0 | V97: 3 | W97: 0 | X97: 0 | Y97: 0 | Z97: 0 | AA97: 1
A98: 702131A | B98: 1 | C98: 493.3 | D98: 9599.678215 | E98: 2.437 | F98: 5 | G98: 1465 | H98: 16 | I98: 7020 | J98: 9 | K98: 0 | L98: 0 | M98: 0 | N98: 0 | O98: 0 | P98: 0 | Q98: 0 | R98: 0 | S98: 0 | T98: 0 | U98: 0 | V98: 1 | W98: 0 | X98: 0 | Y98: 0 | Z98: 0 | AA98: 0
A99: 702141A | B99: 3 | C99: 585.92 | D99: 43085.06633 | E99: 4.781 | F99: 4 | G99: 611 | H99: 6 | I99: 59 | J99: 334 | K99: 132 | L99: 0 | M99: 0 | N99: 0 | O99: 0 | P99: 6559 | Q99: 4022 | R99: 0 | S99: 0 | T99: 0 | U99: 0 | V99: 4 | W99: 3 | X99: 0 | Y99: 0 | Z99: 0 | AA99: 0
A100: 702151A | B100: 4 | C100: 1005.06 | D100: 52713.24122 | E100: 4.284 | F100: 13 | G100: 6413 | H100: 31 | I100: 2025 | J100: 0 | K100: 0 | L100: 0 | M100: 0 | N100: 0 | O100: 0 | P100: 0 | Q100: 0 | R100: 1494 | S100: 0 | T100: 0 | U100: 0 | V100: 0 | W100: 0 | X100: 0 | Y100: 0 | Z100: 0 | AA100: 0
A101: 702161A | B101: 1 | C101: 466.92 | D101: 19719.64136 | E101: 1.087 | F101: 0 | G101: 0 | H101: 0 | I101: 0 | J101: 493 | K101: 0 | L101: 0 | M101: 139 | N101: 0 | O101: 0 | P101: 0 | Q101: 0 | R101: 0 | S101: 0 | T101: 0 | U101: 0 | V101: 7 | W101: 0 | X101: 0 | Y101: 0 | Z101: 0 | AA101: 1
A102: 702201A | B102: 1 | C102: 429.57 | D102: 13621.74346 | E102: 1.119 | F102: 0 | G102: 0 | H102: 24 | I102: 1245 | J102: 616 | K102: 0 | L102: 299 | M102: 0 | N102: 0 | O102: 130 | P102: 0 | Q102: 0 | R102: 0 | S102: 0 | T102: 0 | U102: 0 | V102: 22 | W102: 0 | X102: 20 | Y102: 0 | Z102: 1 | AA102: 0
A103: 702211A | B103: 6 | C103: 216.29 | D103: 216491.0027 | E103: 7.93 | F103: 12 | G103: 874 | H103: 26 | I103: 425 | J103: 253 | K103: 0 | L103: 0 | M103: 0 | N103: 0 | O103: 0 | P103: 28 | Q103: 114 | R103: 0 | S103: 0 | T103: 0 | U103: 0 | V103: 1 | W103: 0 | X103: 0 | Y103: 0 | Z103: 0 | AA103: 0
A104: 702261A | B104: 6 | C104: 245.95 | D104: 27664.10491 | E104: 7.411 | F104: 4 | G104: 318 | H104: 35 | I104: 230 | J104: 1824 | K104: 0 | L104: 0 | M104: 0 | N104: 0 | O104: 0 | P104: 0 | Q104: 0 | R104: 0 | S104: 22641 | T104: 0 | U104: 0 | V104: 41 | W104: 0 | X104: 0 | Y104: 0 | Z104: 0 | AA104: 0
A105: 702401A | B105: 1 | C105: 416 | D105: 21253.71875 | E105: 2.714 | F105: 9 | G105: 1308 | H105: 10 | I105: 372 | J105: 5381 | K105: 2642 | L105: 0 | M105: 0 | N105: 94 | O105: 0 | P105: 0 | Q105: 0 | R105: 0 | S105: 0 | T105: 0 | U105: 0 | V105: 56 | W105: 51 | X105: 0 | Y105: 1 | Z105: 0 | AA105: 0
A106: 702421A | B106: 3 | C106: 465.89 | D106: 128136.1561 | E106: 3.146 | F106: 3 | G106: 299 | H106: 0 | I106: 0 | J106: 0 | K106: 0 | L106: 0 | M106: 0 | N106: 0 | O106: 0 | P106: 134 | Q106: 0 | R106: 0 | S106: 0 | T106: 0 | U106: 0 | V106: 1 | W106: 0 | X106: 0 | Y106: 0 | Z106: 0 | AA106: 0
A107: 702451A | B107: 1 | C107: 236.38 | D107: 8251.899815 | E107: 1 | F107: 2 | G107: 8294 | H107: 0 | I107: 0 | J107: 0 | K107: 0 | L107: 0 | M107: 0 | N107: 0 | O107: 0 | P107: 0 | Q107: 0 | R107: 0 | S107: 0 | T107: 0 | U107: 0 | V107: 0 | W107: 0 | X107: 0 | Y107: 0 | Z107: 0 | AA107: 0
A108: 702471A | B108: 2 | C108: 230.21 | D108: 11190.9731 | E108: 3.048 | F108: 0 | G108: 0 | H108: 0 | I108: 0 | J108: 0 | K108: 0 | L108: 0 | M108: 0 | N108: 0 | O108: 0 | P108: 0 | Q108: 0 | R108: 0 | S108: 0 | T108: 0 | U108: 0 | V108: 0 | W108: 0 | X108: 0 | Y108: 0 | Z108: 0 | AA108: 0
A109: 702481A | B109: 2 | C109: 1225.95 | D109: 23814.92639 | E109: 5.476 | F109: 7 | G109: 2973 | H109: 19 | I109: 5221 | J109: 569 | K109: 0 | L109: 0 | M109: 0 | N109: 0 | O109: 0 | P109: 1680 | Q109: 418 | R109: 0 | S109: 0 | T109: 0 | U109: 0 | V109: 4 | W109: 0 | X109: 0 | Y109: 0 | Z109: 0 | AA109: 0
A110: 702521A | B110: 1 | C110: 192.22 | D110: 7009.425445 | E110: 1.159 | F110: 0 | G110: 0 | H110: 0 | I110: 0 | J110: 221 | K110: 0 | L110: 221 | M110: 0 | N110: 0 | O110: 0 | P110: 0 | Q110: 0 | R110: 0 | S110: 0 | T110: 0 | U110: 0 | V110: 1 | W110: 0 | X110: 1 | Y110: 0 | Z110: 0 | AA110: 0
A111: 702521B | B111: 2 | C111: 169.26 | D111: 13739.44647 | E111: 1.789 | F111: 2 | G111: 57 | H111: 2 | I111: 72 | J111: 0 | K111: 0 | L111: 0 | M111: 0 | N111: 0 | O111: 0 | P111: 404 | Q111: 38 | R111: 442 | S111: 0 | T111: 0 | U111: 0 | V111: 0 | W111: 0 | X111: 0 | Y111: 0 | Z111: 0 | AA111: 0
A112: 702531A | B112: 6 | C112: 120.91 | D112: 16822.08429 | E112: 4.983 | F112: 3 | G112: 108 | H112: 30 | I112: 3224 | J112: 0 | K112: 0 | L112: 0 | M112: 0 | N112: 0 | O112: 0 | P112: 0 | Q112: 0 | R112: 0 | S112: 0 | T112: 0 | U112: 0 | V112: 0 | W112: 0 | X112: 0 | Y112: 0 | Z112: 0 | AA112: 0
A113: 702551A | B113: 3 | C113: 194.57 | D113: 22383.95362 | E113: 2.792 | F113: 7 | G113: 574 | H113: 62 | I113: 2992 | J113: 3436 | K113: 0 | L113: 100 | M113: 0 | N113: 0 | O113: 0 | P113: 0 | Q113: 0 | R113: 0 | S113: 0 | T113: 0 | U113: 0 | V113: 35 | W113: 0 | X113: 2 | Y113: 0 | Z113: 0 | AA113: 0
A114: 702561B | B114: 1 | C114: 152.08 | D114: 8849.189187 | E114: 2.437 | F114: 4 | G114: 669 | H114: 91 | I114: 491 | J114: 0 | K114: 0 | L114: 0 | M114: 0 | N114: 0 | O114: 0 | P114: 140 | Q114: 23 | R114: 118 | S114: 0 | T114: 0 | U114: 0 | V114: 0 | W114: 0 | X114: 0 | Y114: 0 | Z114: 0 | AA114: 0
A115: 702581A | B115: 2 | C115: 362.69 | D115: 18017.42713 | E115: 3.166 | F115: 7 | G115: 2366 | H115: 8 | I115: 210 | J115: 0 | K115: 0 | L115: 0 | M115: 0 | N115: 0 | O115: 0 | P115: 0 | Q115: 0 | R115: 0 | S115: 0 | T115: 0 | U115: 0 | V115: 0 | W115: 0 | X115: 0 | Y115: 0 | Z115: 0 | AA115: 0
A116: 702581B | B116: 1 | C116: 252.28 | D116: 6634.762568 | E116: 2.81 | F116: 0 | G116: 0 | H116: 0 | I116: 0 | J116: 0 | K116: 0 | L116: 0 | M116: 0 | N116: 0 | O116: 0 | P116: 0 | Q116: 0 | R116: 0 | S116: 0 | T116: 0 | U116: 0 | V116: 0 | W116: 0 | X116: 0 | Y116: 0 | Z116: 0 | AA116: 0
A117: 702591A | B117: 4 | C117: 497.19 | D117: 31319.42586 | E117: 5.656 | F117: 11 | G117: 2380 | H117: 15 | I117: 627 | J117: 184 | K117: 0 | L117: 0 | M117: 184 | N117: 0 | O117: 0 | P117: 0 | Q117: 0 | R117: 0 | S117: 0 | T117: 0 | U117: 0 | V117: 1 | W117: 0 | X117: 0 | Y117: 0 | Z117: 0 | AA117: 1
A118: 702601A | B118: 1 | C118: 269.93 | D118: 4050.566284 | E118: 1.135 | F118: 0 | G118: 0 | H118: 0 | I118: 0 | J118: 0 | K118: 0 | L118: 0 | M118: 0 | N118: 0 | O118: 0 | P118: 0 | Q118: 0 | R118: 0 | S118: 0 | T118: 0 | U118: 0 | V118: 0 | W118: 0 | X118: 0 | Y118: 0 | Z118: 0 | AA118: 0
A119: 702601B | B119: 1 | C119: 192.22 | D119: 4896.840056 | E119: 1.214 | F119: 0 | G119: 0 | H119: 0 | I119: 0 | J119: 0 | K119: 0 | L119: 0 | M119: 0 | N119: 0 | O119: 0 | P119: 0 | Q119: 0 | R119: 0 | S119: 0 | T119: 0 | U119: 0 | V119: 0 | W119: 0 | X119: 0 | Y119: 0 | Z119: 0 | AA119: 0
A120: 702611A | B120: 5 | C120: 165.7 | D120: 22341.15511 | E120: 5.034 | F120: 8 | G120: 944 | H120: 31 | I120: 1598 | J120: 396 | K120: 0 | L120: 0 | M120: 0 | N120: 0 | O120: 0 | P120: 9501 | Q120: 707 | R120: 5051 | S120: 1484 | T120: 0 | U120: 0 | V120: 4 | W120: 0 | X120: 0 | Y120: 0 | Z120: 0 | AA120: 0
A121: 702621A | B121: 1 | C121: 648.73 | D121: 7353.974054 | E121: 1.238 | F121: 2 | G121: 265 | H121: 7 | I121: 53 | J121: 46 | K121: 0 | L121: 0 | M121: 46 | N121: 0 | O121: 0 | P121: 0 | Q121: 0 | R121: 544 | S121: 0 | T121: 0 | U121: 0 | V121: 1 | W121: 0 | X121: 0 | Y121: 0 | Z121: 0 | AA121: 1
A122: 702641A | B122: 2 | C122: 223.36 | D122: 19861.48919 | E122: 2.367 | F122: 4 | G122: 999 | H122: 31 | I122: 2952 | J122: 727 | K122: 0 | L122: 61 | M122: 0 | N122: 0 | O122: 0 | P122: 0 | Q122: 0 | R122: 231 | S122: 3928 | T122: 0 | U122: 0 | V122: 5 | W122: 0 | X122: 2 | Y122: 0 | Z122: 0 | AA122: 0
A123: 702651A | B123: 1 | C123: 307.54 | D123: 14280.40786 | E123: 2.952 | F123: 7 | G123: 655 | H123: 4 | I123: 56 | J123: 503 | K123: 350 | L123: 0 | M123: 0 | N123: 0 | O123: 153 | P123: 350 | Q123: 0 | R123: 0 | S123: 39207 | T123: 0 | U123: 0 | V123: 8 | W123: 5 | X123: 0 | Y123: 0 | Z123: 3 | AA123: 0
A124: 702671A | B124: 4 | C124: 104.93 | D124: 16525.45719 | E124: 4.248 | F124: 2 | G124: 77 | H124: 4 | I124: 27 | J124: 0 | K124: 0 | L124: 0 | M124: 0 | N124: 0 | O124: 0 | P124: 0 | Q124: 0 | R124: 0 | S124: 0 | T124: 0 | U124: 0 | V124: 0 | W124: 0 | X124: 0 | Y124: 0 | Z124: 0 | AA124: 0
A125: 702701A | B125: 1 | C125: 120.13 | D125: 8021.41804 | E125: 2.04 | F125: 0 | G125: 0 | H125: 0 | I125: 0 | J125: 0 | K125: 0 | L125: 0 | M125: 0 | N125: 0 | O125: 0 | P125: 0 | Q125: 0 | R125: 0 | S125: 0 | T125: 0 | U125: 0 | V125: 0 | W125: 0 | X125: 0 | Y125: 0 | Z125: 0 | AA125: 0
A126: 702741A | B126: 2 | C126: 252.07 | D126: 40754.48847 | E126: 1.884 | F126: 19 | G126: 2357 | H126: 26 | I126: 3174 | J126: 8006 | K126: 0 | L126: 221 | M126: 0 | N126: 0 | O126: 7785 | P126: 0 | Q126: 0 | R126: 725 | S126: 0 | T126: 3377 | U126: 0 | V126: 28 | W126: 0 | X126: 1 | Y126: 0 | Z126: 27 | AA126: 0
A127: 702741B | B127: 1 | C127: 204.07 | D127: 12630.00169 | E127: 1.159 | F127: 25 | G127: 1745 | H127: 6 | I127: 779 | J127: 0 | K127: 0 | L127: 0 | M127: 0 | N127: 0 | O127: 0 | P127: 0 | Q127: 0 | R127: 0 | S127: 0 | T127: 0 | U127: 0 | V127: 0 | W127: 0 | X127: 0 | Y127: 0 | Z127: 0 | AA127: 0
A128: 702761A | B128: 2 | C128: 671.98 | D128: 31300.53034 | E128: 4.874 | F128: 2 | G128: 152 | H128: 41 | I128: 2944 | J128: 0 | K128: 0 | L128: 0 | M128: 0 | N128: 0 | O128: 0 | P128: 0 | Q128: 0 | R128: 0 | S128: 0 | T128: 0 | U128: 0 | V128: 0 | W128: 0 | X128: 0 | Y128: 0 | Z128: 0 | AA128: 0
A129: 702791A | B129: 1 | C129: 345.19 | D129: 16633.916 | E129: 2.23 | F129: 3 | G129: 412 | H129: 5 | I129: 678 | J129: 160 | K129: 0 | L129: 115 | M129: 45 | N129: 0 | O129: 0 | P129: 0 | Q129: 0 | R129: 0 | S129: 0 | T129: 0 | U129: 0 | V129: 2 | W129: 0 | X129: 1 | Y129: 0 | Z129: 0 | AA129: 1
A130: 702811A | B130: 3 | C130: 281.16 | D130: 9274.13604 | E130: 5.365 | F130: 0 | G130: 0 | H130: 21 | I130: 1128 | J130: 212 | K130: 0 | L130: 0 | M130: 0 | N130: 0 | O130: 212 | P130: 0 | Q130: 0 | R130: 0 | S130: 0 | T130: 0 | U130: 0 | V130: 4 | W130: 0 | X130: 0 | Y130: 0 | Z130: 4 | AA130: 0
A131: 702851A | B131: 4 | C131: 101.27 | D131: 20443.03565 | E131: 3.736 | F131: 0 | G131: 0 | H131: 0 | I131: 0 | J131: 0 | K131: 0 | L131: 0 | M131: 0 | N131: 0 | O131: 0 | P131: 0 | Q131: 0 | R131: 0 | S131: 0 | T131: 0 | U131: 0 | V131: 0 | W131: 0 | X131: 0 | Y131: 0 | Z131: 0 | AA131: 0
A132: 702911A | B132: 1 | C132: 168.19 | D132: 4872.206412 | E132: 1.952 | F132: 0 | G132: 0 | H132: 0 | I132: 0 | J132: 0 | K132: 0 | L132: 0 | M132: 0 | N132: 0 | O132: 0 | P132: 0 | Q132: 0 | R132: 0 | S132: 0 | T132: 0 | U132: 0 | V132: 0 | W132: 0 | X132: 0 | Y132: 0 | Z132: 0 | AA132: 0
A133: 702931A | B133: 4 | C133: 626.22 | D133: 26808.12497 | E133: 8.318 | F133: 3 | G133: 1001 | H133: 55 | I133: 3736 | J133: 1480 | K133: 0 | L133: 0 | M133: 0 | N133: 408 | O133: 0 | P133: 0 | Q133: 0 | R133: 0 | S133: 0 | T133: 0 | U133: 0 | V133: 10 | W133: 0 | X133: 0 | Y133: 3 | Z133: 0 | AA133: 0
A134: 702951A | B134: 4 | C134: 531.66 | D134: 49911.24463 | E134: 5.102 | F134: 9 | G134: 1446 | H134: 6 | I134: 124 | J134: 2851 | K134: 32 | L134: 0 | M134: 1605 | N134: 470 | O134: 0 | P134: 932 | Q134: 0 | R134: 0 | S134: 0 | T134: 0 | U134: 0 | V134: 8 | W134: 1 | X134: 0 | Y134: 3 | Z134: 0 | AA134: 1
A135: 702961A | B135: 1 | C135: 161.78 | D135: 10407.17373 | E135: 1.706 | F135: 1 | G135: 214 | H135: 0 | I135: 0 | J135: 0 | K135: 0 | L135: 0 | M135: 0 | N135: 0 | O135: 0 | P135: 0 | Q135: 0 | R135: 0 | S135: 0 | T135: 0 | U135: 0 | V135: 0 | W135: 0 | X135: 0 | Y135: 0 | Z135: 0 | AA135: 0
A136: 702961B | B136: 1 | C136: 148.17 | D136: 8612.265638 | E136: 1 | F136: 3 | G136: 1311 | H136: 2 | I136: 33 | J136: 0 | K136: 0 | L136: 0 | M136: 0 | N136: 0 | O136: 0 | P136: 0 | Q136: 0 | R136: 2648 | S136: 0 | T136: 0 | U136: 0 | V136: 0 | W136: 0 | X136: 0 | Y136: 0 | Z136: 0 | AA136: 0
A137: 702981A | B137: 4 | C137: 465.52 | D137: 15965.31809 | E137: 5.048 | F137: 12 | G137: 4316 | H137: 62 | I137: 2855 | J137: 210 | K137: 0 | L137: 0 | M137: 0 | N137: 0 | O137: 0 | P137: 0 | Q137: 0 | R137: 425 | S137: 0 | T137: 0 | U137: 0 | V137: 2 | W137: 0 | X137: 0 | Y137: 0 | Z137: 0 | AA137: 0
A138: 703011A | B138: 2 | C138: 261.76 | D138: 41522.60822 | E138: 4.555 | F138: 7 | G138: 3175 | H138: 15 | I138: 1528 | J138: 421 | K138: 0 | L138: 0 | M138: 0 | N138: 0 | O138: 0 | P138: 8500 | Q138: 492 | R138: 0 | S138: 24156 | T138: 0 | U138: 0 | V138: 1 | W138: 0 | X138: 0 | Y138: 0 | Z138: 0 | AA138: 0
A139: 703061A | B139: 4 | C139: 347.85 | D139: 22520.52473 | E139: 4.466 | F139: 4 | G139: 500 | H139: 22 | I139: 175 | J139: 238 | K139: 138 | L139: 0 | M139: 0 | N139: 0 | O139: 0 | P139: 0 | Q139: 0 | R139: 0 | S139: 0 | T139: 0 | U139: 0 | V139: 3 | W139: 2 | X139: 0 | Y139: 0 | Z139: 0 | AA139: 0
A140: 703081A | B140: 1 | C140: 368.41 | D140: 7916.733088 | E140: 1.302 | F140: 0 | G140: 0 | H140: 0 | I140: 0 | J140: 130 | K140: 0 | L140: 0 | M140: 130 | N140: 0 | O140: 0 | P140: 0 | Q140: 0 | R140: 0 | S140: 0 | T140: 0 | U140: 0 | V140: 1 | W140: 0 | X140: 0 | Y140: 0 | Z140: 0 | AA140: 1
A141: 703091A | B141: 2 | C141: 627.43 | D141: 20773.43743 | E141: 2.027 | F141: 1 | G141: 121 | H141: 0 | I141: 0 | J141: 0 | K141: 0 | L141: 0 | M141: 0 | N141: 0 | O141: 0 | P141: 0 | Q141: 0 | R141: 0 | S141: 0 | T141: 0 | U141: 0 | V141: 0 | W141: 0 | X141: 0 | Y141: 0 | Z141: 0 | AA141: 0
A142: 703101A | B142: 1 | C142: 430.63 | D142: 1949.184194 | E142: 1.563 | F142: 0 | G142: 0 | H142: 0 | I142: 0 | J142: 0 | K142: 0 | L142: 0 | M142: 0 | N142: 0 | O142: 0 | P142: 0 | Q142: 0 | R142: 0 | S142: 0 | T142: 0 | U142: 0 | V142: 0 | W142: 0 | X142: 0 | Y142: 0 | Z142: 0 | AA142: 0
A143: 703131A | B143: 4 | C143: 604.13 | D143: 63831.03296 | E143: 5.257 | F143: 21 | G143: 3713 | H143: 101 | I143: 32061 | J143: 1743 | K143: 678 | L143: 0 | M143: 458 | N143: 0 | O143: 0 | P143: 833 | Q143: 974 | R143: 0 | S143: 0 | T143: 0 | U143: 0 | V143: 25 | W143: 16 | X143: 0 | Y143: 0 | Z143: 0 | AA143: 3
A144: 703141A | B144: 3 | C144: 465.89 | D144: 30321.09552 | E144: 4.837 | F144: 1 | G144: 150 | H144: 1 | I144: 24 | J144: 0 | K144: 0 | L144: 0 | M144: 0 | N144: 0 | O144: 0 | P144: 0 | Q144: 0 | R144: 0 | S144: 0 | T144: 0 | U144: 0 | V144: 0 | W144: 0 | X144: 0 | Y144: 0 | Z144: 0 | AA144: 0
A145: 703151A | B145: 5 | C145: 262.48 | D145: 12199.66264 | E145: 5.519 | F145: 13 | G145: 720 | H145: 12 | I145: 193 | J145: 415 | K145: 0 | L145: 415 | M145: 0 | N145: 0 | O145: 0 | P145: 0 | Q145: 0 | R145: 2621 | S145: 0 | T145: 0 | U145: 0 | V145: 6 | W145: 0 | X145: 5 | Y145: 0 | Z145: 0 | AA145: 0
A146: 703152C | B146: 1 | C146: 240.27 | D146: 0 | E146: 1 | F146: 0 | G146: 0 | H146: 0 | I146: 0 | J146: 0 | K146: 0 | L146: 0 | M146: 0 | N146: 0 | O146: 0 | P146: 0 | Q146: 0 | R146: 0 | S146: 0 | T146: 0 | U146: 0 | V146: 0 | W146: 0 | X146: 0 | Y146: 0 | Z146: 0 | AA146: 0
A147: 703161A | B147: 3 | C147: 258.83 | D147: 28860.09117 | E147: 3.083 | F147: 9 | G147: 1199 | H147: 11 | I147: 401 | J147: 146 | K147: 0 | L147: 0 | M147: 46 | N147: 0 | O147: 0 | P147: 0 | Q147: 0 | R147: 0 | S147: 2065 | T147: 0 | U147: 0 | V147: 2 | W147: 0 | X147: 0 | Y147: 0 | Z147: 0 | AA147: 1
A148: 703171A | B148: 1 | C148: 1135.05 | D148: 9435.034711 | E148: 2.952 | F148: 1 | G148: 172 | H148: 3 | I148: 160 | J148: 2945 | K148: 0 | L148: 875 | M148: 0 | N148: 0 | O148: 0 | P148: 172 | Q148: 0 | R148: 0 | S148: 0 | T148: 0 | U148: 0 | V148: 22 | W148: 0 | X148: 6 | Y148: 0 | Z148: 0 | AA148: 0
A149: 703191A | B149: 4 | C149: 278.22 | D149: 12152.95221 | E149: 4.313 | F149: 9 | G149: 1206 | H149: 7 | I149: 104 | J149: 446 | K149: 0 | L149: 0 | M149: 0 | N149: 0 | O149: 0 | P149: 0 | Q149: 0 | R149: 1180 | S149: 0 | T149: 0 | U149: 0 | V149: 4 | W149: 0 | X149: 0 | Y149: 0 | Z149: 0 | AA149: 0
A150: 703231A | B150: 1 | C150: 306.3 | D150: 8479.178801 | E150: 2.81 | F150: 0 | G150: 0 | H150: 0 | I150: 0 | J150: 0 | K150: 0 | L150: 0 | M150: 0 | N150: 0 | O150: 0 | P150: 0 | Q150: 0 | R150: 0 | S150: 0 | T150: 0 | U150: 0 | V150: 0 | W150: 0 | X150: 0 | Y150: 0 | Z150: 0 | AA150: 0
A151: 703241A | B151: 4 | C151: 103.41 | D151: 11266.50559 | E151: 5.536 | F151: 7 | G151: 8104 | H151: 29 | I151: 2896 | J151: 0 | K151: 0 | L151: 0 | M151: 0 | N151: 0 | O151: 0 | P151: 3702 | Q151: 0 | R151: 0 | S151: 0 | T151: 0 | U151: 0 | V151: 0 | W151: 0 | X151: 0 | Y151: 0 | Z151: 0 | AA151: 0
A152: 703271A | B152: 2 | C152: 290.7 | D152: 10052.0841 | E152: 4.309 | F152: 0 | G152: 0 | H152: 0 | I152: 0 | J152: 0 | K152: 0 | L152: 0 | M152: 0 | N152: 0 | O152: 0 | P152: 0 | Q152: 0 | R152: 0 | S152: 0 | T152: 0 | U152: 0 | V152: 0 | W152: 0 | X152: 0 | Y152: 0 | Z152: 0 | AA152: 0
A153: 703301A | B153: 5 | C153: 174.56 | D153: 26542.0386 | E153: 4.889 | F153: 13 | G153: 6382 | H153: 13 | I153: 106 | J153: 0 | K153: 0 | L153: 0 | M153: 0 | N153: 0 | O153: 0 | P153: 1221 | Q153: 0 | R153: 0 | S153: 0 | T153: 0 | U153: 0 | V153: 0 | W153: 0 | X153: 0 | Y153: 0 | Z153: 0 | AA153: 0
A154: 703311A | B154: 4 | C154: 513.66 | D154: 49105.17047 | E154: 3.99 | F154: 11 | G154: 1715 | H154: 3 | I154: 48 | J154: 0 | K154: 0 | L154: 0 | M154: 0 | N154: 0 | O154: 0 | P154: 0 | Q154: 0 | R154: 1596 | S154: 0 | T154: 0 | U154: 0 | V154: 0 | W154: 0 | X154: 0 | Y154: 0 | Z154: 0 | AA154: 0
A155: 703321A | B155: 1 | C155: 124.14 | D155: 2898.029176 | E155: 1.325 | F155: 1 | G155: 78 | H155: 3 | I155: 18 | J155: 0 | K155: 0 | L155: 0 | M155: 0 | N155: 0 | O155: 0 | P155: 0 | Q155: 0 | R155: 0 | S155: 0 | T155: 0 | U155: 0 | V155: 0 | W155: 0 | X155: 0 | Y155: 0 | Z155: 0 | AA155: 0
A156: 703341A | B156: 5 | C156: 446.06 | D156: 23147.79554 | E156: 4.779 | F156: 4 | G156: 593 | H156: 0 | I156: 0 | J156: 0 | K156: 0 | L156: 0 | M156: 0 | N156: 0 | O156: 0 | P156: 0 | Q156: 0 | R156: 0 | S156: 0 | T156: 0 | U156: 0 | V156: 0 | W156: 0 | X156: 0 | Y156: 0 | Z156: 0 | AA156: 0
A157: 703351A | B157: 1 | C157: 104.12 | D157: 6298.166069 | E157: 1.222 | F157: 12 | G157: 350 | H157: 25 | I157: 593 | J157: 255 | K157: 0 | L157: 0 | M157: 0 | N157: 0 | O157: 0 | P157: 0 | Q157: 0 | R157: 0 | S157: 0 | T157: 0 | U157: 0 | V157: 1 | W157: 0 | X157: 0 | Y157: 0 | Z157: 0 | AA157: 0
A158: 703361A | B158: 2 | C158: 681.1 | D158: 13607.91746 | E158: 3.365 | F158: 4 | G158: 578 | H158: 31 | I158: 702 | J158: 384 | K158: 0 | L158: 0 | M158: 0 | N158: 0 | O158: 384 | P158: 2614 | Q158: 2205 | R158: 3467 | S158: 119743 | T158: 0 | U158: 0 | V158: 3 | W158: 0 | X158: 0 | Y158: 0 | Z158: 3 | AA158: 0
A159: 703381A | B159: 1 | C159: 224.25 | D159: 5531.609651 | E159: 2.23 | F159: 0 | G159: 0 | H159: 0 | I159: 0 | J159: 0 | K159: 0 | L159: 0 | M159: 0 | N159: 0 | O159: 0 | P159: 0 | Q159: 0 | R159: 0 | S159: 0 | T159: 0 | U159: 0 | V159: 0 | W159: 0 | X159: 0 | Y159: 0 | Z159: 0 | AA159: 0
A160: 703411B | B160: 1 | C160: 488.55 | D160: 22985.37438 | E160: 1.087 | F160: 0 | G160: 0 | H160: 0 | I160: 0 | J160: 0 | K160: 0 | L160: 0 | M160: 0 | N160: 0 | O160: 0 | P160: 0 | Q160: 0 | R160: 0 | S160: 0 | T160: 0 | U160: 0 | V160: 0 | W160: 0 | X160: 0 | Y160: 0 | Z160: 0 | AA160: 0
A161: 703441A | B161: 1 | C161: 460.31 | D161: 11726.52822 | E161: 2.23 | F161: 0 | G161: 0 | H161: 0 | I161: 0 | J161: 0 | K161: 0 | L161: 0 | M161: 0 | N161: 0 | O161: 0 | P161: 0 | Q161: 0 | R161: 0 | S161: 0 | T161: 0 | U161: 0 | V161: 0 | W161: 0 | X161: 0 | Y161: 0 | Z161: 0 | AA161: 0
A162: 703471A | B162: 2 | C162: 254.95 | D162: 4278.203032 | E162: 5.087 | F162: 0 | G162: 0 | H162: 0 | I162: 0 | J162: 233 | K162: 0 | L162: 0 | M162: 0 | N162: 0 | O162: 0 | P162: 0 | Q162: 0 | R162: 0 | S162: 0 | T162: 0 | U162: 0 | V162: 1 | W162: 0 | X162: 0 | Y162: 0 | Z162: 0 | AA162: 0
A163: 703511A | B163: 3 | C163: 336.47 | D163: 29559.35653 | E163: 3.185 | F163: 6 | G163: 1139 | H163: 7 | I163: 864 | J163: 1424 | K163: 0 | L163: 1424 | M163: 0 | N163: 0 | O163: 0 | P163: 0 | Q163: 0 | R163: 0 | S163: 0 | T163: 0 | U163: 0 | V163: 13 | W163: 0 | X163: 13 | Y163: 0 | Z163: 0 | AA163: 0
A164: 703531A | B164: 5 | C164: 310.44 | D164: 31086.99094 | E164: 4.755 | F164: 8 | G164: 1286 | H164: 12 | I164: 407 | J164: 193 | K164: 0 | L164: 0 | M164: 0 | N164: 0 | O164: 0 | P164: 0 | Q164: 0 | R164: 0 | S164: 0 | T164: 0 | U164: 0 | V164: 1 | W164: 0 | X164: 0 | Y164: 0 | Z164: 0 | AA164: 0
A165: 703542B | B165: 1 | C165: 520.58 | D165: 5871.042459 | E165: 2.333 | F165: 1 | G165: 165 | H165: 0 | I165: 0 | J165: 0 | K165: 0 | L165: 0 | M165: 0 | N165: 0 | O165: 0 | P165: 0 | Q165: 0 | R165: 0 | S165: 0 | T165: 0 | U165: 0 | V165: 0 | W165: 0 | X165: 0 | Y165: 0 | Z165: 0 | AA165: 0
A166: 703561A | B166: 8 | C166: 273.32 | D166: 40240.11379 | E166: 6.816 | F166: 10 | G166: 1373 | H166: 10 | I166: 1321 | J166: 1519 | K166: 0 | L166: 0 | M166: 686 | N166: 0 | O166: 239 | P166: 4553 | Q166: 0 | R166: 0 | S166: 0 | T166: 0 | U166: 0 | V166: 4 | W166: 0 | X166: 0 | Y166: 0 | Z166: 1 | AA166: 1
A167: 703571A | B167: 2 | C167: 532.77 | D167: 64818.33491 | E167: 3.73 | F167: 13 | G167: 1582 | H167: 20 | I167: 427 | J167: 88 | K167: 0 | L167: 44 | M167: 0 | N167: 45 | O167: 0 | P167: 348 | Q167: 56 | R167: 0 | S167: 0 | T167: 0 | U167: 0 | V167: 3 | W167: 0 | X167: 1 | Y167: 2 | Z167: 0 | AA167: 0
A168: 703621A | B168: 3 | C168: 372.71 | D168: 16571.4812 | E168: 3.186 | F168: 2 | G168: 511 | H168: 0 | I168: 0 | J168: 0 | K168: 0 | L168: 0 | M168: 0 | N168: 0 | O168: 0 | P168: 0 | Q168: 0 | R168: 0 | S168: 0 | T168: 0 | U168: 0 | V168: 0 | W168: 0 | X168: 0 | Y168: 0 | Z168: 0 | AA168: 0
A169: 703631A | B169: 1 | C169: 333.17 | D169: 15152.14205 | E169: 1 | F169: 0 | G169: 0 | H169: 1 | I169: 5 | J169: 0 | K169: 0 | L169: 0 | M169: 0 | N169: 0 | O169: 0 | P169: 0 | Q169: 0 | R169: 0 | S169: 0 | T169: 0 | U169: 0 | V169: 0 | W169: 0 | X169: 0 | Y169: 0 | Z169: 0 | AA169: 0
A170: 703651A | B170: 1 | C170: 200.22 | D170: 8906.190935 | E170: 1.087 | F170: 3 | G170: 3 | H170: 3 | I170: 96 | J170: 25 | K170: 0 | L170: 0 | M170: 0 | N170: 0 | O170: 0 | P170: 0 | Q170: 0 | R170: 0 | S170: 0 | T170: 0 | U170: 0 | V170: 1 | W170: 0 | X170: 0 | Y170: 0 | Z170: 0 | AA170: 0
A171: 703661A | B171: 3 | C171: 209.38 | D171: 9873.446299 | E171: 2.769 | F171: 4 | G171: 449 | H171: 0 | I171: 0 | J171: 0 | K171: 0 | L171: 0 | M171: 0 | N171: 0 | O171: 0 | P171: 0 | Q171: 0 | R171: 0 | S171: 0 | T171: 0 | U171: 0 | V171: 0 | W171: 0 | X171: 0 | Y171: 0 | Z171: 0 | AA171: 0
A172: 703731A | B172: 2 | C172: 332.53 | D172: 44910.57603 | E172: 4.302 | F172: 9 | G172: 8710 | H172: 35 | I172: 9679 | J172: 1462 | K172: 0 | L172: 0 | M172: 270 | N172: 0 | O172: 0 | P172: 2316 | Q172: 527 | R172: 0 | S172: 0 | T172: 0 | U172: 0 | V172: 3 | W172: 0 | X172: 0 | Y172: 0 | Z172: 0 | AA172: 2
A173: 703761A | B173: 1 | C173: 953.59 | D173: 12110.73387 | E173: 1.214 | F173: 3 | G173: 1078 | H173: 22 | I173: 480 | J173: 4741 | K173: 0 | L173: 0 | M173: 195 | N173: 0 | O173: 0 | P173: 0 | Q173: 0 | R173: 0 | S173: 0 | T173: 0 | U173: 0 | V173: 39 | W173: 0 | X173: 0 | Y173: 0 | Z173: 0 | AA173: 1
A174: 703761D | B174: 1 | C174: 464.64 | D174: 6733.095456 | E174: 1.214 | F174: 4 | G174: 473 | H174: 9 | I174: 300 | J174: 548 | K174: 0 | L174: 0 | M174: 262 | N174: 0 | O174: 0 | P174: 0 | Q174: 0 | R174: 0 | S174: 0 | T174: 0 | U174: 0 | V174: 3 | W174: 0 | X174: 0 | Y174: 0 | Z174: 0 | AA174: 1
A175: 703762B | B175: 1 | C175: 557.61 | D175: 7705.39211 | E175: 1.222 | F175: 1 | G175: 181 | H175: 1 | I175: 56 | J175: 0 | K175: 0 | L175: 0 | M175: 0 | N175: 0 | O175: 0 | P175: 0 | Q175: 0 | R175: 0 | S175: 0 | T175: 0 | U175: 0 | V175: 0 | W175: 0 | X175: 0 | Y175: 0 | Z175: 0 | AA175: 0
A176: 703763C | B176: 1 | C176: 552.78 | D176: 9562.065046 | E176: 1.135 | F176: 1 | G176: 76 | H176: 4 | I176: 101 | J176: 195 | K176: 0 | L176: 0 | M176: 195 | N176: 0 | O176: 0 | P176: 0 | Q176: 0 | R176: 0 | S176: 0 | T176: 0 | U176: 0 | V176: 1 | W176: 0 | X176: 0 | Y176: 0 | Z176: 0 | AA176: 1
A177: 703791A | B177: 4 | C177: 135.56 | D177: 9452.540224 | E177: 4.399 | F177: 11 | G177: 303 | H177: 7 | I177: 131 | J177: 34 | K177: 0 | L177: 0 | M177: 0 | N177: 0 | O177: 0 | P177: 0 | Q177: 0 | R177: 0 | S177: 0 | T177: 0 | U177: 0 | V177: 4 | W177: 0 | X177: 2 | Y177: 0 | Z177: 0 | AA177: 0
A178: 703801A | B178: 5 | C178: 164.26 | D178: 11277.28883 | E178: 4.731 | F178: 20 | G178: 2386 | H178: 9 | I178: 694 | J178: 177 | K178: 0 | L178: 0 | M178: 0 | N178: 0 | O178: 0 | P178: 417 | Q178: 502 | R178: 1083 | S178: 0 | T178: 0 | U178: 0 | V178: 1 | W178: 0 | X178: 0 | Y178: 0 | Z178: 0 | AA178: 0
A179: 703801C | B179: 1 | C179: 171.39 | D179: 5207.097498 | E179: 1 | F179: 0 | G179: 0 | H179: 0 | I179: 0 | J179: 800 | K179: 800 | L179: 0 | M179: 0 | N179: 0 | O179: 0 | P179: 0 | Q179: 0 | R179: 0 | S179: 0 | T179: 0 | U179: 0 | V179: 8 | W179: 8 | X179: 0 | Y179: 0 | Z179: 0 | AA179: 0
A180: 703891A | B180: 4 | C180: 156.13 | D180: 14980.32629 | E180: 4.251 | F180: 10 | G180: 25588 | H180: 6 | I180: 226 | J180: 5948 | K180: 0 | L180: 56 | M180: 0 | N180: 0 | O180: 5892 | P180: 0 | Q180: 0 | R180: 0 | S180: 0 | T180: 0 | U180: 0 | V180: 21 | W180: 0 | X180: 1 | Y180: 0 | Z180: 20 | AA180: 0
A181: 703901A | B181: 1 | C181: 496.56 | D181: 20557.0939 | E181: 1.302 | F181: 0 | G181: 0 | H181: 0 | I181: 0 | J181: 0 | K181: 0 | L181: 0 | M181: 0 | N181: 0 | O181: 0 | P181: 0 | Q181: 0 | R181: 0 | S181: 0 | T181: 0 | U181: 0 | V181: 0 | W181: 0 | X181: 0 | Y181: 0 | Z181: 0 | AA181: 0
A182: 703961A | B182: 3 | C182: 684.48 | D182: 34360.0513 | E182: 3.521 | F182: 6 | G182: 809 | H182: 26 | I182: 289 | J182: 532 | K182: 532 | L182: 0 | M182: 0 | N182: 0 | O182: 0 | P182: 0 | Q182: 0 | R182: 103 | S182: 0 | T182: 0 | U182: 0 | V182: 10 | W182: 10 | X182: 0 | Y182: 0 | Z182: 0 | AA182: 0
A183: 703981A | B183: 3 | C183: 170.83 | D183: 10105.50216 | E183: 3.15 | F183: 1 | G183: 52 | H183: 0 | I183: 0 | J183: 0 | K183: 0 | L183: 0 | M183: 0 | N183: 0 | O183: 0 | P183: 0 | Q183: 0 | R183: 0 | S183: 0 | T183: 0 | U183: 0 | V183: 0 | W183: 0 | X183: 0 | Y183: 0 | Z183: 0 | AA183: 0
A184: 703981C | B184: 1 | C184: 192.22 | D184: 2696.79231 | E184: 1.278 | F184: 0 | G184: 0 | H184: 0 | I184: 0 | J184: 0 | K184: 0 | L184: 0 | M184: 0 | N184: 0 | O184: 0 | P184: 0 | Q184: 0 | R184: 0 | S184: 0 | T184: 0 | U184: 0 | V184: 0 | W184: 0 | X184: 0 | Y184: 0 | Z184: 0 | AA184: 0
A185: 703982D | B185: 1 | C185: 240.27 | D185: 0 | E185: 1 | F185: 2 | G185: 643 | H185: 1 | I185: 2 | J185: 0 | K185: 0 | L185: 0 | M185: 0 | N185: 0 | O185: 0 | P185: 0 | Q185: 0 | R185: 0 | S185: 0 | T185: 0 | U185: 0 | V185: 0 | W185: 0 | X185: 0 | Y185: 0 | Z185: 0 | AA185: 0
A186: 703991A | B186: 2 | C186: 175.58 | D186: 19828.16432 | E186: 3.905 | F186: 4 | G186: 186 | H186: 43 | I186: 2096 | J186: 732 | K186: 0 | L186: 151 | M186: 0 | N186: 0 | O186: 581 | P186: 44 | Q186: 329 | R186: 0 | S186: 11415 | T186: 0 | U186: 0 | V186: 9 | W186: 0 | X186: 2 | Y186: 0 | Z186: 7 | AA186: 0
A187: 704001A | B187: 4 | C187: 562.9 | D187: 39517.32702 | E187: 3.911 | F187: 4 | G187: 665 | H187: 14 | I187: 303 | J187: 442 | K187: 0 | L187: 442 | M187: 0 | N187: 0 | O187: 0 | P187: 0 | Q187: 0 | R187: 275 | S187: 0 | T187: 0 | U187: 0 | V187: 1 | W187: 0 | X187: 1 | Y187: 0 | Z187: 0 | AA187: 0
A188: 704021A | B188: 4 | C188: 458.48 | D188: 33166.43753 | E188: 4.082 | F188: 3 | G188: 1546 | H188: 2 | I188: 14 | J188: 2150 | K188: 0 | L188: 0 | M188: 200 | N188: 0 | O188: 1950 | P188: 0 | Q188: 0 | R188: 0 | S188: 0 | T188: 0 | U188: 0 | V188: 14 | W188: 0 | X188: 0 | Y188: 0 | Z188: 13 | AA188: 1
A189: 704041A | B189: 4 | C189: 184.89 | D189: 18733.92636 | E189: 3.99 | F189: 3 | G189: 342 | H189: 3 | I189: 337 | J189: 1185 | K189: 0 | L189: 173 | M189: 0 | N189: 0 | O189: 0 | P189: 0 | Q189: 0 | R189: 0 | S189: 0 | T189: 0 | U189: 0 | V189: 4 | W189: 0 | X189: 3 | Y189: 0 | Z189: 0 | AA189: 0
A190: 704051A | B190: 2 | C190: 186.48 | D190: 12347.47976 | E190: 3.313 | F190: 13 | G190: 8919 | H190: 183 | I190: 24146 | J190: 1798 | K190: 0 | L190: 1217 | M190: 0 | N190: 0 | O190: 0 | P190: 0 | Q190: 0 | R190: 0 | S190: 62719 | T190: 115739 | U190: 0 | V190: 15 | W190: 0 | X190: 3 | Y190: 0 | Z190: 0 | AA190: 0
A191: 704081A | B191: 1 | C191: 296.33 | D191: 7657.536717 | E191: 2.81 | F191: 2 | G191: 521 | H191: 36 | I191: 9482 | J191: 29 | K191: 0 | L191: 29 | M191: 0 | N191: 0 | O191: 0 | P191: 0 | Q191: 0 | R191: 0 | S191: 0 | T191: 0 | U191: 0 | V191: 1 | W191: 0 | X191: 1 | Y191: 0 | Z191: 0 | AA191: 0
A192: 704111A | B192: 1 | C192: 686.08 | D192: 12177.62218 | E192: 2.81 | F192: 2 | G192: 269 | H192: 8 | I192: 35 | J192: 1208 | K192: 0 | L192: 0 | M192: 0 | N192: 0 | O192: 0 | P192: 0 | Q192: 0 | R192: 0 | S192: 0 | T192: 0 | U192: 0 | V192: 2 | W192: 0 | X192: 0 | Y192: 0 | Z192: 0 | AA192: 0
A193: 704121A | B193: 1 | C193: 131.62 | D193: 3681.525288 | E193: 2.333 | F193: 3 | G193: 860 | H193: 31 | I193: 660 | J193: 0 | K193: 0 | L193: 0 | M193: 0 | N193: 0 | O193: 0 | P193: 0 | Q193: 0 | R193: 50 | S193: 0 | T193: 0 | U193: 0 | V193: 0 | W193: 0 | X193: 0 | Y193: 0 | Z193: 0 | AA193: 0
A194: 704131A | B194: 5 | C194: 279.3 | D194: 112053.605 | E194: 4.851 | F194: 1 | G194: 117 | H194: 22 | I194: 673 | J194: 0 | K194: 0 | L194: 0 | M194: 0 | N194: 0 | O194: 0 | P194: 154 | Q194: 238 | R194: 0 | S194: 0 | T194: 0 | U194: 0 | V194: 0 | W194: 0 | X194: 0 | Y194: 0 | Z194: 0 | AA194: 0
A195: 704141A | B195: 1 | C195: 520.58 | D195: 22266.40928 | E195: 1.183 | F195: 0 | G195: 0 | H195: 0 | I195: 0 | J195: 0 | K195: 0 | L195: 0 | M195: 0 | N195: 0 | O195: 0 | P195: 0 | Q195: 0 | R195: 0 | S195: 0 | T195: 0 | U195: 0 | V195: 0 | W195: 0 | X195: 0 | Y195: 0 | Z195: 0 | AA195: 0
A196: 704141B | B196: 4 | C196: 270.23 | D196: 51592.19574 | E196: 3.478 | F196: 7 | G196: 2808 | H196: 1 | I196: 10 | J196: 0 | K196: 0 | L196: 0 | M196: 0 | N196: 0 | O196: 0 | P196: 0 | Q196: 0 | R196: 0 | S196: 0 | T196: 0 | U196: 0 | V196: 0 | W196: 0 | X196: 0 | Y196: 0 | Z196: 0 | AA196: 0
A197: 704161A | B197: 1 | C197: 184.71 | D197: 7202.606371 | E197: 2.437 | F197: 8 | G197: 532 | H197: 22 | I197: 2646 | J197: 0 | K197: 0 | L197: 0 | M197: 0 | N197: 0 | O197: 0 | P197: 0 | Q197: 0 | R197: 0 | S197: 0 | T197: 0 | U197: 0 | V197: 0 | W197: 0 | X197: 0 | Y197: 0 | Z197: 0 | AA197: 0
A198: 704171A | B198: 4 | C198: 138.15 | D198: 12009.03053 | E198: 3.649 | F198: 5 | G198: 436 | H198: 0 | I198: 0 | J198: 0 | K198: 0 | L198: 0 | M198: 0 | N198: 0 | O198: 0 | P198: 0 | Q198: 0 | R198: 0 | S198: 0 | T198: 0 | U198: 0 | V198: 0 | W198: 0 | X198: 0 | Y198: 0 | Z198: 0 | AA198: 0
A199: 704181A | B199: 2 | C199: 883.23 | D199: 18368.94897 | E199: 4.738 | F199: 9 | G199: 1301 | H199: 10 | I199: 1027 | J199: 1063 | K199: 316 | L199: 0 | M199: 0 | N199: 487 | O199: 0 | P199: 0 | Q199: 0 | R199: 0 | S199: 0 | T199: 0 | U199: 0 | V199: 9 | W199: 6 | X199: 0 | Y199: 1 | Z199: 0 | AA199: 0
A200: 704181B | B200: 1 | C200: 160.18 | D200: 4977.527523 | E200: 1 | F200: 7 | G200: 875 | H200: 13 | I200: 218 | J200: 489 | K200: 0 | L200: 0 | M200: 0 | N200: 489 | O200: 0 | P200: 0 | Q200: 0 | R200: 2313 | S200: 0 | T200: 0 | U200: 0 | V200: 1 | W200: 0 | X200: 0 | Y200: 1 | Z200: 0 | AA200: 0
... 2050 more rows

Sheet Prior Year (hidden)
B1: Office-Based Care | D1: Outpatient Pharmacy | F1: Allowed Cost of D&C Services
A2: Family ID | B2: Visits | C2: Allowed Cost | D2: Scripts | E2: Allowed Cost | F2: OBO | G2: OBC | H2: OBN | I2: OBE | J2: OBA | K2: OBT | L2: OPF | M2: OPD | N2: ERT | O2: IPT | P2: HHA | Q2: HHN | R2: Sum of OBOTHV16 | S2: Sum of OBCHIR16 | T2: Sum of OBNURS16 | U2: Sum of OBASST16 | V2: Sum of OBTHER16 | W2: Sum of OBOPTO16
A3: 700011A | B3: 14 | C3: 1210 | D3: 32 | E3: 2516 | F3: 1321 | G3: 0 | H3: 0 | I3: 83 | J3: 0 | K3: 0 | L3: 0 | M3: 0 | N3: 0 | O3: 0 | P3: 0 | Q3: 0 | R3: 8 | S3: 0 | T3: 0 | U3: 0 | V3: 0 | W3: 1
A4: 700041A | B4: 1 | C4: 2000 | D4: 0 | E4: 0 | F4: 0 | G4: 0 | H4: 0 | I4: 0 | J4: 0 | K4: 0 | L4: 0 | M4: 0 | N4: 0 | O4: 0 | P4: 0 | Q4: 0 | R4: 0 | S4: 0 | T4: 0 | U4: 0 | V4: 0 | W4: 0
A5: 700101A | B5: 2 | C5: 312 | D5: 2 | E5: 28 | F5: 166 | G5: 0 | H5: 0 | I5: 63 | J5: 86 | K5: 0 | L5: 0 | M5: 0 | N5: 0 | O5: 0 | P5: 0 | Q5: 0 | R5: 3 | S5: 0 | T5: 0 | U5: 1 | V5: 0 | W5: 1
A6: 700121A | B6: 10 | C6: 1179 | D6: 24 | E6: 399 | F6: 0 | G6: 0 | H6: 0 | I6: 0 | J6: 0 | K6: 0 | L6: 0 | M6: 0 | N6: 0 | O6: 0 | P6: 0 | Q6: 0 | R6: 0 | S6: 0 | T6: 0 | U6: 0 | V6: 0 | W6: 0
A7: 700121C | B7: 0 | C7: 0 | D7: 0 | E7: 0 | F7: 0 | G7: 0 | H7: 0 | I7: 0 | J7: 0 | K7: 0 | L7: 0 | M7: 0 | N7: 0 | O7: 0 | P7: 0 | Q7: 0 | R7: 0 | S7: 0 | T7: 0 | U7: 0 | V7: 0 | W7: 0
A8: 700131A | B8: 6 | C8: 1332 | D8: 38 | E8: 21399 | F8: 495 | G8: 0 | H8: 190 | I8: 0 | J8: 0 | K8: 0 | L8: 1230 | M8: 0 | N8: 5567 | O8: 0 | P8: 0 | Q8: 0 | R8: 2 | S8: 0 | T8: 1 | U8: 0 | V8: 0 | W8: 0
A9: 700151A | B9: 2 | C9: 248 | D9: 3 | E9: 58 | F9: 34 | G9: 0 | H9: 34 | I9: 0 | J9: 0 | K9: 0 | L9: 30 | M9: 0 | N9: 0 | O9: 0 | P9: 0 | Q9: 380 | R9: 1 | S9: 0 | T9: 1 | U9: 0 | V9: 0 | W9: 0
A10: 700161A | B10: 0 | C10: 0 | D10: 0 | E10: 0 | F10: 0 | G10: 0 | H10: 0 | I10: 0 | J10: 0 | K10: 0 | L10: 0 | M10: 0 | N10: 0 | O10: 0 | P10: 0 | Q10: 0 | R10: 0 | S10: 0 | T10: 0 | U10: 0 | V10: 0 | W10: 0
A11: 700161B | B11: 1 | C11: 233 | D11: 0 | E11: 0 | F11: 0 | G11: 0 | H11: 0 | I11: 0 | J11: 0 | K11: 0 | L11: 0 | M11: 0 | N11: 0 | O11: 0 | P11: 0 | Q11: 0 | R11: 0 | S11: 0 | T11: 0 | U11: 0 | V11: 0 | W11: 0
A12: 700181A | B12: 5 | C12: 1491 | D12: 20 | E12: 586 | F12: 28 | G12: 0 | H12: 28 | I12: 0 | J12: 0 | K12: 0 | L12: 200 | M12: 0 | N12: 0 | O12: 0 | P12: 0 | Q12: 0 | R12: 1 | S12: 0 | T12: 1 | U12: 0 | V12: 0 | W12: 0
A13: 700281A | B13: 8 | C13: 923 | D13: 5 | E13: 489 | F13: 20311 | G13: 1078 | H13: 0 | I13: 0 | J13: 2330 | K13: 16299 | L13: 0 | M13: 0 | N13: 4379 | O13: 14768 | P13: 0 | Q13: 0 | R13: 61 | S13: 11 | T13: 0 | U13: 16 | V13: 30 | W13: 0
A14: 700301A | B14: 0 | C14: 0 | D14: 0 | E14: 0 | F14: 0 | G14: 0 | H14: 0 | I14: 0 | J14: 0 | K14: 0 | L14: 0 | M14: 0 | N14: 0 | O14: 0 | P14: 0 | Q14: 0 | R14: 0 | S14: 0 | T14: 0 | U14: 0 | V14: 0 | W14: 0
A15: 700302B | B15: 11 | C15: 1118 | D15: 9 | E15: 469 | F15: 1204 | G15: 0 | H15: 0 | I15: 0 | J15: 0 | K15: 0 | L15: 0 | M15: 0 | N15: 0 | O15: 0 | P15: 0 | Q15: 0 | R15: 12 | S15: 0 | T15: 0 | U15: 0 | V15: 0 | W15: 0
A16: 700411A | B16: 6 | C16: 1229 | D16: 31 | E16: 3098 | F16: 812 | G16: 0 | H16: 0 | I16: 0 | J16: 0 | K16: 0 | L16: 0 | M16: 0 | N16: 882 | O16: 0 | P16: 0 | Q16: 0 | R16: 2 | S16: 0 | T16: 0 | U16: 0 | V16: 0 | W16: 0
A17: 700431A | B17: 6 | C17: 1092 | D17: 15 | E17: 120 | F17: 385 | G17: 0 | H17: 83 | I17: 0 | J17: 0 | K17: 0 | L17: 0 | M17: 0 | N17: 0 | O17: 0 | P17: 0 | Q17: 0 | R17: 2 | S17: 0 | T17: 1 | U17: 0 | V17: 0 | W17: 0
A18: 700461A | B18: 0 | C18: 0 | D18: 15 | E18: 762 | F18: 297 | G18: 0 | H18: 0 | I18: 0 | J18: 0 | K18: 0 | L18: 0 | M18: 0 | N18: 0 | O18: 0 | P18: 0 | Q18: 0 | R18: 3 | S18: 0 | T18: 0 | U18: 0 | V18: 0 | W18: 0
A19: 700541B | B19: 6 | C19: 440 | D19: 46 | E19: 1067 | F19: 30 | G19: 0 | H19: 0 | I19: 0 | J19: 0 | K19: 0 | L19: 0 | M19: 0 | N19: 0 | O19: 0 | P19: 0 | Q19: 0 | R19: 2 | S19: 0 | T19: 0 | U19: 0 | V19: 0 | W19: 0
A20: 700581A | B20: 6 | C20: 378 | D20: 8 | E20: 1053 | F20: 785 | G20: 0 | H20: 428 | I20: 0 | J20: 140 | K20: 0 | L20: 0 | M20: 0 | N20: 1497 | O20: 0 | P20: 0 | Q20: 0 | R20: 6 | S20: 0 | T20: 4 | U20: 1 | V20: 0 | W20: 0
A21: 700601A | B21: 3 | C21: 1064 | D21: 22 | E21: 790 | F21: 839 | G21: 0 | H21: 181 | I21: 0 | J21: 0 | K21: 0 | L21: 0 | M21: 0 | N21: 0 | O21: 0 | P21: 0 | Q21: 0 | R21: 3 | S21: 0 | T21: 2 | U21: 0 | V21: 0 | W21: 0
A22: 700621A | B22: 0 | C22: 0 | D22: 0 | E22: 0 | F22: 0 | G22: 0 | H22: 0 | I22: 0 | J22: 0 | K22: 0 | L22: 0 | M22: 0 | N22: 0 | O22: 0 | P22: 0 | Q22: 0 | R22: 0 | S22: 0 | T22: 0 | U22: 0 | V22: 0 | W22: 0
A23: 700641A | B23: 2 | C23: 7816 | D23: 23 | E23: 2595 | F23: 1151 | G23: 0 | H23: 0 | I23: 0 | J23: 0 | K23: 0 | L23: 73 | M23: 0 | N23: 649 | O23: 46340 | P23: 5252 | Q23: 0 | R23: 3 | S23: 0 | T23: 0 | U23: 0 | V23: 0 | W23: 0
A24: 700651A | B24: 7 | C24: 1537 | D24: 8 | E24: 666 | F24: 0 | G24: 0 | H24: 0 | I24: 0 | J24: 0 | K24: 0 | L24: 0 | M24: 0 | N24: 4123 | O24: 0 | P24: 0 | Q24: 0 | R24: 0 | S24: 0 | T24: 0 | U24: 0 | V24: 0 | W24: 0
A25: 700681A | B25: 1 | C25: 73 | D25: 8 | E25: 226 | F25: 300 | G25: 300 | H25: 0 | I25: 0 | J25: 0 | K25: 0 | L25: 0 | M25: 0 | N25: 0 | O25: 0 | P25: 0 | Q25: 120 | R25: 9 | S25: 8 | T25: 0 | U25: 0 | V25: 0 | W25: 0
A26: 700711A | B26: 0 | C26: 0 | D26: 0 | E26: 0 | F26: 32 | G26: 0 | H26: 32 | I26: 0 | J26: 0 | K26: 0 | L26: 0 | M26: 0 | N26: 0 | O26: 0 | P26: 0 | Q26: 0 | R26: 1 | S26: 0 | T26: 1 | U26: 0 | V26: 0 | W26: 0
A27: 700721A | B27: 3 | C27: 391 | D27: 6 | E27: 64 | F27: 0 | G27: 0 | H27: 0 | I27: 0 | J27: 0 | K27: 0 | L27: 0 | M27: 0 | N27: 0 | O27: 0 | P27: 0 | Q27: 0 | R27: 0 | S27: 0 | T27: 0 | U27: 0 | V27: 0 | W27: 0
A28: 700731A | B28: 20 | C28: 2338 | D28: 113 | E28: 7337 | F28: 494 | G28: 0 | H28: 455 | I28: 0 | J28: 0 | K28: 0 | L28: 7238 | M28: 1664 | N28: 9917 | O28: 6296 | P28: 0 | Q28: 0 | R28: 2 | S28: 0 | T28: 1 | U28: 0 | V28: 0 | W28: 0
A29: 700771A | B29: 3 | C29: 164 | D29: 32 | E29: 3508 | F29: 363 | G29: 0 | H29: 128 | I29: 0 | J29: 0 | K29: 0 | L29: 0 | M29: 0 | N29: 0 | O29: 0 | P29: 0 | Q29: 0 | R29: 5 | S29: 0 | T29: 2 | U29: 0 | V29: 0 | W29: 0
A30: 700841A | B30: 4 | C30: 391 | D30: 0 | E30: 0 | F30: 0 | G30: 0 | H30: 0 | I30: 0 | J30: 0 | K30: 0 | L30: 0 | M30: 0 | N30: 0 | O30: 0 | P30: 0 | Q30: 0 | R30: 0 | S30: 0 | T30: 0 | U30: 0 | V30: 0 | W30: 0
A31: 700861A | B31: 1 | C31: 195 | D31: 10 | E31: 2469 | F31: 602 | G31: 0 | H31: 0 | I31: 0 | J31: 302 | K31: 0 | L31: 0 | M31: 0 | N31: 0 | O31: 0 | P31: 0 | Q31: 0 | R31: 4 | S31: 0 | T31: 0 | U31: 1 | V31: 0 | W31: 0
A32: 700891A | B32: 3 | C32: 552 | D32: 6 | E32: 133 | F32: 0 | G32: 0 | H32: 0 | I32: 0 | J32: 0 | K32: 0 | L32: 0 | M32: 0 | N32: 0 | O32: 0 | P32: 0 | Q32: 0 | R32: 0 | S32: 0 | T32: 0 | U32: 0 | V32: 0 | W32: 0
A33: 700901B | B33: 1 | C33: 147 | D33: 1 | E33: 4 | F33: 0 | G33: 0 | H33: 0 | I33: 0 | J33: 0 | K33: 0 | L33: 0 | M33: 0 | N33: 0 | O33: 0 | P33: 0 | Q33: 0 | R33: 0 | S33: 0 | T33: 0 | U33: 0 | V33: 0 | W33: 0
A34: 700951A | B34: 7 | C34: 1133 | D34: 5 | E34: 4295 | F34: 0 | G34: 0 | H34: 0 | I34: 0 | J34: 0 | K34: 0 | L34: 0 | M34: 0 | N34: 0 | O34: 0 | P34: 0 | Q34: 0 | R34: 0 | S34: 0 | T34: 0 | U34: 0 | V34: 0 | W34: 0
A35: 700961A | B35: 1 | C35: 154 | D35: 1 | E35: 273 | F35: 79 | G35: 0 | H35: 79 | I35: 0 | J35: 0 | K35: 0 | L35: 10242 | M35: 3561 | N35: 0 | O35: 0 | P35: 0 | Q35: 0 | R35: 1 | S35: 0 | T35: 1 | U35: 0 | V35: 0 | W35: 0
A36: 700971A | B36: 28 | C36: 18890 | D36: 98 | E36: 13043 | F36: 2891 | G36: 0 | H36: 523 | I36: 0 | J36: 326 | K36: 0 | L36: 519 | M36: 1142 | N36: 875 | O36: 0 | P36: 0 | Q36: 0 | R36: 23 | S36: 0 | T36: 6 | U36: 3 | V36: 0 | W36: 0
A37: 700981A | B37: 5 | C37: 722 | D37: 19 | E37: 683 | F37: 0 | G37: 0 | H37: 0 | I37: 0 | J37: 0 | K37: 0 | L37: 1490 | M37: 27 | N37: 0 | O37: 0 | P37: 0 | Q37: 0 | R37: 1 | S37: 0 | T37: 0 | U37: 0 | V37: 0 | W37: 0
A38: 701021A | B38: 0 | C38: 0 | D38: 0 | E38: 0 | F38: 0 | G38: 0 | H38: 0 | I38: 0 | J38: 0 | K38: 0 | L38: 0 | M38: 0 | N38: 0 | O38: 0 | P38: 0 | Q38: 0 | R38: 2 | S38: 0 | T38: 1 | U38: 0 | V38: 0 | W38: 0
A39: 701041A | B39: 0 | C39: 0 | D39: 0 | E39: 0 | F39: 0 | G39: 0 | H39: 0 | I39: 0 | J39: 0 | K39: 0 | L39: 0 | M39: 0 | N39: 0 | O39: 0 | P39: 0 | Q39: 0 | R39: 0 | S39: 0 | T39: 0 | U39: 0 | V39: 0 | W39: 0
A40: 701051A | B40: 1 | C40: 90 | D40: 0 | E40: 0 | F40: 0 | G40: 0 | H40: 0 | I40: 0 | J40: 0 | K40: 0 | L40: 84 | M40: 0 | N40: 0 | O40: 0 | P40: 0 | Q40: 0 | R40: 0 | S40: 0 | T40: 0 | U40: 0 | V40: 0 | W40: 0
A41: 701072B | B41: 1 | C41: 200 | D41: 2 | E41: 47 | F41: 0 | G41: 0 | H41: 0 | I41: 0 | J41: 0 | K41: 0 | L41: 0 | M41: 0 | N41: 328 | O41: 0 | P41: 0 | Q41: 0 | R41: 0 | S41: 0 | T41: 0 | U41: 0 | V41: 0 | W41: 0
A42: 701072C | B42: 4 | C42: 174 | D42: 1 | E42: 6 | F42: 60 | G42: 0 | H42: 60 | I42: 0 | J42: 0 | K42: 0 | L42: 0 | M42: 0 | N42: 0 | O42: 0 | P42: 0 | Q42: 0 | R42: 1 | S42: 0 | T42: 1 | U42: 0 | V42: 0 | W42: 0
A43: 701101A | B43: 4 | C43: 357 | D43: 6 | E43: 123 | F43: 0 | G43: 0 | H43: 0 | I43: 0 | J43: 0 | K43: 0 | L43: 0 | M43: 0 | N43: 0 | O43: 0 | P43: 0 | Q43: 0 | R43: 0 | S43: 0 | T43: 0 | U43: 0 | V43: 0 | W43: 0
A44: 701121A | B44: 0 | C44: 0 | D44: 0 | E44: 0 | F44: 0 | G44: 0 | H44: 0 | I44: 0 | J44: 0 | K44: 0 | L44: 0 | M44: 0 | N44: 0 | O44: 0 | P44: 0 | Q44: 0 | R44: 0 | S44: 0 | T44: 0 | U44: 0 | V44: 0 | W44: 0
A45: 701131A | B45: 0 | C45: 0 | D45: 0 | E45: 0 | F45: 0 | G45: 0 | H45: 0 | I45: 0 | J45: 0 | K45: 0 | L45: 0 | M45: 0 | N45: 946 | O45: 0 | P45: 0 | Q45: 0 | R45: 0 | S45: 0 | T45: 0 | U45: 0 | V45: 0 | W45: 0
A46: 701141A | B46: 0 | C46: 0 | D46: 11 | E46: 50 | F46: 0 | G46: 0 | H46: 0 | I46: 0 | J46: 0 | K46: 0 | L46: 0 | M46: 0 | N46: 160 | O46: 0 | P46: 0 | Q46: 0 | R46: 0 | S46: 0 | T46: 0 | U46: 0 | V46: 0 | W46: 0
A47: 701161A | B47: 4 | C47: 405 | D47: 12 | E47: 64 | F47: 394 | G47: 0 | H47: 0 | I47: 0 | J47: 0 | K47: 0 | L47: 0 | M47: 0 | N47: 0 | O47: 4749 | P47: 0 | Q47: 0 | R47: 2 | S47: 0 | T47: 0 | U47: 0 | V47: 0 | W47: 0
A48: 701181A | B48: 28 | C48: 6493 | D48: 21 | E48: 394 | F48: 101 | G48: 0 | H48: 0 | I48: 0 | J48: 0 | K48: 0 | L48: 0 | M48: 0 | N48: 0 | O48: 0 | P48: 0 | Q48: 0 | R48: 1 | S48: 0 | T48: 0 | U48: 0 | V48: 0 | W48: 0
A49: 701191A | B49: 25 | C49: 7955 | D49: 8 | E49: 259 | F49: 173 | G49: 0 | H49: 0 | I49: 0 | J49: 0 | K49: 0 | L49: 10373 | M49: 418 | N49: 6120 | O49: 0 | P49: 0 | Q49: 0 | R49: 1 | S49: 0 | T49: 0 | U49: 0 | V49: 0 | W49: 0
A50: 701201A | B50: 0 | C50: 0 | D50: 0 | E50: 0 | F50: 0 | G50: 0 | H50: 0 | I50: 0 | J50: 0 | K50: 0 | L50: 0 | M50: 0 | N50: 0 | O50: 0 | P50: 0 | Q50: 0 | R50: 0 | S50: 0 | T50: 0 | U50: 0 | V50: 0 | W50: 0
A51: 701271A | B51: 6 | C51: 896 | D51: 2 | E51: 95 | F51: 0 | G51: 0 | H51: 0 | I51: 0 | J51: 0 | K51: 0 | L51: 0 | M51: 0 | N51: 0 | O51: 0 | P51: 0 | Q51: 0 | R51: 0 | S51: 0 | T51: 0 | U51: 0 | V51: 0 | W51: 0
A52: 701291A | B52: 3 | C52: 279 | D52: 16 | E52: 8852 | F52: 277 | G52: 0 | H52: 277 | I52: 0 | J52: 0 | K52: 0 | L52: 0 | M52: 0 | N52: 135 | O52: 0 | P52: 0 | Q52: 0 | R52: 1 | S52: 0 | T52: 1 | U52: 0 | V52: 0 | W52: 0
A53: 701301A | B53: 10 | C53: 526 | D53: 33 | E53: 6700 | F53: 462 | G53: 0 | H53: 0 | I53: 0 | J53: 0 | K53: 0 | L53: 0 | M53: 0 | N53: 314 | O53: 0 | P53: 0 | Q53: 0 | R53: 7 | S53: 0 | T53: 0 | U53: 0 | V53: 0 | W53: 0
A54: 701311A | B54: 24 | C54: 2029 | D54: 29 | E54: 463 | F54: 34 | G54: 0 | H54: 0 | I54: 34 | J54: 0 | K54: 0 | L54: 78 | M54: 0 | N54: 0 | O54: 0 | P54: 0 | Q54: 0 | R54: 1 | S54: 0 | T54: 0 | U54: 0 | V54: 0 | W54: 1
A55: 701351A | B55: 0 | C55: 0 | D55: 0 | E55: 0 | F55: 0 | G55: 0 | H55: 0 | I55: 0 | J55: 0 | K55: 0 | L55: 0 | M55: 0 | N55: 0 | O55: 0 | P55: 0 | Q55: 0 | R55: 0 | S55: 0 | T55: 0 | U55: 0 | V55: 0 | W55: 0
A56: 701381A | B56: 0 | C56: 0 | D56: 2 | E56: 10 | F56: 41 | G56: 0 | H56: 0 | I56: 41 | J56: 0 | K56: 0 | L56: 0 | M56: 0 | N56: 0 | O56: 0 | P56: 0 | Q56: 0 | R56: 1 | S56: 0 | T56: 0 | U56: 0 | V56: 0 | W56: 1
A57: 701391A | B57: 2 | C57: 519 | D57: 54 | E57: 3733 | F57: 0 | G57: 0 | H57: 0 | I57: 0 | J57: 0 | K57: 0 | L57: 0 | M57: 0 | N57: 0 | O57: 0 | P57: 0 | Q57: 0 | R57: 0 | S57: 0 | T57: 0 | U57: 0 | V57: 0 | W57: 0
A58: 701401A | B58: 22 | C58: 2493 | D58: 178 | E58: 20991 | F58: 1138 | G58: 0 | H58: 0 | I58: 372 | J58: 0 | K58: 0 | L58: 104 | M58: 65 | N58: 0 | O58: 0 | P58: 0 | Q58: 0 | R58: 5 | S58: 0 | T58: 0 | U58: 0 | V58: 0 | W58: 3
A59: 701411A | B59: 1 | C59: 100 | D59: 8 | E59: 2991 | F59: 0 | G59: 0 | H59: 0 | I59: 0 | J59: 0 | K59: 0 | L59: 0 | M59: 0 | N59: 0 | O59: 0 | P59: 0 | Q59: 0 | R59: 0 | S59: 0 | T59: 0 | U59: 0 | V59: 0 | W59: 0
A60: 701431A | B60: 2 | C60: 249 | D60: 51 | E60: 3618 | F60: 4630 | G60: 4630 | H60: 0 | I60: 0 | J60: 0 | K60: 0 | L60: 0 | M60: 0 | N60: 0 | O60: 0 | P60: 0 | Q60: 0 | R60: 61 | S60: 60 | T60: 0 | U60: 1 | V60: 0 | W60: 0
A61: 701431B | B61: 0 | C61: 0 | D61: 1 | E61: 8 | F61: 113 | G61: 0 | H61: 0 | I61: 113 | J61: 0 | K61: 0 | L61: 0 | M61: 0 | N61: 0 | O61: 0 | P61: 0 | Q61: 0 | R61: 1 | S61: 0 | T61: 0 | U61: 0 | V61: 0 | W61: 1
A62: 701461A | B62: 0 | C62: 0 | D62: 0 | E62: 0 | F62: 13 | G62: 0 | H62: 0 | I62: 0 | J62: 0 | K62: 0 | L62: 0 | M62: 0 | N62: 0 | O62: 0 | P62: 0 | Q62: 0 | R62: 1 | S62: 0 | T62: 0 | U62: 0 | V62: 0 | W62: 0
A63: 701491A | B63: 17 | C63: 2652 | D63: 108 | E63: 7237 | F63: 533 | G63: 0 | H63: 291 | I63: 0 | J63: 187 | K63: 0 | L63: 1127 | M63: 142 | N63: 0 | O63: 0 | P63: 0 | Q63: 0 | R63: 8 | S63: 0 | T63: 5 | U63: 2 | V63: 0 | W63: 0
A64: 701511A | B64: 1 | C64: 68 | D64: 9 | E64: 171 | F64: 0 | G64: 0 | H64: 0 | I64: 0 | J64: 0 | K64: 0 | L64: 0 | M64: 0 | N64: 2798 | O64: 0 | P64: 0 | Q64: 0 | R64: 0 | S64: 0 | T64: 0 | U64: 0 | V64: 0 | W64: 0
A65: 701521A | B65: 8 | C65: 1876 | D65: 3 | E65: 67 | F65: 101 | G65: 0 | H65: 0 | I65: 0 | J65: 68 | K65: 0 | L65: 0 | M65: 0 | N65: 0 | O65: 0 | P65: 0 | Q65: 0 | R65: 2 | S65: 0 | T65: 0 | U65: 1 | V65: 0 | W65: 0
A66: 701561A | B66: 3 | C66: 259 | D66: 11 | E66: 420 | F66: 0 | G66: 0 | H66: 0 | I66: 0 | J66: 0 | K66: 0 | L66: 16173 | M66: 2058 | N66: 0 | O66: 0 | P66: 0 | Q66: 0 | R66: 0 | S66: 0 | T66: 0 | U66: 0 | V66: 0 | W66: 0
A67: 701581A | B67: 21 | C67: 1853 | D67: 2 | E67: 24 | F67: 0 | G67: 0 | H67: 0 | I67: 0 | J67: 0 | K67: 0 | L67: 919 | M67: 0 | N67: 0 | O67: 0 | P67: 0 | Q67: 0 | R67: 0 | S67: 0 | T67: 0 | U67: 0 | V67: 0 | W67: 0
A68: 701591A | B68: 2 | C68: 241 | D68: 18 | E68: 72653 | F68: 75 | G68: 0 | H68: 75 | I68: 0 | J68: 0 | K68: 0 | L68: 0 | M68: 0 | N68: 0 | O68: 0 | P68: 0 | Q68: 0 | R68: 1 | S68: 0 | T68: 1 | U68: 0 | V68: 0 | W68: 0
A69: 701601A | B69: 0 | C69: 0 | D69: 35 | E69: 1605 | F69: 809 | G69: 0 | H69: 338 | I69: 0 | J69: 463 | K69: 0 | L69: 0 | M69: 0 | N69: 0 | O69: 0 | P69: 0 | Q69: 0 | R69: 6 | S69: 0 | T69: 2 | U69: 3 | V69: 0 | W69: 0
A70: 701611A | B70: 14 | C70: 812 | D70: 2 | E70: 60 | F70: 0 | G70: 0 | H70: 0 | I70: 0 | J70: 0 | K70: 0 | L70: 0 | M70: 0 | N70: 0 | O70: 2160 | P70: 0 | Q70: 0 | R70: 0 | S70: 0 | T70: 0 | U70: 0 | V70: 0 | W70: 0
A71: 701621A | B71: 4 | C71: 432 | D71: 7 | E71: 159 | F71: 0 | G71: 0 | H71: 0 | I71: 0 | J71: 0 | K71: 0 | L71: 0 | M71: 0 | N71: 0 | O71: 0 | P71: 0 | Q71: 0 | R71: 0 | S71: 0 | T71: 0 | U71: 0 | V71: 0 | W71: 0
A72: 701651A | B72: 7 | C72: 1292 | D72: 11 | E72: 197 | F72: 235 | G72: 0 | H72: 0 | I72: 0 | J72: 0 | K72: 0 | L72: 0 | M72: 0 | N72: 0 | O72: 0 | P72: 0 | Q72: 0 | R72: 2 | S72: 0 | T72: 0 | U72: 0 | V72: 0 | W72: 0
A73: 701661A | B73: 9 | C73: 1794 | D73: 68 | E73: 14348 | F73: 198 | G73: 0 | H73: 0 | I73: 0 | J73: 92 | K73: 0 | L73: 16586 | M73: 2600 | N73: 0 | O73: 0 | P73: 0 | Q73: 0 | R73: 3 | S73: 0 | T73: 0 | U73: 1 | V73: 0 | W73: 0
A74: 701701A | B74: 3 | C74: 918 | D74: 2 | E74: 37 | F74: 1410 | G74: 0 | H74: 0 | I74: 0 | J74: 0 | K74: 0 | L74: 0 | M74: 0 | N74: 0 | O74: 0 | P74: 0 | Q74: 0 | R74: 17 | S74: 0 | T74: 0 | U74: 0 | V74: 0 | W74: 0
A75: 701711A | B75: 0 | C75: 0 | D75: 0 | E75: 0 | F75: 0 | G75: 0 | H75: 0 | I75: 0 | J75: 0 | K75: 0 | L75: 0 | M75: 0 | N75: 0 | O75: 0 | P75: 0 | Q75: 0 | R75: 0 | S75: 0 | T75: 0 | U75: 0 | V75: 0 | W75: 0
A76: 701721A | B76: 3 | C76: 562 | D76: 4 | E76: 321 | F76: 0 | G76: 0 | H76: 0 | I76: 0 | J76: 0 | K76: 0 | L76: 0 | M76: 0 | N76: 592 | O76: 0 | P76: 0 | Q76: 0 | R76: 0 | S76: 0 | T76: 0 | U76: 0 | V76: 0 | W76: 0
A77: 701731A | B77: 4 | C77: 1109 | D77: 14 | E77: 294 | F77: 350 | G77: 0 | H77: 0 | I77: 0 | J77: 0 | K77: 0 | L77: 98 | M77: 0 | N77: 0 | O77: 0 | P77: 0 | Q77: 0 | R77: 2 | S77: 0 | T77: 0 | U77: 0 | V77: 0 | W77: 0
A78: 701751A | B78: 18 | C78: 11472 | D78: 2 | E78: 792 | F78: 786 | G78: 0 | H78: 786 | I78: 0 | J78: 0 | K78: 0 | L78: 2245 | M78: 106 | N78: 0 | O78: 17909 | P78: 0 | Q78: 0 | R78: 3 | S78: 0 | T78: 3 | U78: 0 | V78: 0 | W78: 0
A79: 701781A | B79: 4 | C79: 1034 | D79: 13 | E79: 584 | F79: 885 | G79: 0 | H79: 0 | I79: 389 | J79: 0 | K79: 0 | L79: 0 | M79: 0 | N79: 0 | O79: 0 | P79: 0 | Q79: 0 | R79: 4 | S79: 0 | T79: 0 | U79: 0 | V79: 0 | W79: 2
A80: 701801A | B80: 24 | C80: 8706 | D80: 141 | E80: 3362 | F80: 4814 | G80: 0 | H80: 455 | I80: 0 | J80: 229 | K80: 0 | L80: 116 | M80: 0 | N80: 208 | O80: 0 | P80: 8220 | Q80: 0 | R80: 22 | S80: 0 | T80: 4 | U80: 3 | V80: 0 | W80: 0
A81: 701821A | B81: 13 | C81: 3341 | D81: 4 | E81: 228 | F81: 0 | G81: 0 | H81: 0 | I81: 0 | J81: 0 | K81: 0 | L81: 0 | M81: 0 | N81: 4770 | O81: 21311 | P81: 0 | Q81: 0 | R81: 0 | S81: 0 | T81: 0 | U81: 0 | V81: 0 | W81: 0
A82: 701831A | B82: 17 | C82: 2015 | D82: 5 | E82: 111 | F82: 663 | G82: 102 | H82: 0 | I82: 0 | J82: 0 | K82: 0 | L82: 2600 | M82: 714 | N82: 0 | O82: 0 | P82: 0 | Q82: 0 | R82: 7 | S82: 1 | T82: 0 | U82: 0 | V82: 0 | W82: 0
A83: 701841A | B83: 0 | C83: 0 | D83: 2 | E83: 15 | F83: 0 | G83: 0 | H83: 0 | I83: 0 | J83: 0 | K83: 0 | L83: 0 | M83: 0 | N83: 1122 | O83: 280 | P83: 0 | Q83: 0 | R83: 0 | S83: 0 | T83: 0 | U83: 0 | V83: 0 | W83: 0
A84: 701891A | B84: 1 | C84: 286 | D84: 4 | E84: 306 | F84: 489 | G84: 0 | H84: 0 | I84: 489 | J84: 0 | K84: 0 | L84: 391 | M84: 0 | N84: 0 | O84: 0 | P84: 0 | Q84: 0 | R84: 1 | S84: 0 | T84: 0 | U84: 0 | V84: 0 | W84: 1
A85: 701931A | B85: 9 | C85: 1000 | D85: 105 | E85: 806 | F85: 87 | G85: 0 | H85: 87 | I85: 0 | J85: 0 | K85: 0 | L85: 0 | M85: 0 | N85: 254 | O85: 0 | P85: 0 | Q85: 0 | R85: 1 | S85: 0 | T85: 1 | U85: 0 | V85: 0 | W85: 0
A86: 701941A | B86: 4 | C86: 316 | D86: 7 | E86: 73 | F86: 0 | G86: 0 | H86: 0 | I86: 0 | J86: 0 | K86: 0 | L86: 0 | M86: 0 | N86: 0 | O86: 0 | P86: 0 | Q86: 0 | R86: 0 | S86: 0 | T86: 0 | U86: 0 | V86: 0 | W86: 0
A87: 701941B | B87: 4 | C87: 391 | D87: 13 | E87: 572 | F87: 0 | G87: 0 | H87: 0 | I87: 0 | J87: 0 | K87: 0 | L87: 0 | M87: 0 | N87: 0 | O87: 14093 | P87: 0 | Q87: 0 | R87: 0 | S87: 0 | T87: 0 | U87: 0 | V87: 0 | W87: 0
A88: 701952B | B88: 0 | C88: 0 | D88: 2 | E88: 24 | F88: 0 | G88: 0 | H88: 0 | I88: 0 | J88: 0 | K88: 0 | L88: 0 | M88: 0 | N88: 0 | O88: 0 | P88: 0 | Q88: 0 | R88: 0 | S88: 0 | T88: 0 | U88: 0 | V88: 0 | W88: 0
A89: 701971A | B89: 13 | C89: 3344 | D89: 22 | E89: 682 | F89: 462 | G89: 0 | H89: 0 | I89: 0 | J89: 0 | K89: 0 | L89: 0 | M89: 0 | N89: 0 | O89: 0 | P89: 0 | Q89: 0 | R89: 6 | S89: 0 | T89: 0 | U89: 0 | V89: 0 | W89: 0
A90: 702011A | B90: 17 | C90: 2445 | D90: 109 | E90: 16557 | F90: 406 | G90: 0 | H90: 0 | I90: 0 | J90: 0 | K90: 0 | L90: 413 | M90: 0 | N90: 968 | O90: 0 | P90: 0 | Q90: 0 | R90: 3 | S90: 0 | T90: 0 | U90: 0 | V90: 0 | W90: 0
A91: 702021A | B91: 0 | C91: 0 | D91: 0 | E91: 0 | F91: 0 | G91: 0 | H91: 0 | I91: 0 | J91: 0 | K91: 0 | L91: 0 | M91: 36 | N91: 0 | O91: 0 | P91: 0 | Q91: 0 | R91: 0 | S91: 0 | T91: 0 | U91: 0 | V91: 0 | W91: 0
A92: 702031A | B92: 24 | C92: 4121 | D92: 36 | E92: 1346 | F92: 928 | G92: 0 | H92: 0 | I92: 0 | J92: 0 | K92: 928 | L92: 1415 | M92: 115 | N92: 2036 | O92: 30116 | P92: 0 | Q92: 0 | R92: 13 | S92: 0 | T92: 0 | U92: 0 | V92: 13 | W92: 0
A93: 702041A | B93: 2 | C93: 152 | D93: 25 | E93: 312 | F93: 82 | G93: 0 | H93: 0 | I93: 0 | J93: 0 | K93: 0 | L93: 0 | M93: 0 | N93: 0 | O93: 0 | P93: 0 | Q93: 0 | R93: 1 | S93: 0 | T93: 0 | U93: 0 | V93: 0 | W93: 0
A94: 702091A | B94: 0 | C94: 0 | D94: 0 | E94: 0 | F94: 0 | G94: 0 | H94: 0 | I94: 0 | J94: 0 | K94: 0 | L94: 0 | M94: 0 | N94: 0 | O94: 0 | P94: 0 | Q94: 0 | R94: 0 | S94: 0 | T94: 0 | U94: 0 | V94: 0 | W94: 0
A95: 702101A | B95: 16 | C95: 2463 | D95: 95 | E95: 24161 | F95: 4012 | G95: 0 | H95: 0 | I95: 0 | J95: 0 | K95: 0 | L95: 6034 | M95: 0 | N95: 0 | O95: 0 | P95: 0 | Q95: 0 | R95: 14 | S95: 0 | T95: 0 | U95: 0 | V95: 0 | W95: 0
A96: 702111B | B96: 0 | C96: 0 | D96: 0 | E96: 0 | F96: 0 | G96: 0 | H96: 0 | I96: 0 | J96: 0 | K96: 0 | L96: 0 | M96: 0 | N96: 0 | O96: 0 | P96: 0 | Q96: 0 | R96: 0 | S96: 0 | T96: 0 | U96: 0 | V96: 0 | W96: 0
A97: 702121A | B97: 2 | C97: 165 | D97: 8 | E97: 193 | F97: 0 | G97: 0 | H97: 0 | I97: 0 | J97: 0 | K97: 0 | L97: 0 | M97: 0 | N97: 0 | O97: 0 | P97: 0 | Q97: 0 | R97: 0 | S97: 0 | T97: 0 | U97: 0 | V97: 0 | W97: 0
A98: 702131A | B98: 9 | C98: 935 | D98: 11 | E98: 2899 | F98: 3696 | G98: 0 | H98: 0 | I98: 507 | J98: 0 | K98: 0 | L98: 0 | M98: 0 | N98: 0 | O98: 0 | P98: 0 | Q98: 0 | R98: 4 | S98: 0 | T98: 0 | U98: 0 | V98: 0 | W98: 1
A99: 702141A | B99: 5 | C99: 551 | D99: 9 | E99: 1124 | F99: 3561 | G99: 0 | H99: 0 | I99: 0 | J99: 0 | K99: 3561 | L99: 0 | M99: 0 | N99: 0 | O99: 0 | P99: 0 | Q99: 0 | R99: 16 | S99: 0 | T99: 0 | U99: 0 | V99: 16 | W99: 0
A100: 702151A | B100: 12 | C100: 1319 | D100: 37 | E100: 3257 | F100: 517 | G100: 0 | H100: 108 | I100: 0 | J100: 0 | K100: 0 | L100: 0 | M100: 0 | N100: 2110 | O100: 3931 | P100: 0 | Q100: 0 | R100: 4 | S100: 0 | T100: 1 | U100: 0 | V100: 0 | W100: 0
A101: 702161A | B101: 1 | C101: 35 | D101: 2 | E101: 428 | F101: 369 | G101: 0 | H101: 0 | I101: 0 | J101: 0 | K101: 0 | L101: 0 | M101: 0 | N101: 0 | O101: 0 | P101: 0 | Q101: 0 | R101: 8 | S101: 0 | T101: 0 | U101: 0 | V101: 0 | W101: 0
A102: 702201A | B102: 1 | C102: 132 | D102: 17 | E102: 3063 | F102: 1668 | G102: 0 | H102: 1611 | I102: 0 | J102: 0 | K102: 57 | L102: 0 | M102: 0 | N102: 0 | O102: 0 | P102: 0 | Q102: 0 | R102: 34 | S102: 0 | T102: 33 | U102: 0 | V102: 1 | W102: 0
A103: 702211A | B103: 7 | C103: 794 | D103: 7 | E103: 163 | F103: 157 | G103: 0 | H103: 0 | I103: 157 | J103: 0 | K103: 0 | L103: 1971 | M103: 1300 | N103: 0 | O103: 0 | P103: 0 | Q103: 0 | R103: 1 | S103: 0 | T103: 0 | U103: 0 | V103: 0 | W103: 1
A104: 702261A | B104: 6 | C104: 540 | D104: 43 | E104: 228 | F104: 1594 | G104: 0 | H104: 0 | I104: 0 | J104: 0 | K104: 420 | L104: 0 | M104: 0 | N104: 0 | O104: 0 | P104: 0 | Q104: 0 | R104: 39 | S104: 0 | T104: 0 | U104: 0 | V104: 12 | W104: 0
A105: 702401A | B105: 6 | C105: 759 | D105: 20 | E105: 339 | F105: 3773 | G105: 2571 | H105: 0 | I105: 0 | J105: 0 | K105: 0 | L105: 0 | M105: 0 | N105: 0 | O105: 0 | P105: 0 | Q105: 0 | R105: 72 | S105: 68 | T105: 0 | U105: 0 | V105: 0 | W105: 0
A106: 702421A | B106: 2 | C106: 1975 | D106: 0 | E106: 0 | F106: 0 | G106: 0 | H106: 0 | I106: 0 | J106: 0 | K106: 0 | L106: 0 | M106: 0 | N106: 0 | O106: 0 | P106: 0 | Q106: 0 | R106: 0 | S106: 0 | T106: 0 | U106: 0 | V106: 0 | W106: 0
A107: 702451A | B107: 14 | C107: 1925 | D107: 10 | E107: 842 | F107: 2555 | G107: 0 | H107: 0 | I107: 0 | J107: 0 | K107: 2555 | L107: 7088 | M107: 2255 | N107: 0 | O107: 0 | P107: 0 | Q107: 0 | R107: 28 | S107: 0 | T107: 0 | U107: 0 | V107: 28 | W107: 0
A108: 702471A | B108: 1 | C108: 83 | D108: 0 | E108: 0 | F108: 0 | G108: 0 | H108: 0 | I108: 0 | J108: 0 | K108: 0 | L108: 0 | M108: 0 | N108: 0 | O108: 0 | P108: 0 | Q108: 0 | R108: 0 | S108: 0 | T108: 0 | U108: 0 | V108: 0 | W108: 0
A109: 702481A | B109: 6 | C109: 838 | D109: 21 | E109: 5089 | F109: 567 | G109: 0 | H109: 0 | I109: 0 | J109: 0 | K109: 0 | L109: 240 | M109: 0 | N109: 0 | O109: 0 | P109: 0 | Q109: 0 | R109: 2 | S109: 0 | T109: 0 | U109: 0 | V109: 0 | W109: 0
A110: 702521A | B110: 0 | C110: 0 | D110: 0 | E110: 0 | F110: 199 | G110: 0 | H110: 0 | I110: 0 | J110: 0 | K110: 0 | L110: 0 | M110: 0 | N110: 0 | O110: 0 | P110: 0 | Q110: 0 | R110: 1 | S110: 0 | T110: 0 | U110: 0 | V110: 0 | W110: 0
A111: 702521B | B111: 1 | C111: 187 | D111: 0 | E111: 0 | F111: 0 | G111: 0 | H111: 0 | I111: 0 | J111: 0 | K111: 0 | L111: 0 | M111: 0 | N111: 1098 | O111: 0 | P111: 0 | Q111: 0 | R111: 0 | S111: 0 | T111: 0 | U111: 0 | V111: 0 | W111: 0
A112: 702531A | B112: 8 | C112: 1091 | D112: 50 | E112: 1528 | F112: 0 | G112: 0 | H112: 0 | I112: 0 | J112: 0 | K112: 0 | L112: 0 | M112: 0 | N112: 0 | O112: 0 | P112: 0 | Q112: 0 | R112: 0 | S112: 0 | T112: 0 | U112: 0 | V112: 0 | W112: 0
A113: 702551A | B113: 11 | C113: 1629 | D113: 72 | E113: 4374 | F113: 2546 | G113: 0 | H113: 1412 | I113: 0 | J113: 0 | K113: 0 | L113: 2599 | M113: 0 | N113: 623 | O113: 0 | P113: 0 | Q113: 0 | R113: 15 | S113: 0 | T113: 4 | U113: 0 | V113: 0 | W113: 0
A114: 702561B | B114: 6 | C114: 787 | D114: 49 | E114: 567 | F114: 0 | G114: 0 | H114: 0 | I114: 0 | J114: 0 | K114: 0 | L114: 7071 | M114: 1282 | N114: 18507 | O114: 0 | P114: 0 | Q114: 0 | R114: 0 | S114: 0 | T114: 0 | U114: 0 | V114: 0 | W114: 0
A115: 702581A | B115: 8 | C115: 3756 | D115: 14 | E115: 1647 | F115: 1203 | G115: 0 | H115: 0 | I115: 0 | J115: 0 | K115: 0 | L115: 0 | M115: 0 | N115: 0 | O115: 0 | P115: 0 | Q115: 0 | R115: 7 | S115: 0 | T115: 0 | U115: 0 | V115: 0 | W115: 0
A116: 702581B | B116: 0 | C116: 0 | D116: 0 | E116: 0 | F116: 0 | G116: 0 | H116: 0 | I116: 0 | J116: 0 | K116: 0 | L116: 0 | M116: 0 | N116: 0 | O116: 0 | P116: 0 | Q116: 0 | R116: 0 | S116: 0 | T116: 0 | U116: 0 | V116: 0 | W116: 0
A117: 702591A | B117: 4 | C117: 597 | D117: 13 | E117: 511 | F117: 153 | G117: 0 | H117: 0 | I117: 153 | J117: 0 | K117: 0 | L117: 265 | M117: 0 | N117: 0 | O117: 0 | P117: 0 | Q117: 0 | R117: 2 | S117: 0 | T117: 0 | U117: 0 | V117: 0 | W117: 2
A118: 702601A | B118: 0 | C118: 0 | D118: 0 | E118: 0 | F118: 0 | G118: 0 | H118: 0 | I118: 0 | J118: 0 | K118: 0 | L118: 0 | M118: 0 | N118: 0 | O118: 0 | P118: 0 | Q118: 0 | R118: 0 | S118: 0 | T118: 0 | U118: 0 | V118: 0 | W118: 0
A119: 702601B | B119: 0 | C119: 0 | D119: 0 | E119: 0 | F119: 0 | G119: 0 | H119: 0 | I119: 0 | J119: 0 | K119: 0 | L119: 0 | M119: 0 | N119: 0 | O119: 0 | P119: 0 | Q119: 0 | R119: 0 | S119: 0 | T119: 0 | U119: 0 | V119: 0 | W119: 0
A120: 702611A | B120: 7 | C120: 1011 | D120: 36 | E120: 2968 | F120: 354 | G120: 0 | H120: 354 | I120: 0 | J120: 0 | K120: 0 | L120: 0 | M120: 0 | N120: 1111 | O120: 0 | P120: 0 | Q120: 0 | R120: 2 | S120: 0 | T120: 2 | U120: 0 | V120: 0 | W120: 0
A121: 702621A | B121: 2 | C121: 882 | D121: 2 | E121: 10 | F121: 0 | G121: 0 | H121: 0 | I121: 0 | J121: 0 | K121: 0 | L121: 0 | M121: 0 | N121: 0 | O121: 0 | P121: 0 | Q121: 0 | R121: 0 | S121: 0 | T121: 0 | U121: 0 | V121: 0 | W121: 0
A122: 702641A | B122: 3 | C122: 847 | D122: 0 | E122: 0 | F122: 0 | G122: 0 | H122: 0 | I122: 0 | J122: 0 | K122: 0 | L122: 136 | M122: 0 | N122: 0 | O122: 0 | P122: 0 | Q122: 0 | R122: 1 | S122: 0 | T122: 0 | U122: 0 | V122: 0 | W122: 0
A123: 702651A | B123: 1 | C123: 67 | D123: 1 | E123: 5 | F123: 0 | G123: 0 | H123: 0 | I123: 0 | J123: 0 | K123: 0 | L123: 0 | M123: 0 | N123: 0 | O123: 0 | P123: 0 | Q123: 0 | R123: 0 | S123: 0 | T123: 0 | U123: 0 | V123: 0 | W123: 0
A124: 702671A | B124: 0 | C124: 0 | D124: 1 | E124: 12 | F124: 0 | G124: 0 | H124: 0 | I124: 0 | J124: 0 | K124: 0 | L124: 0 | M124: 0 | N124: 54 | O124: 0 | P124: 0 | Q124: 0 | R124: 0 | S124: 0 | T124: 0 | U124: 0 | V124: 0 | W124: 0
A125: 702701A | B125: 0 | C125: 0 | D125: 0 | E125: 0 | F125: 0 | G125: 0 | H125: 0 | I125: 0 | J125: 0 | K125: 0 | L125: 0 | M125: 0 | N125: 0 | O125: 0 | P125: 0 | Q125: 0 | R125: 0 | S125: 0 | T125: 0 | U125: 0 | V125: 0 | W125: 0
A126: 702741A | B126: 9 | C126: 630 | D126: 4 | E126: 43 | F126: 509 | G126: 0 | H126: 0 | I126: 0 | J126: 0 | K126: 509 | L126: 0 | M126: 0 | N126: 0 | O126: 0 | P126: 3092 | Q126: 0 | R126: 3 | S126: 0 | T126: 0 | U126: 0 | V126: 3 | W126: 0
A127: 702741B | B127: 0 | C127: 0 | D127: 3 | E127: 8 | F127: 0 | G127: 0 | H127: 0 | I127: 0 | J127: 0 | K127: 0 | L127: 0 | M127: 0 | N127: 501 | O127: 0 | P127: 0 | Q127: 0 | R127: 0 | S127: 0 | T127: 0 | U127: 0 | V127: 0 | W127: 0
A128: 702761A | B128: 1 | C128: 88 | D128: 73 | E128: 4222 | F128: 0 | G128: 0 | H128: 0 | I128: 0 | J128: 0 | K128: 0 | L128: 0 | M128: 0 | N128: 0 | O128: 0 | P128: 0 | Q128: 0 | R128: 0 | S128: 0 | T128: 0 | U128: 0 | V128: 0 | W128: 0
A129: 702791A | B129: 1 | C129: 252 | D129: 9 | E129: 122 | F129: 76 | G129: 0 | H129: 76 | I129: 0 | J129: 0 | K129: 0 | L129: 0 | M129: 0 | N129: 0 | O129: 0 | P129: 0 | Q129: 0 | R129: 1 | S129: 0 | T129: 1 | U129: 0 | V129: 0 | W129: 0
A130: 702811A | B130: 1 | C130: 79 | D130: 22 | E130: 652 | F130: 10755 | G130: 0 | H130: 0 | I130: 0 | J130: 0 | K130: 365 | L130: 0 | M130: 0 | N130: 7493 | O130: 0 | P130: 9972 | Q130: 0 | R130: 24 | S130: 0 | T130: 0 | U130: 0 | V130: 5 | W130: 0
A131: 702851A | B131: 0 | C131: 0 | D131: 0 | E131: 0 | F131: 0 | G131: 0 | H131: 0 | I131: 0 | J131: 0 | K131: 0 | L131: 0 | M131: 0 | N131: 0 | O131: 0 | P131: 0 | Q131: 0 | R131: 0 | S131: 0 | T131: 0 | U131: 0 | V131: 0 | W131: 0
A132: 702911A | B132: 0 | C132: 0 | D132: 0 | E132: 0 | F132: 0 | G132: 0 | H132: 0 | I132: 0 | J132: 0 | K132: 0 | L132: 0 | M132: 0 | N132: 0 | O132: 0 | P132: 0 | Q132: 0 | R132: 0 | S132: 0 | T132: 0 | U132: 0 | V132: 0 | W132: 0
A133: 702931A | B133: 6 | C133: 4157 | D133: 17 | E133: 983 | F133: 0 | G133: 0 | H133: 0 | I133: 0 | J133: 0 | K133: 0 | L133: 0 | M133: 0 | N133: 0 | O133: 0 | P133: 0 | Q133: 0 | R133: 0 | S133: 0 | T133: 0 | U133: 0 | V133: 0 | W133: 0
A134: 702951A | B134: 19 | C134: 4807 | D134: 12 | E134: 484 | F134: 539 | G134: 0 | H134: 0 | I134: 0 | J134: 0 | K134: 0 | L134: 0 | M134: 0 | N134: 0 | O134: 0 | P134: 0 | Q134: 0 | R134: 7 | S134: 0 | T134: 4 | U134: 0 | V134: 0 | W134: 0
A135: 702961A | B135: 0 | C135: 0 | D135: 0 | E135: 0 | F135: 0 | G135: 0 | H135: 0 | I135: 0 | J135: 0 | K135: 0 | L135: 0 | M135: 0 | N135: 0 | O135: 0 | P135: 0 | Q135: 0 | R135: 0 | S135: 0 | T135: 0 | U135: 0 | V135: 0 | W135: 0
A136: 702961B | B136: 0 | C136: 0 | D136: 1 | E136: 7 | F136: 0 | G136: 0 | H136: 0 | I136: 0 | J136: 0 | K136: 0 | L136: 0 | M136: 0 | N136: 0 | O136: 0 | P136: 0 | Q136: 0 | R136: 0 | S136: 0 | T136: 0 | U136: 0 | V136: 0 | W136: 0
A137: 702981A | B137: 8 | C137: 1030 | D137: 76 | E137: 1824 | F137: 990 | G137: 0 | H137: 0 | I137: 0 | J137: 0 | K137: 0 | L137: 0 | M137: 0 | N137: 0 | O137: 0 | P137: 0 | Q137: 0 | R137: 3 | S137: 0 | T137: 0 | U137: 0 | V137: 0 | W137: 0
A138: 703011A | B138: 18 | C138: 4528 | D138: 91 | E138: 2734 | F138: 0 | G138: 0 | H138: 0 | I138: 0 | J138: 0 | K138: 0 | L138: 1228 | M138: 30 | N138: 0 | O138: 0 | P138: 0 | Q138: 0 | R138: 0 | S138: 0 | T138: 0 | U138: 0 | V138: 0 | W138: 0
A139: 703061A | B139: 5 | C139: 944 | D139: 13 | E139: 380 | F139: 835 | G139: 80 | H139: 0 | I139: 755 | J139: 0 | K139: 0 | L139: 0 | M139: 0 | N139: 0 | O139: 4936 | P139: 0 | Q139: 0 | R139: 6 | S139: 1 | T139: 0 | U139: 0 | V139: 0 | W139: 5
A140: 703081A | B140: 0 | C140: 0 | D140: 0 | E140: 0 | F140: 0 | G140: 0 | H140: 0 | I140: 0 | J140: 0 | K140: 0 | L140: 0 | M140: 0 | N140: 0 | O140: 0 | P140: 0 | Q140: 0 | R140: 0 | S140: 0 | T140: 0 | U140: 0 | V140: 0 | W140: 0
A141: 703091A | B141: 5 | C141: 1356 | D141: 8 | E141: 496 | F141: 1767 | G141: 480 | H141: 113 | I141: 0 | J141: 0 | K141: 0 | L141: 0 | M141: 0 | N141: 0 | O141: 0 | P141: 0 | Q141: 0 | R141: 11 | S141: 8 | T141: 1 | U141: 0 | V141: 0 | W141: 0
A142: 703101A | B142: 0 | C142: 0 | D142: 3 | E142: 23 | F142: 0 | G142: 0 | H142: 0 | I142: 0 | J142: 0 | K142: 0 | L142: 0 | M142: 0 | N142: 636 | O142: 0 | P142: 0 | Q142: 0 | R142: 0 | S142: 0 | T142: 0 | U142: 0 | V142: 0 | W142: 0
A143: 703131A | B143: 19 | C143: 8883 | D143: 97 | E143: 26413 | F143: 1786 | G143: 114 | H143: 22 | I143: 219 | J143: 0 | K143: 328 | L143: 2010 | M143: 952 | N143: 3140 | O143: 0 | P143: 6674 | Q143: 0 | R143: 18 | S143: 2 | T143: 1 | U143: 0 | V143: 8 | W143: 1
A144: 703141A | B144: 0 | C144: 0 | D144: 0 | E144: 0 | F144: 0 | G144: 0 | H144: 0 | I144: 0 | J144: 0 | K144: 0 | L144: 24 | M144: 0 | N144: 0 | O144: 0 | P144: 0 | Q144: 0 | R144: 0 | S144: 0 | T144: 0 | U144: 0 | V144: 0 | W144: 0
A145: 703151A | B145: 12 | C145: 3519 | D145: 18 | E145: 340 | F145: 292 | G145: 180 | H145: 0 | I145: 0 | J145: 0 | K145: 0 | L145: 0 | M145: 0 | N145: 9803 | O145: 9363 | P145: 0 | Q145: 0 | R145: 3 | S145: 2 | T145: 0 | U145: 0 | V145: 0 | W145: 0
A146: 703152C | B146: 0 | C146: 0 | D146: 0 | E146: 0 | F146: 0 | G146: 0 | H146: 0 | I146: 0 | J146: 0 | K146: 0 | L146: 0 | M146: 0 | N146: 0 | O146: 0 | P146: 0 | Q146: 0 | R146: 0 | S146: 0 | T146: 0 | U146: 0 | V146: 0 | W146: 0
A147: 703161A | B147: 7 | C147: 671 | D147: 8 | E147: 464 | F147: 311 | G147: 0 | H147: 0 | I147: 0 | J147: 0 | K147: 0 | L147: 0 | M147: 0 | N147: 2202 | O147: 0 | P147: 0 | Q147: 0 | R147: 1 | S147: 0 | T147: 0 | U147: 0 | V147: 0 | W147: 0
A148: 703171A | B148: 1 | C148: 122 | D148: 8 | E148: 158 | F148: 1725 | G148: 0 | H148: 0 | I148: 0 | J148: 0 | K148: 0 | L148: 233 | M148: 0 | N148: 0 | O148: 0 | P148: 0 | Q148: 0 | R148: 32 | S148: 0 | T148: 0 | U148: 0 | V148: 0 | W148: 0
A149: 703191A | B149: 13 | C149: 7806 | D149: 2 | E149: 32 | F149: 848 | G149: 0 | H149: 0 | I149: 0 | J149: 0 | K149: 0 | L149: 0 | M149: 0 | N149: 0 | O149: 0 | P149: 0 | Q149: 0 | R149: 2 | S149: 0 | T149: 0 | U149: 0 | V149: 0 | W149: 0
A150: 703231A | B150: 0 | C150: 0 | D150: 0 | E150: 0 | F150: 0 | G150: 0 | H150: 0 | I150: 0 | J150: 0 | K150: 0 | L150: 0 | M150: 0 | N150: 0 | O150: 0 | P150: 0 | Q150: 0 | R150: 0 | S150: 0 | T150: 0 | U150: 0 | V150: 0 | W150: 0
A151: 703241A | B151: 33 | C151: 527144 | D151: 77 | E151: 4403 | F151: 0 | G151: 0 | H151: 0 | I151: 0 | J151: 0 | K151: 0 | L151: 0 | M151: 0 | N151: 4515 | O151: 71353 | P151: 1520 | Q151: 0 | R151: 0 | S151: 0 | T151: 0 | U151: 0 | V151: 0 | W151: 0
A152: 703271A | B152: 12 | C152: 1261 | D152: 59 | E152: 2633 | F152: 0 | G152: 0 | H152: 0 | I152: 0 | J152: 0 | K152: 0 | L152: 0 | M152: 0 | N152: 0 | O152: 0 | P152: 0 | Q152: 0 | R152: 0 | S152: 0 | T152: 0 | U152: 0 | V152: 0 | W152: 0
A153: 703301A | B153: 16 | C153: 2945 | D153: 15 | E153: 157 | F153: 91 | G153: 0 | H153: 0 | I153: 0 | J153: 0 | K153: 91 | L153: 413 | M153: 54 | N153: 0 | O153: 0 | P153: 0 | Q153: 0 | R153: 1 | S153: 0 | T153: 0 | U153: 0 | V153: 1 | W153: 0
A154: 703311A | B154: 47 | C154: 20661 | D154: 16 | E154: 808 | F154: 0 | G154: 0 | H154: 0 | I154: 0 | J154: 0 | K154: 0 | L154: 156 | M154: 27 | N154: 1788 | O154: 18710 | P154: 0 | Q154: 0 | R154: 0 | S154: 0 | T154: 0 | U154: 0 | V154: 0 | W154: 0
A155: 703321A | B155: 6 | C155: 998 | D155: 21 | E155: 811 | F155: 145 | G155: 0 | H155: 0 | I155: 0 | J155: 0 | K155: 0 | L155: 0 | M155: 0 | N155: 0 | O155: 0 | P155: 0 | Q155: 0 | R155: 1 | S155: 0 | T155: 0 | U155: 0 | V155: 0 | W155: 0
A156: 703341A | B156: 5 | C156: 320 | D156: 4 | E156: 1098 | F156: 105 | G156: 0 | H156: 105 | I156: 0 | J156: 0 | K156: 0 | L156: 0 | M156: 0 | N156: 0 | O156: 0 | P156: 0 | Q156: 0 | R156: 1 | S156: 0 | T156: 1 | U156: 0 | V156: 0 | W156: 0
A157: 703351A | B157: 5 | C157: 165 | D157: 24 | E157: 168 | F157: 227 | G157: 0 | H157: 0 | I157: 0 | J157: 0 | K157: 0 | L157: 0 | M157: 0 | N157: 221 | O157: 0 | P157: 0 | Q157: 0 | R157: 2 | S157: 0 | T157: 0 | U157: 0 | V157: 0 | W157: 0
A158: 703361A | B158: 0 | C158: 0 | D158: 3 | E158: 19 | F158: 0 | G158: 0 | H158: 0 | I158: 0 | J158: 0 | K158: 0 | L158: 0 | M158: 0 | N158: 0 | O158: 0 | P158: 0 | Q158: 0 | R158: 1 | S158: 0 | T158: 0 | U158: 0 | V158: 0 | W158: 0
A159: 703381A | B159: 0 | C159: 0 | D159: 0 | E159: 0 | F159: 0 | G159: 0 | H159: 0 | I159: 0 | J159: 0 | K159: 0 | L159: 0 | M159: 0 | N159: 0 | O159: 0 | P159: 0 | Q159: 0 | R159: 0 | S159: 0 | T159: 0 | U159: 0 | V159: 0 | W159: 0
A160: 703411B | B160: 1 | C160: 316 | D160: 2 | E160: 56 | F160: 0 | G160: 0 | H160: 0 | I160: 0 | J160: 0 | K160: 0 | L160: 0 | M160: 0 | N160: 857 | O160: 0 | P160: 0 | Q160: 0 | R160: 0 | S160: 0 | T160: 0 | U160: 0 | V160: 0 | W160: 0
A161: 703441A | B161: 0 | C161: 0 | D161: 0 | E161: 0 | F161: 0 | G161: 0 | H161: 0 | I161: 0 | J161: 0 | K161: 0 | L161: 0 | M161: 0 | N161: 0 | O161: 0 | P161: 0 | Q161: 0 | R161: 0 | S161: 0 | T161: 0 | U161: 0 | V161: 0 | W161: 0
A162: 703471A | B162: 0 | C162: 0 | D162: 1 | E162: 13 | F162: 0 | G162: 0 | H162: 0 | I162: 0 | J162: 0 | K162: 0 | L162: 0 | M162: 0 | N162: 0 | O162: 0 | P162: 0 | Q162: 0 | R162: 0 | S162: 0 | T162: 0 | U162: 0 | V162: 0 | W162: 0
A163: 703511A | B163: 9 | C163: 1014 | D163: 7 | E163: 81 | F163: 864 | G163: 0 | H163: 742 | I163: 0 | J163: 0 | K163: 0 | L163: 0 | M163: 0 | N163: 1051 | O163: 0 | P163: 0 | Q163: 0 | R163: 5 | S163: 0 | T163: 4 | U163: 0 | V163: 0 | W163: 0
A164: 703531A | B164: 3 | C164: 720 | D164: 15 | E164: 513 | F164: 706 | G164: 0 | H164: 706 | I164: 0 | J164: 0 | K164: 0 | L164: 0 | M164: 0 | N164: 0 | O164: 0 | P164: 0 | Q164: 0 | R164: 3 | S164: 0 | T164: 3 | U164: 0 | V164: 0 | W164: 0
A165: 703542B | B165: 0 | C165: 0 | D165: 1 | E165: 4 | F165: 0 | G165: 0 | H165: 0 | I165: 0 | J165: 0 | K165: 0 | L165: 213 | M165: 0 | N165: 0 | O165: 0 | P165: 0 | Q165: 0 | R165: 0 | S165: 0 | T165: 0 | U165: 0 | V165: 0 | W165: 0
A166: 703561A | B166: 22 | C166: 2751 | D166: 11 | E166: 883 | F166: 553 | G166: 0 | H166: 0 | I166: 0 | J166: 373 | K166: 0 | L166: 0 | M166: 0 | N166: 1031 | O166: 0 | P166: 0 | Q166: 0 | R166: 4 | S166: 0 | T166: 0 | U166: 1 | V166: 0 | W166: 0
A167: 703571A | B167: 8 | C167: 994 | D167: 15 | E167: 686 | F167: 450 | G167: 35 | H167: 58 | I167: 0 | J167: 58 | K167: 0 | L167: 3831 | M167: 210 | N167: 0 | O167: 0 | P167: 0 | Q167: 0 | R167: 5 | S167: 1 | T167: 1 | U167: 1 | V167: 0 | W167: 0
A168: 703621A | B168: 19 | C168: 2321 | D168: 1 | E168: 8 | F168: 277 | G168: 0 | H168: 80 | I168: 0 | J168: 0 | K168: 0 | L168: 0 | M168: 0 | N168: 188 | O168: 0 | P168: 0 | Q168: 0 | R168: 2 | S168: 0 | T168: 1 | U168: 0 | V168: 0 | W168: 0
A169: 703631A | B169: 1 | C169: 20 | D169: 2 | E169: 24 | F169: 0 | G169: 0 | H169: 0 | I169: 0 | J169: 0 | K169: 0 | L169: 0 | M169: 0 | N169: 0 | O169: 0 | P169: 0 | Q169: 0 | R169: 0 | S169: 0 | T169: 0 | U169: 0 | V169: 0 | W169: 0
A170: 703651A | B170: 2 | C170: 179 | D170: 4 | E170: 109 | F170: 0 | G170: 0 | H170: 0 | I170: 0 | J170: 0 | K170: 0 | L170: 0 | M170: 0 | N170: 0 | O170: 0 | P170: 0 | Q170: 0 | R170: 0 | S170: 0 | T170: 0 | U170: 0 | V170: 0 | W170: 0
A171: 703661A | B171: 0 | C171: 0 | D171: 0 | E171: 0 | F171: 0 | G171: 0 | H171: 0 | I171: 0 | J171: 0 | K171: 0 | L171: 0 | M171: 0 | N171: 0 | O171: 0 | P171: 0 | Q171: 0 | R171: 0 | S171: 0 | T171: 0 | U171: 0 | V171: 0 | W171: 0
A172: 703731A | B172: 12 | C172: 2662 | D172: 30 | E172: 5897 | F172: 5299 | G172: 0 | H172: 99 | I172: 0 | J172: 0 | K172: 0 | L172: 46340 | M172: 848 | N172: 0 | O172: 0 | P172: 0 | Q172: 0 | R172: 2 | S172: 0 | T172: 1 | U172: 0 | V172: 0 | W172: 0
A173: 703761A | B173: 3 | C173: 783 | D173: 17 | E173: 154 | F173: 315 | G173: 0 | H173: 0 | I173: 160 | J173: 0 | K173: 0 | L173: 0 | M173: 0 | N173: 0 | O173: 0 | P173: 0 | Q173: 0 | R173: 2 | S173: 0 | T173: 0 | U173: 0 | V173: 0 | W173: 1
A174: 703761D | B174: 0 | C174: 0 | D174: 0 | E174: 0 | F174: 2590 | G174: 0 | H174: 0 | I174: 698 | J174: 0 | K174: 0 | L174: 0 | M174: 0 | N174: 0 | O174: 0 | P174: 0 | Q174: 0 | R174: 8 | S174: 0 | T174: 0 | U174: 0 | V174: 0 | W174: 2
A175: 703762B | B175: 2 | C175: 2061 | D175: 2 | E175: 60 | F175: 426 | G175: 0 | H175: 0 | I175: 0 | J175: 0 | K175: 298 | L175: 106 | M175: 0 | N175: 0 | O175: 0 | P175: 0 | Q175: 0 | R175: 5 | S175: 0 | T175: 0 | U175: 0 | V175: 4 | W175: 0
A176: 703763C | B176: 0 | C176: 0 | D176: 5 | E176: 135 | F176: 0 | G176: 0 | H176: 0 | I176: 0 | J176: 0 | K176: 0 | L176: 0 | M176: 0 | N176: 0 | O176: 0 | P176: 0 | Q176: 0 | R176: 0 | S176: 0 | T176: 0 | U176: 0 | V176: 0 | W176: 0
A177: 703791A | B177: 24 | C177: 3448 | D177: 22 | E177: 941 | F177: 702 | G177: 0 | H177: 0 | I177: 0 | J177: 0 | K177: 0 | L177: 370 | M177: 43 | N177: 1073 | O177: 0 | P177: 0 | Q177: 0 | R177: 8 | S177: 0 | T177: 0 | U177: 0 | V177: 0 | W177: 0
A178: 703801A | B178: 10 | C178: 2248 | D178: 7 | E178: 85 | F178: 1361 | G178: 0 | H178: 0 | I178: 0 | J178: 0 | K178: 0 | L178: 510 | M178: 0 | N178: 214 | O178: 0 | P178: 0 | Q178: 0 | R178: 15 | S178: 0 | T178: 0 | U178: 0 | V178: 0 | W178: 0
A179: 703801C | B179: 0 | C179: 0 | D179: 0 | E179: 0 | F179: 0 | G179: 0 | H179: 0 | I179: 0 | J179: 0 | K179: 0 | L179: 0 | M179: 0 | N179: 0 | O179: 0 | P179: 0 | Q179: 0 | R179: 0 | S179: 0 | T179: 0 | U179: 0 | V179: 0 | W179: 0
A180: 703891A | B180: 14 | C180: 5485 | D180: 5 | E180: 667 | F180: 0 | G180: 0 | H180: 0 | I180: 0 | J180: 0 | K180: 0 | L180: 0 | M180: 0 | N180: 6598 | O180: 7821 | P180: 0 | Q180: 0 | R180: 0 | S180: 0 | T180: 0 | U180: 0 | V180: 0 | W180: 0
A181: 703901A | B181: 0 | C181: 0 | D181: 0 | E181: 0 | F181: 0 | G181: 0 | H181: 0 | I181: 0 | J181: 0 | K181: 0 | L181: 0 | M181: 0 | N181: 0 | O181: 0 | P181: 0 | Q181: 0 | R181: 0 | S181: 0 | T181: 0 | U181: 0 | V181: 0 | W181: 0
A182: 703961A | B182: 9 | C182: 1127 | D182: 28 | E182: 243 | F182: 2880 | G182: 520 | H182: 0 | I182: 987 | J182: 0 | K182: 1141 | L182: 0 | M182: 0 | N182: 892 | O182: 0 | P182: 0 | Q182: 0 | R182: 27 | S182: 10 | T182: 0 | U182: 0 | V182: 13 | W182: 3
A183: 703981A | B183: 3 | C183: 183 | D183: 4 | E183: 100 | F183: 0 | G183: 0 | H183: 0 | I183: 0 | J183: 0 | K183: 0 | L183: 0 | M183: 0 | N183: 0 | O183: 0 | P183: 0 | Q183: 0 | R183: 0 | S183: 0 | T183: 0 | U183: 0 | V183: 0 | W183: 0
A184: 703981C | B184: 0 | C184: 0 | D184: 0 | E184: 0 | F184: 0 | G184: 0 | H184: 0 | I184: 0 | J184: 0 | K184: 0 | L184: 0 | M184: 0 | N184: 0 | O184: 0 | P184: 0 | Q184: 0 | R184: 0 | S184: 0 | T184: 0 | U184: 0 | V184: 0 | W184: 0
A185: 703982D | B185: 1 | C185: 94 | D185: 0 | E185: 0 | F185: 0 | G185: 0 | H185: 0 | I185: 0 | J185: 0 | K185: 0 | L185: 0 | M185: 0 | N185: 0 | O185: 0 | P185: 0 | Q185: 0 | R185: 0 | S185: 0 | T185: 0 | U185: 0 | V185: 0 | W185: 0
A186: 703991A | B186: 7 | C186: 1441 | D186: 27 | E186: 129 | F186: 130 | G186: 0 | H186: 0 | I186: 0 | J186: 0 | K186: 0 | L186: 3570 | M186: 748 | N186: 0 | O186: 11783 | P186: 2925 | Q186: 0 | R186: 1 | S186: 0 | T186: 0 | U186: 0 | V186: 0 | W186: 0
A187: 704001A | B187: 4 | C187: 396 | D187: 12 | E187: 1282 | F187: 0 | G187: 0 | H187: 0 | I187: 0 | J187: 0 | K187: 0 | L187: 0 | M187: 0 | N187: 828 | O187: 0 | P187: 0 | Q187: 0 | R187: 0 | S187: 0 | T187: 0 | U187: 0 | V187: 0 | W187: 0
A188: 704021A | B188: 1 | C188: 5 | D188: 0 | E188: 0 | F188: 0 | G188: 0 | H188: 0 | I188: 0 | J188: 0 | K188: 0 | L188: 0 | M188: 0 | N188: 0 | O188: 0 | P188: 0 | Q188: 0 | R188: 0 | S188: 0 | T188: 0 | U188: 0 | V188: 0 | W188: 0
A189: 704041A | B189: 1 | C189: 15 | D189: 3 | E189: 431 | F189: 75 | G189: 0 | H189: 75 | I189: 0 | J189: 0 | K189: 0 | L189: 0 | M189: 0 | N189: 0 | O189: 0 | P189: 0 | Q189: 0 | R189: 1 | S189: 0 | T189: 1 | U189: 0 | V189: 0 | W189: 0
A190: 704051A | B190: 10 | C190: 974 | D190: 151 | E190: 17321 | F190: 190 | G190: 0 | H190: 190 | I190: 0 | J190: 0 | K190: 0 | L190: 0 | M190: 0 | N190: 0 | O190: 0 | P190: 16552 | Q190: 0 | R190: 2 | S190: 0 | T190: 2 | U190: 0 | V190: 0 | W190: 0
A191: 704081A | B191: 1 | C191: 217 | D191: 42 | E191: 5516 | F191: 0 | G191: 0 | H191: 0 | I191: 0 | J191: 0 | K191: 0 | L191: 0 | M191: 0 | N191: 0 | O191: 0 | P191: 0 | Q191: 0 | R191: 0 | S191: 0 | T191: 0 | U191: 0 | V191: 0 | W191: 0
A192: 704111A | B192: 1 | C192: 97 | D192: 5 | E192: 35 | F192: 371 | G192: 0 | H192: 0 | I192: 371 | J192: 0 | K192: 0 | L192: 0 | M192: 0 | N192: 0 | O192: 0 | P192: 0 | Q192: 0 | R192: 2 | S192: 0 | T192: 0 | U192: 0 | V192: 0 | W192: 2
A193: 704121A | B193: 1 | C193: 75 | D193: 32 | E193: 409 | F193: 0 | G193: 0 | H193: 0 | I193: 0 | J193: 0 | K193: 0 | L193: 0 | M193: 0 | N193: 0 | O193: 0 | P193: 0 | Q193: 0 | R193: 0 | S193: 0 | T193: 0 | U193: 0 | V193: 0 | W193: 0
A194: 704131A | B194: 1 | C194: 132 | D194: 26 | E194: 1076 | F194: 0 | G194: 0 | H194: 0 | I194: 0 | J194: 0 | K194: 0 | L194: 1587 | M194: 0 | N194: 0 | O194: 0 | P194: 0 | Q194: 0 | R194: 0 | S194: 0 | T194: 0 | U194: 0 | V194: 0 | W194: 0
A195: 704141A | B195: 0 | C195: 0 | D195: 0 | E195: 0 | F195: 0 | G195: 0 | H195: 0 | I195: 0 | J195: 0 | K195: 0 | L195: 0 | M195: 0 | N195: 0 | O195: 0 | P195: 0 | Q195: 0 | R195: 0 | S195: 0 | T195: 0 | U195: 0 | V195: 0 | W195: 0
A196: 704141B | B196: 16 | C196: 2171 | D196: 2 | E196: 84 | F196: 0 | G196: 0 | H196: 0 | I196: 0 | J196: 0 | K196: 0 | L196: 0 | M196: 0 | N196: 0 | O196: 9946 | P196: 0 | Q196: 0 | R196: 0 | S196: 0 | T196: 0 | U196: 0 | V196: 0 | W196: 0
A197: 704161A | B197: 3 | C197: 262 | D197: 57 | E197: 4871 | F197: 0 | G197: 0 | H197: 0 | I197: 0 | J197: 0 | K197: 0 | L197: 0 | M197: 0 | N197: 644 | O197: 0 | P197: 0 | Q197: 0 | R197: 0 | S197: 0 | T197: 0 | U197: 0 | V197: 0 | W197: 0
A198: 704171A | B198: 4 | C198: 125 | D198: 1 | E198: 4 | F198: 0 | G198: 0 | H198: 0 | I198: 0 | J198: 0 | K198: 0 | L198: 0 | M198: 0 | N198: 0 | O198: 0 | P198: 0 | Q198: 0 | R198: 0 | S198: 0 | T198: 0 | U198: 0 | V198: 0 | W198: 0
A199: 704181A | B199: 9 | C199: 1402 | D199: 5 | E199: 540 | F199: 1023 | G199: 199 | H199: 0 | I199: 0 | J199: 625 | K199: 0 | L199: 787 | M199: 198 | N199: 0 | O199: 0 | P199: 0 | Q199: 0 | R199: 11 | S199: 1 | T199: 0 | U199: 5 | V199: 0 | W199: 0
A200: 704181B | B200: 10 | C200: 1247 | D200: 15 | E200: 764 | F200: 599 | G200: 0 | H200: 0 | I200: 480 | J200: 29 | K200: 0 | L200: 0 | M200: 0 | N200: 2402 | O200: 0 | P200: 0 | Q200: 0 | R200: 3 | S200: 0 | T200: 0 | U200: 1 | V200: 0 | W200: 1
... 2050 more rows

Sheet INFO
D1: Copyright © 2021 Society of Actuaries. All Rights Reserved.
A6: Health Care Cost Trends
A9: Model Marketplace Simulation Instructions

Sheet Plan Input
B1: Copyright © 2021 Society of Actuaries. All Rights Reserved.
A6: Health Care Cost Trends
A9: Plan Inputs
A11: Plan | B11: 1 | C11: 2 | D11: 3 | E11: 4 | F11: 5 | G11: 6 | H11: 7 | I11: 8
A12: Include in Simulation (0/1) | B12: 0 | C12: 1 | D12: 1 | E12: 1 | F12: 1 | G12: 0 | H12: 1 | I12: 1
A13: Office: Copay or D&C | B13: Copay | C13: D&C | D13: Copay | E13: D&C | F13: D&C | G13: D&C | H13: Copay | I13: D&C
A14: Office Copay (if appl) | B14: 50 | D14: 20 | H14: 10
A15: Pharmacy: Copay or D&C | B15: Copay | C15: Copay | D15: Copay | E15: D&C | F15: D&C | G15: D&C | H15: D&C | I15: Copay
A16: Pharmacy Copay (if appl) | B16: 50 | C16: 0 | D16: 20 | I16: 15
A17: Deductible | B17: 1000 | C17: 2000 | D17: 1750 | E17: 1000 | F17: 1500 | G17: 250 | H17: 1500 | I17: 2000
A18: Coinsurance (Member Portion) | B18: 0.1 | C18: 0.1 | D18: 0.15 | E18: 0.15 | F18: 0.1 | G18: 0.25 | H18: 0.2 | I18: 0.1
A19: Maximum OOP | B19: 7500 | C19: 7500 | D19: 7500 | E19: 7500 | F19: 7500 | G19: 7500 | H19: 5000 | I19: 5000
A20: Pricing Loss Ratio | B20: 0.85 | C20: 0.85 | D20: 0.85 | E20: 0.85 | F20: 0.85 | G20: 0.85 | H20: 0.85 | I20: 0.85
A22: Base Premium | B22: 0 | C22: 2935.705898 | D22: 2884.219517 | E22: 2908.223864 | F22: 2910.798207 | G22: 0 | H22: 2925.233824 | I22: 2879.356066
A23: =SUM(B12:I12) -> 6
A26: 2800 | B26: Second Lowest Silver Premium
A27: 1 | B27: Include Subsidy Effects

Sheet UR Adjust (hidden)
H1: Adjustment
C2: MEPS | D2: MarketScan | E2: OLDW | H2: MarketScan | I2: OLDW | J2: Mean
A3: Pharmacy | B3: Mean $ | C3: 827 | D3: 971 | E3: 833 | G3: Total | H3: =D3/C3 -> 1.174123337 | I3: =E3/C3 -> 1.007255139 | J3: =AVERAGE(H3:I3) -> 1.090689238 | K3: 1.090689238
B4: $/fill | C4: 114 | D4: 99 | E4: 90 | G4: Use | H4: =D5/C5 -> 1.352020813 | I4: =E5/C5 -> 1.275856509 | J4: =AVERAGE(H4:I4) -> 1.313938661 | K4: 1.313938661
B5: Use | C5: =C3/C4 -> 7.254385965 | D5: =D3/D4 -> 9.808080808 | E5: 9.255555556
A6: Inpatient | B6: Mean $ | C6: 921 | D6: 960 | E6: 904 | G6: Total | H6: =D6/C6 -> 1.042345277 | I6: =E6/C6 -> 0.9815418024 | J6: =AVERAGE(H6:I6) -> 1.01194354 | K6: 1.01194354 | L6: Do not recommend adjusting
B7: $/stay | C7: 15932 | D7: 20555 | E7: 19985 | G7: Use | H7: =D8/C8 -> 0.8079126709 | I7: =E8/C8 -> 0.7824830621 | J7: 0.7951978665 | K7: 0.7951978665
B8: Use | C8: =C6/C7 -> 0.05780818479 | D8: =D6/D7 -> 0.04670396497 | E8: 0.04523392544
A9: ER | B9: Mean $ | C9: 165 | D9: 315 | E9: 328 | G9: Total | H9: =D9/C9 -> 1.909090909 | I9: =E9/C9 -> 1.987878788 | J9: =AVERAGE(H9:I9) -> 1.948484848 | K9: 1.948484848
B10: $/visit | C10: 1252 | D10: 1550 | E10: 1918 | G10: Use | H10: =D11/C11 -> 1.542052786 | I10: =E11/C11 -> 1.297614308 | J10: 1.419833547 | K10: 1.419833547
B11: Use | C11: =C9/C10 -> 0.1317891374 | D11: =D9/D10 -> 0.2032258065 | E11: 0.1710114703
A12: HOPD | B12: Mean $ | C12: 455 | D12: 1078 | E12: 1092 | G12: Total | H12: =D12/C12 -> 2.369230769 | I12: =E12/C12 -> 2.4 | J12: =AVERAGE(H12:I12) -> 2.384615385 | K12: 2.384615385
B13: $/visit | C13: 1291 | D13: 1029 | E13: 1487 | G13: Use | H13: =D14/C14 -> 2.972475144 | I13: =E14/C14 -> 2.083658373 | J13: 2.528066758 | K13: 2.528066758
B14: Use | C14: =C12/C13 -> 0.352439969 | D14: =D12/D13 -> 1.047619048 | E14: 0.7343644923
A15: Office | B15: Mean $ | C15: 1115 | D15: 1245 | E15: 1238 | G15: Total | H15: =D15/C15 -> 1.116591928 | I15: =E15/C15 -> 1.110313901 | J15: =AVERAGE(H15:I15) -> 1.113452915 | K15: 1.113452915
B16: $/visit | C16: 212 | D16: 171 | E16: 173 | G16: Use | H16: =D17/C17 -> 1.3843128 | I16: =E17/C17 -> 1.360615879 | J16: 1.37246434 | K16: 1.37246434
B17: Use | C17: =C15/C16 -> 5.259433962 | D17: =D15/D16 -> 7.280701754 | E17: 7.156069364
A20: Source: https://www.meps.ahrq.gov/data_files/publications/workingpapers/wp_17001.pdf, Table 4

Sheet Detail Output
D1: Copyright © 2021 Society of Actuaries. All Rights Reserved.
A6: Health Care Cost Trends
A9: Detail Output
B11: Random Choice | F11: Lowest Premium | J11: Optimal Choice | N11: Prior Year | T11: Value of Information
A12: Family Nbr | B12: OOP | C12: Plan Exp | D12: Premium | E12: Plan | F12: OOP | G12: Plan Exp | H12: Premium | I12: Plan | J12: OOP | K12: Plan Exp | L12: Premium | M12: Plan | N12: OOP | O12: Plan Exp | P12: Premium | Q12: Plan | R12: Prior Year Optimal? | S12: Random Optimal? | T12: Perfect | U12: Prior
A13: 1 | B13: 713.2466368 | C13: 63.25997582 | D13: 7154.315274 | E13: 2 | F13: 772.3738765 | G13: 4.132736067 | H13: 7016.990732 | I13: 8 | J13: 626.9168859 | K13: 149.5897267 | L13: 7028.842963 | M13: 3 | N13: 626.9168859 | O13: 149.5897267 | P13: 7028.842963 | Q13: 3 | R13: =IF(Q13=M13,1,0) -> 1 | S13: =IF(M13=E13,1,0) -> 0 | T13: =(B13+D13)-(J13+L13) -> 211.8020616 | U13: =(B13+D13)-(N13+P13) -> 211.8020616
A14: 2 | B14: 0 | C14: 0 | D14: 3720.000109 | E14: 5 | F14: 0 | G14: 0 | H14: 3679.817052 | I14: 8 | J14: 0 | K14: 0 | L14: 3679.817052 | M14: 8 | N14: 0 | O14: 0 | P14: 3738.448828 | Q14: 7 | R14: =IF(Q14=M14,1,0) -> 0 | S14: =IF(M14=E14,1,0) -> 0 | T14: =(B14+D14)-(J14+L14) -> 40.18305731 | U14: =(B14+D14)-(N14+P14) -> -18.44871863
A15: 3 | B15: 33.99342222 | C15: 80.55564595 | D15: 12353.11219 | E15: 3 | F15: 114.5490682 | G15: 0 | H15: 12332.28203 | I15: 8 | J15: 33.99342222 | K15: 80.55564595 | L15: 12353.11219 | M15: 3 | N15: 33.99342222 | O15: 80.55564595 | P15: 12353.11219 | Q15: 3 | R15: 1 | S15: 1 | T15: 0 | U15: 0
A16: 4 | B16: 2377.732819 | C16: 1742.308542 | D16: 11262.87721 | E16: 3 | F16: 2581.668994 | G16: 1538.372367 | H16: 11243.88544 | I16: 8 | J16: 1468.006223 | K16: 2652.035138 | L16: 11356.61419 | M16: 4 | N16: 1923.256822 | O16: 2196.784539 | P16: 11423.03808 | Q16: 7 | R16: 0 | S16: 0 | T16: 815.9896224 | U16: 294.3151262
A17: 5 | B17: 0 | C17: 0 | D17: 2879.356066 | E17: 8 | F17: 0 | G17: 0 | H17: 2879.356066 | I17: 8 | J17: 0 | K17: 0 | L17: 2879.356066 | M17: 8 | N17: 0 | O17: 0 | P17: 2879.356066 | Q17: 8 | R17: 1 | S17: 1 | T17: 0 | U17: 0
A18: 6 | B18: 2330.671664 | C18: 3559.56367 | D18: 11534.38847 | E18: 2 | F18: 2606.598783 | G18: 3283.636551 | H18: 11312.98998 | I18: 8 | J18: 1733.535329 | K18: 4156.700005 | L18: 11426.41156 | M18: 4 | N18: 2330.671664 | O18: 3559.56367 | P18: 11534.38847 | Q18: 2 | R18: 0 | S18: 0 | T18: 705.1132482 | U18: 0
A19: 7 | B19: 1027.732203 | C19: 503.4482329 | D19: 7392.254622 | E19: 3 | F19: 1390.711545 | G19: 140.4688908 | H19: 7379.789596 | I19: 8 | J19: 1027.732203 | K19: 503.4482329 | L19: 7392.254622 | M19: 3 | N19: 1027.732203 | O19: 503.4482329 | P19: 7392.254622 | Q19: 3 | R19: 1 | S19: 1 | T19: 0 | U19: 0
A20: 8 | B20: 3617.85021 | C20: 10630.70213 | D20: 5661.722912 | E20: 3 | F20: 3222.42334 | G20: 11026.129 | H20: 5652.175957 | I20: 8 | J20: 2774.855253 | K20: 11473.69709 | L20: 5713.896881 | M20: 5 | N20: 3222.42334 | O20: 11026.129 | P20: 5652.175957 | Q20: 8 | R20: 0 | S20: 0 | T20: 790.8209878 | U20: 404.973825
A21: 9 | B21: 0 | C21: 0 | D21: 3551.233863 | E21: 7 | F21: 0 | G21: 0 | H21: 3495.538264 | I21: 8 | J21: 0 | K21: 0 | L21: 3495.538264 | M21: 8 | N21: 0 | O21: 0 | P21: 3501.442494 | Q21: 3 | R21: 0 | S21: 0 | T21: 55.69559937 | U21: 49.79136929
A22: 10 | B22: 0 | C22: 0 | D22: 2910.798207 | E22: 5 | F22: 0 | G22: 0 | H22: 2879.356066 | I22: 8 | J22: 0 | K22: 0 | L22: 2879.356066 | M22: 8 | N22: 0 | O22: 0 | P22: 2925.233824 | Q22: 7 | R22: 0 | S22: 0 | T22: 31.44214187 | U22: -14.43561708
A23: 11 | B23: 2039.500626 | C23: 3842.484141 | D23: 4782.757303 | E23: 7 | F23: 2404.886028 | G23: 3477.098739 | H23: 4707.747167 | I23: 8 | J23: 1732.297744 | K23: 4149.687022 | L23: 4754.946017 | M23: 4 | N23: 2404.886028 | O23: 3477.098739 | P23: 4707.747167 | Q23: 8 | R23: 0 | S23: 0 | T23: 335.0141676 | U23: -290.3752662
A24: 12 | B24: 1136.512339 | C24: 65.33051356 | D24: 2936.93476 | E24: 7 | F24: 468.9763581 | G24: 732.8664944 | H24: 2890.87349 | I24: 8 | J24: 423.9401812 | K24: 777.9026713 | L24: 2895.756395 | M24: 3 | N24: 468.9763581 | O24: 732.8664944 | P24: 2890.87349 | Q24: 8 | R24: 0 | S24: 0 | T24: 753.7505225 | U24: 713.5972509
A25: 13 | B25: 2932.758059 | C25: 6070.142144 | D25: 2879.356066 | E25: 8 | F25: 2932.758059 | G25: 6070.142144 | H25: 2879.356066 | I25: 8 | J25: 2200.435078 | K25: 6802.465125 | L25: 2908.223864 | M25: 4 | N25: 2361.194741 | O25: 6641.705461 | P25: 2935.705898 | Q25: 2 | R25: 0 | S25: 0 | T25: 703.4551829 | U25: 515.213485
A26: 14 | B26: 3777.716938 | C26: 9185.879794 | D26: 15573.94488 | E26: 7 | F26: 498.3988645 | G26: 12465.19787 | H26: 15329.69169 | I26: 8 | J26: 143.635426 | K26: 12819.96131 | L26: 15629.6982 | M26: 2 | N26: 500.4672048 | O26: 12463.12953 | P26: 15355.58471 | Q26: 3 | R26: 0 | S26: 0 | T26: 3578.328192 | U26: 3495.609907
A27: 15 | B27: 2049.057913 | C27: 1662.643536 | D27: 13232.79914 | E27: 3 | F27: 2129.153521 | G27: 1582.547928 | H27: 13210.48563 | I27: 8 | J27: 1406.755234 | K27: 2304.946215 | L27: 13342.93109 | M27: 4 | N27: 1912.921311 | O27: 1798.780138 | P27: 13420.97279 | Q27: 7 | R27: 0 | S27: 0 | T27: 532.1707374 | U27: -52.03704015
A28: 16 | B28: 2060.993364 | C28: 2652.879809 | D28: 2935.705898 | E28: 2 | F28: 2573.429442 | G28: 2140.443731 | H28: 2879.356066 | I28: 8 | J28: 1557.080998 | K28: 3156.792175 | L28: 2908.223864 | M28: 4 | N28: 1942.46804 | O28: 2771.405133 | P28: 2884.219517 | Q28: 3 | R28: 0 | S28: 0 | T28: 531.3944005 | U28: 170.0117055
A29: 17 | B29: 1998.166662 | C29: 5656.277485 | D29: 5932.776682 | E29: 4 | F29: 1507.787281 | G29: 6146.656865 | H29: 5873.886374 | I29: 8 | J29: 266.1152466 | K29: 7388.3289 | L29: 5988.840032 | M29: 2 | N29: 1792.809147 | O29: 5861.634999 | P29: 5883.807815 | Q29: 3 | R29: 0 | S29: 0 | T29: 1675.988065 | U29: 254.3263818
A30: 18 | B30: 3489.190017 | C30: 9661.256355 | D30: 15589.20649 | E30: 3 | F30: 3411.276977 | G30: 9739.169395 | H30: 15562.91953 | I30: 8 | J30: 2665.044655 | K30: 10485.40172 | L30: 15732.86431 | M30: 5 | N30: 3489.190017 | O30: 9661.256355 | P30: 15589.20649 | Q30: 3 | R30: 0 | S30: 0 | T30: 680.4875406 | U30: 0
A31: 19 | B31: 1402.464059 | C31: 1709.59668 | D31: 7028.842963 | E31: 3 | F31: 1442.811645 | G31: 1669.249093 | H31: 7016.990732 | I31: 8 | J31: 1009.211887 | K31: 2102.848851 | L31: 7154.315274 | M31: 2 | N31: 1810.140342 | O31: 1301.920396 | P31: 7128.79483 | Q31: 7 | R31: 0 | S31: 0 | T31: 267.779861 | U31: -507.6281505
A32: 20 | B32: 2293.684044 | C32: 2643.15635 | D32: 7480.178628 | E32: 2 | F32: 2293.684044 | G32: 2643.15635 | H32: 7336.599255 | I32: 8 | J32: 1590.526082 | K32: 3346.314311 | L32: 7410.154404 | M32: 4 | N32: 2293.684044 | O32: 2643.15635 | P32: 7336.599255 | Q32: 8 | R32: 0 | S32: 0 | T32: 773.182185 | U32: 143.5793734
A33: 21 | B33: 0 | C33: 0 | D33: 7087.341556 | E33: 4 | F33: 0 | G33: 0 | H33: 7016.990732 | I33: 8 | J33: 0 | K33: 0 | L33: 7016.990732 | M33: 8 | N33: 0 | O33: 0 | P33: 7016.990732 | Q33: 8 | R33: 1 | S33: 0 | T33: 70.35082398 | U33: 70.35082398
A34: 22 | B34: 2161.448061 | C34: 1797.986569 | D34: 7507.623403 | E34: 3 | F34: 2204.963791 | G34: 1754.470839 | H34: 7494.963839 | I34: 8 | J34: 1443.915212 | K34: 2515.519418 | L34: 7570.106717 | M34: 4 | N34: 2161.448061 | O34: 1797.986569 | P34: 7507.623403 | Q34: 3 | R34: 0 | S34: 0 | T34: 655.0495347 | U34: 0
A35: 23 | B35: 2941.520213 | C35: 12973.6817 | D35: 4203.192611 | E35: 5 | F35: 3360.164522 | G35: 12555.03739 | H35: 4157.790159 | I35: 8 | J35: 2080.043415 | K35: 13835.1585 | L35: 4224.037643 | M35: 7 | N35: 2080.043415 | O35: 13835.1585 | P35: 4224.037643 | Q35: 7 | R35: 1 | S35: 0 | T35: 840.6317665 | U35: 840.6317665
A36: 24 | B36: 394.1623318 | C36: 0 | D36: 4362.335795 | E36: 4 | F36: 394.1623318 | G36: 0 | H36: 4319.034098 | I36: 8 | J36: 205.6017532 | K36: 188.5605787 | L36: 4326.329275 | M36: 3 | N36: 205.6017532 | O36: 188.5605787 | P36: 4326.329275 | Q36: 3 | R36: 1 | S36: 0 | T36: 224.5670986 | U36: 224.5670986
A37: 25 | B37: 538.9280727 | C37: 0 | D37: 4366.197311 | E37: 5 | F37: 478.2328435 | G37: 60.6952292 | H37: 4319.034098 | I37: 8 | J37: 253.8260314 | K37: 285.1020413 | L37: 4326.329275 | M37: 3 | N37: 253.8260314 | O37: 285.1020413 | P37: 4326.329275 | Q37: 3 | R37: 1 | S37: 0 | T37: 324.9700769 | U37: 324.9700769
A38: 26 | B38: 5000 | C38: 83907.27882 | D38: 14137.65507 | E38: 7 | F38: 5000 | G38: 83907.27882 | H38: 13915.92786 | I38: 8 | J38: 5000 | K38: 83907.27882 | L38: 13915.92786 | M38: 8 | N38: 5000 | O38: 83907.27882 | P38: 13915.92786 | Q38: 8 | R38: 1 | S38: 0 | T38: 221.727209 | U38: 221.727209
A39: 27 | B39: 1375.923516 | C39: 1499.722923 | D39: 2953.440785 | E39: 3 | F39: 1577.001666 | G39: 1298.644773 | H39: 2948.460611 | I39: 8 | J39: 1202.529148 | K39: 1673.117291 | L39: 3006.16284 | M39: 2 | N39: 1375.923516 | O39: 1499.722923 | P39: 2953.440785 | Q39: 3 | R39: 0 | S39: 0 | T39: 120.6723137 | U39: 0
A40: 28 | B40: 0 | C40: 0 | D40: 6088.5874 | E40: 3 | F40: 0 | G40: 0 | H40: 6078.320654 | I40: 8 | J40: 0 | K40: 0 | L40: 6078.320654 | M40: 8 | N40: 0 | O40: 0 | P40: 6088.5874 | Q40: 3 | R40: 0 | S40: 0 | T40: 10.26674603 | U40: 0
A41: 29 | B41: 2494.538473 | C41: 4042.690762 | D41: 5744.315351 | E41: 8 | F41: 2494.538473 | G41: 4042.690762 | H41: 5744.315351 | I41: 8 | J41: 1830.584418 | K41: 4706.644817 | L41: 5801.906608 | M41: 4 | N41: 2509.598645 | O41: 4027.63059 | P41: 5754.017936 | Q41: 3 | R41: 0 | S41: 0 | T41: 606.3627972 | U41: -24.7627576
A42: 30 | B42: 0 | C42: 0 | D42: 17992.94145 | E42: 2 | F42: 0 | G42: 0 | H42: 17647.57333 | I42: 8 | J42: 0 | K42: 0 | L42: 17647.57333 | M42: 8 | N42: 0 | O42: 0 | P42: 17677.38142 | Q42: 3 | R42: 0 | S42: 0 | T42: 345.3681238 | U42: 315.5600297
A43: 31 | B43: 0 | C43: 0 | D43: 3530.58377 | E43: 4 | F43: 0 | G43: 0 | H43: 3495.538264 | I43: 8 | J43: 0 | K43: 0 | L43: 3495.538264 | M43: 8 | N43: 0 | O43: 0 | P43: 3501.442494 | Q43: 3 | R43: 0 | S43: 0 | T43: 35.0455069 | U43: 29.14127682
A44: 32 | B44: 0 | C44: 0 | D44: 11511.66555 | E44: 8 | F44: 0 | G44: 0 | H44: 11511.66555 | I44: 8 | J44: 0 | K44: 0 | L44: 11511.66555 | M44: 8 | N44: 0 | O44: 0 | P44: 11531.10963 | Q44: 3 | R44: 0 | S44: 1 | T44: 0 | U44: -19.44407894
A45: 33 | B45: 1442.270397 | C45: 2506.198802 | D45: 17911.75078 | E45: 4 | F45: 2231.166874 | G45: 1717.302325 | H45: 17733.95401 | I45: 8 | J45: 1442.270397 | K45: 2506.198802 | L45: 17911.75078 | M45: 4 | N45: 2231.166874 | O45: 1717.302325 | P45: 17733.95401 | Q45: 8 | R45: 0 | S45: 1 | T45: 0 | U45: -611.0997084
A46: 34 | B46: 2134.409932 | C46: 2571.960222 | D46: 11666.49524 | E46: 2 | F46: 2725.682329 | G46: 1980.687825 | H46: 11442.561 | I46: 8 | J46: 1555.955545 | K46: 3150.414609 | L46: 11557.28163 | M46: 4 | N46: 2725.682329 | O46: 1980.687825 | P46: 11442.561 | Q46: 8 | R46: 0 | S46: 0 | T46: 687.6679913 | U46: -367.3381629
A47: 35 | B47: 0 | C47: 0 | D47: 5475.0915 | E47: 2 | F47: 0 | G47: 0 | H47: 5369.999062 | I47: 8 | J47: 0 | K47: 0 | L47: 5369.999062 | M47: 8 | N47: 0 | O47: 0 | P47: 5455.561083 | Q47: 7 | R47: 0 | S47: 0 | T47: 105.0924377 | U47: 19.53041728
A48: 36 | B48: 2116.281123 | C48: 945.4199504 | D48: 3633.747355 | E48: 8 | F48: 2116.281123 | G48: 945.4199504 | H48: 3633.747355 | I48: 8 | J48: 1309.255173 | K48: 1752.4459 | L48: 3670.178516 | M48: 4 | N48: 2116.281123 | O48: 945.4199504 | P48: 3633.747355 | Q48: 8 | R48: 0 | S48: 0 | T48: 770.5947889 | U48: 0
A49: 37 | B49: 0 | C49: 0 | D49: 4101.18114 | E49: 2 | F49: 0 | G49: 0 | H49: 4022.460424 | I49: 8 | J49: 0 | K49: 0 | L49: 4022.460424 | M49: 8 | N49: 0 | O49: 0 | P49: 4022.460424 | Q49: 8 | R49: 1 | S49: 0 | T49: 78.72071608 | U49: 78.72071608
A50: 38 | B50: 16.99671111 | C50: 894.8529351 | D50: 5873.86952 | E50: 7 | F50: 911.8496462 | G50: 0 | H50: 5781.74698 | I50: 8 | J50: 30.72135451 | K50: 881.1282917 | L50: 5791.51279 | M50: 3 | N50: 908.5775785 | O50: 3.272067715 | P50: 5894.897443 | Q50: 2 | R50: 0 | S50: 0 | T50: 68.63208604 | U50: -912.6087912
A51: 39 | B51: 1250.996868 | C51: 8743.356496 | D51: 3135.146615 | E51: 3 | F51: 2799.435348 | G51: 7194.918015 | H51: 3129.860043 | I51: 8 | J51: 798.0836356 | K51: 9196.269728 | L51: 3179.729167 | M51: 7 | N51: 1250.996868 | O51: 8743.356496 | P51: 3135.146615 | Q51: 3 | R51: 0 | S51: 0 | T51: 408.3306798 | U51: 0
A52: 40 | B52: 2809.679115 | C52: 7287.111916 | D52: 12934.06745 | E52: 8 | F52: 2809.679115 | G52: 7287.111916 | H52: 12934.06745 | I52: 8 | J52: 726.507096 | K52: 9370.283935 | L52: 13140.15034 | M52: 7 | N52: 1083.347824 | O52: 9013.443207 | P52: 12955.91407 | Q52: 3 | R52: 0 | S52: 0 | T52: 1877.089126 | U52: 1704.484667
A53: 41 | B53: 395.3521119 | C53: 263.3845623 | D53: 9085.291478 | E53: 3 | F53: 434.0374327 | G53: 224.6992415 | H53: 9069.971606 | I53: 8 | J53: 158.1103139 | K53: 500.6263603 | L53: 9247.473579 | M53: 2 | N53: 395.3521119 | O53: 263.3845623 | P53: 9085.291478 | Q53: 3 | R53: 0 | S53: 0 | T53: 75.05969754 | U53: 0
A54: 42 | B54: 0 | C54: 0 | D54: 5224.46761 | E54: 7 | F54: 0 | G54: 0 | H54: 5142.529933 | I54: 8 | J54: 0 | K54: 0 | L54: 5142.529933 | M54: 8 | N54: 0 | O54: 0 | P54: 5142.529933 | Q54: 8 | R54: 1 | S54: 0 | T54: 81.93767748 | U54: 81.93767748
A55: 43 | B55: 2475.882739 | C55: 2624.013031 | D55: 3821.59086 | E55: 3 | F55: 2467.270223 | G55: 2632.625547 | H55: 3815.146787 | I55: 8 | J55: 1614.98439 | K55: 3484.91138 | L55: 3853.396619 | M55: 4 | N55: 2270.179424 | O55: 2829.716346 | P55: 3889.810315 | Q55: 2 | R55: 0 | S55: 0 | T55: 829.0925895 | U55: 137.4838599
A56: 44 | B56: 1911.882524 | C56: 1946.054588 | D56: 15810.88882 | E56: 7 | F56: 2218.187184 | G56: 1639.749928 | H56: 15562.91953 | I56: 8 | J56: 1428.690584 | K56: 2429.246528 | L56: 15718.94998 | M56: 4 | N56: 2103.473144 | O56: 1754.463968 | P56: 15589.20649 | Q56: 3 | R56: 0 | S56: 0 | T56: 575.1307786 | U56: 30.09171194
A57: 45 | B57: 3842.208689 | C57: 16105.84849 | D57: 9079.474902 | E57: 4 | F57: 3896.263609 | G57: 16051.79356 | H57: 8989.349637 | I57: 8 | J57: 1946.460029 | K57: 18001.59715 | L57: 9132.58 | M57: 7 | N57: 2574.406237 | O57: 17373.65094 | P57: 9004.533332 | Q57: 3 | R57: 0 | S57: 0 | T57: 1842.643563 | U57: 1342.744022
A58: 46 | B58: 2236.110867 | C58: 9257.799401 | D58: 12370.81384 | E58: 7 | F58: 3296.884632 | G58: 8197.025637 | H58: 12176.7968 | I58: 8 | J58: 2236.110867 | K58: 9257.799401 | L58: 12370.81384 | M58: 7 | N58: 2236.110867 | O58: 9257.799401 | P58: 12370.81384 | Q58: 7 | R58: 1 | S58: 1 | T58: 0 | U58: 0
A59: 47 | B59: 4270.365614 | C59: 20315.49575 | D59: 13602.07805 | E59: 8 | F59: 4270.365614 | G59: 20315.49575 | H59: 13602.07805 | I59: 8 | J59: 3808.586171 | K59: 20777.27519 | L59: 13750.61073 | M59: 5 | N59: 4270.365614 | O59: 20315.49575 | P59: 13602.07805 | Q59: 8 | R59: 0 | S59: 0 | T59: 313.2467648 | U59: 0
A60: 48 | B60: 0 | C60: 0 | D60: 3808.654439 | E60: 7 | F60: 0 | G60: 0 | H60: 3748.921597 | I60: 8 | J60: 0 | K60: 0 | L60: 3748.921597 | M60: 8 | N60: 0 | O60: 0 | P60: 3748.921597 | Q60: 8 | R60: 1 | S60: 0 | T60: 59.73284215 | U60: 59.73284215
A61: 49 | B61: 2021.546064 | C61: 248.449039 | D61: 17235.52933 | E61: 2 | F61: 2076.080526 | G61: 193.9145771 | H61: 16904.69946 | I61: 8 | J61: 1190.499273 | K61: 1079.49583 | L61: 17074.1823 | M61: 4 | N61: 1408.039581 | O61: 861.955522 | P61: 16933.25278 | Q61: 3 | R61: 0 | S61: 0 | T61: 992.3938157 | U61: 915.7830264
A62: 50 | B62: 724.9968378 | C62: 15688.64461 | D62: 8638.068197 | E62: 8 | F62: 724.9968378 | G62: 15688.64461 | H62: 8638.068197 | I62: 8 | J62: 488.4878788 | K62: 15925.15357 | L62: 8807.117694 | M62: 2 | N62: 803.8331575 | O62: 15609.80829 | P62: 8652.658551 | Q62: 3 | R62: 0 | S62: 0 | T62: 67.45946132 | U62: -93.42667405
A63: 51 | B63: 5768.540602 | C63: 27021.72881 | D63: 3300.834085 | E63: 4 | F63: 4950.176681 | G63: 27840.09274 | H63: 3268.069134 | I63: 8 | J63: 3937.162438 | K63: 28853.10698 | L63: 3273.589152 | M63: 3 | N63: 3937.162438 | O63: 28853.10698 | P63: 3273.589152 | Q63: 3 | R63: 1 | S63: 0 | T63: 1858.623097 | U63: 1858.623097
A64: 52 | B64: 1685.556683 | C64: 4726.024172 | D64: 12212.85122 | E64: 7 | F64: 3384.272831 | G64: 3027.308024 | H64: 12021.31157 | I64: 8 | J64: 1685.556683 | K64: 4726.024172 | L64: 12212.85122 | M64: 7 | N64: 1685.556683 | O64: 4726.024172 | P64: 12212.85122 | Q64: 7 | R64: 1 | S64: 1 | T64: 0 | U64: 0
A65: 53 | B65: 0 | C65: 0 | D65: 13683.32519 | E65: 2 | F65: 0 | G65: 0 | H65: 13420.67862 | I65: 8 | J65: 0 | K65: 0 | L65: 13420.67862 | M65: 8 | N65: 0 | O65: 0 | P65: 13420.67862 | Q65: 8 | R65: 1 | S65: 0 | T65: 262.6465696 | U65: 262.6465696
A66: 54 | B66: 2129.964831 | C66: 1430.358191 | D66: 16566.18838 | E66: 2 | F66: 2327.055631 | G66: 1233.267392 | H66: 16248.20628 | I66: 8 | J66: 1384.048469 | K66: 2176.274554 | L66: 16411.10726 | M66: 4 | N66: 2291.631557 | O66: 1268.691465 | P66: 16275.65073 | Q66: 3 | R66: 0 | S66: 0 | T66: 900.9974832 | U66: 128.8709228
A67: 55 | B67: 2267.20489 | C67: 6904.843892 | D67: 10164.50734 | E67: 5 | F67: 3729.475829 | G67: 5442.572952 | H67: 10054.71138 | I67: 8 | J67: 2225.807366 | K67: 6946.241415 | L67: 10155.51773 | M67: 4 | N67: 2271.003915 | O67: 6901.044866 | P67: 10251.485 | Q67: 2 | R67: 0 | S67: 0 | T67: 50.38713209 | U67: -90.77668115
A68: 56 | B68: 2711.768833 | C68: 70949.63644 | D68: 11205.58941 | E68: 2 | F68: 5000 | G68: 68661.40527 | H68: 10990.5021 | I68: 8 | J68: 2711.768833 | K68: 70949.63644 | L68: 11205.58941 | M68: 2 | N68: 5000 | O68: 68661.40527 | P68: 10990.5021 | Q68: 8 | R68: 0 | S68: 1 | T68: 0 | U68: -2073.143856
A69: 57 | B69: 3583.14616 | C69: 18748.31513 | D69: 16777.84087 | E69: 5 | F69: 4278.687326 | G69: 18052.77397 | H69: 16596.60836 | I69: 8 | J69: 3583.14616 | K69: 18748.31513 | L69: 16777.84087 | M69: 5 | N69: 5196.85692 | O69: 17134.60437 | P69: 16624.6413 | Q69: 3 | R69: 0 | S69: 1 | T69: 0 | U69: -1460.511189
A70: 58 | B70: 1277.40713 | C70: 419.9843905 | D70: 7028.842963 | E70: 3 | F70: 1001.480011 | G70: 695.9115093 | H70: 7016.990732 | I70: 8 | J70: 173.6986547 | K70: 1523.692866 | L70: 7154.315274 | M70: 2 | N70: 1001.480011 | O70: 695.9115093 | P70: 7016.990732 | Q70: 8 | R70: 0 | S70: 0 | T70: 978.2361646 | U70: 287.77935
A71: 59 | B71: 298.4053812 | C71: 0 | D71: 7507.623403 | E71: 3 | F71: 298.4053812 | G71: 0 | H71: 7494.963839 | I71: 8 | J71: 298.4053812 | K71: 0 | L71: 7494.963839 | M71: 8 | N71: 298.4053812 | O71: 0 | P71: 7507.623403 | Q71: 3 | R71: 0 | S71: 0 | T71: 12.65956415 | U71: 0
A72: 60 | B72: 0 | C72: 0 | D72: 2895.756395 | E72: 3 | F72: 0 | G72: 0 | H72: 2890.87349 | I72: 8 | J72: 0 | K72: 0 | L72: 2890.87349 | M72: 8 | N72: 0 | O72: 0 | P72: 2895.756395 | Q72: 3 | R72: 0 | S72: 0 | T72: 4.882905267 | U72: 0
A73: 61 | B73: 734.7637264 | C73: 979.2551142 | D73: 6728.884133 | E73: 3 | F73: 1714.018841 | G73: 0 | H73: 6717.537701 | I73: 8 | J73: 597.5172925 | K73: 1116.501548 | L73: 6824.570512 | M73: 7 | N73: 1253.747982 | O73: 460.2708585 | P73: 6849.00186 | Q73: 2 | R73: 0 | S73: 0 | T73: 41.56005458 | U73: -639.1019827
A74: 62 | B74: 2360.904408 | C74: 10923.18263 | D74: 12125.25885 | E74: 3 | F74: 3121.298727 | G74: 10162.78831 | H74: 12104.8129 | I74: 8 | J74: 2360.904408 | K74: 10923.18263 | L74: 12125.25885 | M74: 3 | N74: 2360.904408 | O74: 10923.18263 | P74: 12125.25885 | Q74: 3 | R74: 1 | S74: 1 | T74: 0 | U74: 0
A75: 63 | B75: 2210.361865 | C75: 764.3934068 | D75: 5951.628987 | E75: 8 | F75: 2210.361865 | G75: 764.3934068 | H75: 5951.628987 | I75: 8 | J75: 1049.112835 | K75: 1925.642436 | L75: 5961.681742 | M75: 3 | N75: 953.0403312 | O75: 2021.71494 | P75: 6046.458315 | Q75: 7 | R75: 0 | S75: 0 | T75: 1151.196275 | U75: 1162.492206
A76: 64 | B76: 841.7704036 | C76: 103.6154776 | D76: 7480.178628 | E76: 2 | F76: 945.3858812 | G76: 0 | H76: 7336.599255 | I76: 8 | J76: 659.5678629 | K76: 285.8180183 | L76: 7348.991329 | M76: 3 | N76: 945.3858812 | O76: 0 | P76: 7336.599255 | Q76: 8 | R76: 0 | S76: 0 | T76: 313.3898398 | U76: 39.96389573
A77: 65 | B77: 1745.909177 | C77: 871.4942515 | D77: 12194.48012 | E77: 3 | F77: 2139.288349 | G77: 478.1150803 | H77: 12173.91744 | I77: 8 | J77: 1242.610524 | K77: 1374.792905 | L77: 12295.9705 | M77: 4 | N77: 1565.651408 | O77: 1051.752021 | P77: 12367.88861 | Q77: 7 | R77: 0 | S77: 0 | T77: 401.8082757 | U77: 6.84927709
A78: 66 | B78: 3014.813033 | C78: 96379.73069 | D78: 13565.89695 | E78: 2 | F78: 3290.740152 | G78: 96103.80357 | H78: 13305.50438 | I78: 8 | J78: 3290.740152 | K78: 96103.80357 | L78: 13305.50438 | M78: 8 | N78: 3692.545355 | O78: 95701.99837 | P78: 13327.97839 | Q78: 3 | R78: =IF(Q78=M78,1,0) -> 0 | S78: =IF(M78=E78,1,0) -> 0 | T78: =(B78+D78)-(J78+L78) -> -15.53454258 | U78: =(B78+D78)-(N78+P78) -> -439.8137549
A79: 67 | B79: 1130.685031 | C79: 740.5484716 | D79: 12694.39716 | E79: 4 | F79: 1871.233502 | G79: 0 | H79: 12568.38923 | I79: 8 | J79: 1130.685031 | K79: 740.5484716 | L79: 12694.39716 | M79: 4 | N79: 1574.246702 | O79: 296.9868006 | P79: 12768.64564 | Q79: 7 | R79: 0 | S79: 1 | T79: 0 | U79: -517.8101501
A80: 68 | B80: 504.0754789 | C80: 0 | D80: 9556.582781 | E80: 8 | F80: 504.0754789 | G80: 0 | H80: 9556.582781 | I80: 8 | J80: 262.3132304 | K80: 241.7622485 | L80: 9572.724577 | M80: 3 | N80: 138.7914399 | O80: 365.284039 | P80: 9708.851063 | Q80: 7 | R80: 0 | S80: 0 | T80: 225.6204531 | U80: 213.0157571
A81: 69 | B81: 1400.75528 | C81: 2270.94648 | D81: 7418.879076 | E81: 4 | F81: 2212.207013 | G81: 1459.494747 | H81: 7345.237323 | I81: 8 | J81: 724.2678017 | K81: 2947.433958 | L81: 7357.643988 | M81: 3 | N81: 724.2678017 | O81: 2947.433958 | P81: 7357.643988 | Q81: 3 | R81: 1 | S81: 0 | T81: 737.7225666 | U81: 737.7225666
A82: 70 | B82: 2301.845753 | C82: 909.1883303 | D82: 13697.0968 | E82: 8 | F82: 2301.845753 | G82: 909.1883303 | H82: 13697.0968 | I82: 8 | J82: 1331.655126 | K82: 1879.378957 | L82: 13834.42092 | M82: 4 | N82: 1718.870753 | O82: 1492.16333 | P82: 13915.3373 | Q82: 7 | R82: 0 | S82: 0 | T82: 832.8665114 | U82: 364.7345
A83: 71 | B83: 2357.155334 | C83: 7690.546531 | D83: 7410.154404 | E83: 4 | F83: 2500.050005 | G83: 7547.65186 | H83: 7336.599255 | I83: 8 | J83: 1485.349454 | K83: 8562.35241 | L83: 7348.991329 | M83: 3 | N83: 2500.050005 | O83: 7547.65186 | P83: 7336.599255 | Q83: 8 | R83: 0 | S83: 0 | T83: 932.9689544 | U83: -69.33952149
A84: 72 | B84: 1093.011102 | C84: 527.0628887 | D84: 6348.652694 | E84: 4 | F84: 1620.073991 | G84: 0 | H84: 6285.634291 | I84: 8 | J84: 109.7971472 | K84: 1510.276844 | L84: 6385.785439 | M84: 7 | N84: 109.7971472 | O84: 1510.276844 | P84: 6385.785439 | Q84: 7 | R84: 1 | S84: 0 | T84: 946.0812107 | U84: 946.0812107
A85: 73 | B85: 95.98065296 | C85: 0 | D85: 4549.577598 | E85: 5 | F85: 59.12723975 | G85: 36.85341321 | H85: 4500.43353 | I85: 8 | J85: 59.12723975 | K85: 36.85341321 | L85: 4500.43353 | M85: 8 | N85: 59.12723975 | O85: 36.85341321 | P85: 4500.43353 | Q85: 8 | R85: 1 | S85: 0 | T85: 85.99748095 | U85: 85.99748095
A86: 74 | B86: 1.090689238 | C86: 0 | D86: 18031.14129 | E86: 7 | F86: 1.090689238 | G86: 0 | H86: 17748.35079 | I86: 8 | J86: 1.090689238 | K86: 0 | L86: 17748.35079 | M86: 8 | N86: 1.090689238 | O86: 0 | P86: 17778.3291 | Q86: 3 | R86: 0 | S86: 0 | T86: 282.7905062 | U86: 252.8121914
A87: 75 | B87: 951.2630716 | C87: 543.7520585 | D87: 14163.98218 | E87: 7 | F87: 965.3829436 | G87: 529.6321864 | H87: 13941.84207 | I87: 8 | J87: 580.474038 | K87: 914.541092 | L87: 13965.3909 | M87: 3 | N87: 951.2630716 | O87: 543.7520585 | P87: 14163.98218 | Q87: 7 | R87: 0 | S87: 0 | T87: 569.3803104 | U87: 0
A88: 76 | B88: 401.9565022 | C88: 1461.523579 | D88: 8187.68375 | E88: 2 | F88: 461.083742 | G88: 1402.396339 | H88: 8030.524067 | I88: 8 | J88: 188.6334668 | K88: 1674.846615 | L88: 8044.088233 | M88: 3 | N88: 461.083742 | O88: 1402.396339 | P88: 8030.524067 | Q88: 8 | R88: 0 | S88: 0 | T88: 356.9185523 | U88: 98.03244326
A89: 77 | B89: 7500 | C89: 161598.965 | D89: 12955.27013 | E89: 2 | F89: 5000 | G89: 164098.965 | H89: 12706.59832 | I89: 8 | J89: 5000 | K89: 164098.965 | L89: 12706.59832 | M89: 8 | N89: 5000 | O89: 164098.965 | P89: 12909.05687 | Q89: 7 | R89: 0 | S89: 0 | T89: 2748.671811 | U89: 2546.213261
A90: 78 | B90: 2584.798234 | C90: 8980.522904 | D90: 5676.852982 | E90: 4 | F90: 4227.797488 | G90: 7337.523649 | H90: 5620.50304 | I90: 8 | J90: 2506.532129 | K90: 9058.789009 | L90: 5681.878101 | M90: 5 | N90: 4227.797488 | O90: 7337.523649 | P90: 5620.50304 | Q90: 8 | R90: 0 | S90: 0 | T90: 73.24098582 | U90: -1586.649313
A91: 79 | B91: 1743.74784 | C91: 2193.730522 | D91: 7946.479106 | E91: 5 | F91: 2286.807397 | G91: 1650.670965 | H91: 7860.642059 | I91: 8 | J91: 526.4420819 | K91: 3411.03628 | L91: 7985.888341 | M91: 7 | N91: 2286.807397 | O91: 1650.670965 | P91: 7860.642059 | Q91: 8 | R91: 0 | S91: 0 | T91: 1177.896523 | U91: -457.2225097
A92: 80 | B92: 4971.962813 | C92: 31247.6648 | D92: 6974.272505 | E92: 5 | F92: 4864.570946 | G92: 31355.05667 | H92: 6898.937133 | I92: 8 | J92: 4568.934747 | K92: 31650.69287 | L92: 7033.951332 | M92: 2 | N92: 4864.570946 | O92: 31355.05667 | P92: 6898.937133 | Q92: 8 | R92: 0 | S92: 0 | T92: 343.3492398 | U92: 182.7272398
A93: 81 | B93: 609.327232 | C93: 0 | D93: 2895.756395 | E93: 3 | F93: 609.327232 | G93: 0 | H93: 2890.87349 | I93: 8 | J93: 609.327232 | K93: 0 | L93: 2890.87349 | M93: 8 | N93: 609.327232 | O93: 0 | P93: 2936.93476 | Q93: 7 | R93: 0 | S93: 0 | T93: 4.882905267 | U93: -41.17836472
A94: 82 | B94: 2081.815125 | C94: 3491.878764 | D94: 8635.29025 | E94: 7 | F94: 2621.779485 | G94: 2951.914404 | H94: 8499.859105 | I94: 8 | J94: 1686.054111 | K94: 3887.639778 | L94: 8585.076845 | M94: 4 | N94: 2630.165372 | O94: 2943.528517 | P94: 8514.216014 | Q94: 3 | R94: 0 | S94: 0 | T94: 445.9744186 | U94: -427.2760117
A95: 83 | B95: 510.2336323 | C95: 888.9117291 | D95: 8434.283045 | E95: 2 | F95: 1399.145361 | G95: 0 | H95: 8272.389976 | I95: 8 | J95: 510.2336323 | K95: 888.9117291 | L95: 8434.283045 | M95: 2 | N95: 1131.869007 | O95: 267.2763549 | P95: 8404.196778 | Q95: 7 | R95: 0 | S95: 1 | T95: 0 | U95: -591.5491068
A96: 84 | B96: 93.34591461 | C96: 52.71932308 | D96: 3821.59086 | E96: 3 | F96: 146.0652377 | G96: 0 | H96: 3815.146787 | I96: 8 | J96: 93.34591461 | K96: 52.71932308 | L96: 3821.59086 | M96: 3 | N96: 93.34591461 | O96: 52.71932308 | P96: 3821.59086 | Q96: 3 | R96: 1 | S96: 1 | T96: 0 | U96: 0
A97: 85 | B97: 106.8914798 | C97: 121.0665054 | D97: 9770.029229 | E97: 2 | F97: 227.9579853 | G97: 0 | H97: 9582.496986 | I97: 8 | J97: 175.965079 | K97: 51.99290624 | L97: 9598.682552 | M97: 3 | N97: 106.8914798 | O97: 121.0665054 | P97: 9770.029229 | Q97: 2 | R97: 0 | S97: 0 | T97: 102.2730771 | U97: 0
A98: 86 | B98: 0 | C98: 0 | D98: 7028.842963 | E98: 3 | F98: 0 | G98: 0 | H98: 7016.990732 | I98: 8 | J98: 0 | K98: 0 | L98: 7016.990732 | M98: 8 | N98: 0 | O98: 0 | P98: 7028.842963 | Q98: 3 | R98: 0 | S98: 0 | T98: 11.85223121 | U98: 0
A99: 87 | B99: 1425.219731 | C99: 0 | D99: 13481.1451 | E99: 8 | F99: 1425.219731 | G99: 0 | H99: 13481.1451 | I99: 8 | J99: 1097.769263 | K99: 327.4504676 | L99: 13503.91578 | M99: 3 | N99: 1425.219731 | O99: 0 | P99: 13744.97501 | Q99: 2 | R99: 0 | S99: 0 | T99: 304.6797879 | U99: -263.829916
A100: 88 | B100: 3050.669754 | C100: 3821.926082 | D100: 8272.389976 | E100: 8 | F100: 3050.669754 | G100: 3821.926082 | H100: 8272.389976 | I100: 8 | J100: 1880.88941 | K100: 4991.706426 | L100: 8355.32716 | M100: 4 | N100: 3050.669754 | O100: 3821.926082 | P100: 8272.389976 | Q100: 8 | R100: 0 | S100: 0 | T100: 1086.84316 | U100: 0
A101: 89 | B101: 0 | C101: 0 | D101: 7693.239662 | E101: 5 | F101: 0 | G101: 0 | H101: 7610.138081 | I101: 8 | J101: 0 | K101: 0 | L101: 7610.138081 | M101: 8 | N101: 0 | O101: 0 | P101: 7622.992183 | Q101: 3 | R101: 0 | S101: 0 | T101: 83.10158095 | U101: 70.24747874
A102: 90 | B102: 2629.96519 | C102: 10169.68654 | D102: 15214.74223 | E102: 5 | F102: 4330.115456 | G102: 8469.536277 | H102: 15050.39415 | I102: 8 | J102: 2238.983288 | K102: 10560.66844 | L102: 15290.1972 | M102: 7 | N102: 4330.115456 | O102: 8469.536277 | P102: 15050.39415 | Q102: 8 | R102: 0 | S102: 0 | T102: 315.5269313 | U102: -1535.80219
A103: 91 | B103: 3336.779575 | C103: 16531.0159 | D103: 14038.77975 | E103: 5 | F103: 3956.599888 | G103: 15911.19559 | H103: 13887.1343 | I103: 8 | J103: 3336.779575 | K103: 16531.0159 | L103: 14038.77975 | M103: 5 | N103: 4640.823017 | O103: 15226.97246 | P103: 13910.59073 | Q103: 3 | R103: 0 | S103: 1 | T103: 0 | U103: -1175.854418
A104: 92 | B104: 1584.884617 | C104: 763.9615372 | D104: 8592.676308 | E104: 5 | F104: 2034.884616 | G104: 313.9615379 | H104: 8499.859105 | I104: 8 | J104: 1202.326931 | K104: 1146.519223 | L104: 8585.076845 | M104: 4 | N104: 2034.884616 | O104: 313.9615379 | P104: 8499.859105 | Q104: 8 | R104: 0 | S104: 0 | T104: 390.1571483 | U104: -357.1827965
A105: 93 | B105: 2977.118356 | C105: 11203.67016 | D105: 13118.99785 | E105: 4 | F105: 1778.58609 | G105: 12402.20243 | H105: 12988.77521 | I105: 8 | J105: 931.0956537 | K105: 13249.69287 | L105: 13242.96931 | M105: 2 | N105: 931.0956537 | O105: 13249.69287 | P105: 13242.96931 | Q105: 2 | R105: 1 | S105: 0 | T105: 1922.051245 | U105: 1922.051245
A106: 94 | B106: 0 | C106: 0 | D106: 4062.788737 | E106: 4 | F106: 0 | G106: 0 | H106: 4022.460424 | I106: 8 | J106: 0 | K106: 0 | L106: 4022.460424 | M106: 8 | N106: 0 | O106: 0 | P106: 4022.460424 | Q106: 8 | R106: 1 | S106: 0 | T106: 40.32831395 | U106: 40.32831395
A107: 95 | B107: 848.5653563 | C107: 18.31169616 | D107: 6420.964026 | E107: 8 | F107: 848.5653563 | G107: 18.31169616 | H107: 6420.964026 | I107: 8 | J107: 676.089568 | K107: 190.7874845 | L107: 6431.809523 | M107: 3 | N107: 789.4381166 | O107: 77.43893591 | P107: 6546.624153 | Q107: 2 | R107: 0 | S107: 0 | T107: 161.6302916 | U107: -66.53288686
A108: 96 | B108: 567.7278817 | C108: 8730.140167 | D108: 7028.842963 | E108: 3 | F108: 1956.574875 | G108: 7341.293174 | H108: 7016.990732 | I108: 8 | J108: 567.7278817 | K108: 8730.140167 | L108: 7028.842963 | M108: 3 | N108: 1641.229596 | O108: 7656.638452 | P108: 7154.315274 | Q108: 2 | R108: 0 | S108: 1 | T108: 0 | U108: -1198.974025
A109: 97 | B109: 4443.080454 | C109: 22052.07439 | D109: 14035.6099 | E109: 2 | F109: 4507.431119 | G109: 21987.72372 | H109: 13766.20135 | I109: 8 | J109: 3999.515521 | K109: 22495.63932 | L109: 13916.52623 | M109: 5 | N109: 5524.220622 | O109: 20970.93422 | P109: 13789.45351 | Q109: 3 | R109: 0 | S109: 0 | T109: 562.6486019 | U109: -834.9837799
A110: 98 | B110: 2805.161003 | C110: 9455.094611 | D110: 12576.56407 | E110: 2 | F110: 3416.14248 | G110: 8844.113134 | H110: 12335.16138 | I110: 8 | J110: 2402.356789 | K110: 9857.898824 | L110: 12531.7017 | M110: 7 | N110: 3416.14248 | O110: 8844.113134 | P110: 12335.16138 | Q110: 8 | R110: 0 | S110: 0 | T110: 447.6665768 | U110: -369.5787947
A111: 99 | B111: 703.7022422 | C111: 0 | D111: 3191.112311 | E111: 2 | F111: 703.7022422 | G111: 0 | H111: 3129.860043 | I111: 8 | J111: 703.7022422 | K111: 0 | L111: 3129.860043 | M111: 8 | N111: 703.7022422 | O111: 0 | P111: 3135.146615 | Q111: 3 | R111: 0 | S111: 0 | T111: 61.25226799 | U111: 55.96569625
A112: 100 | B112: 1704.293283 | C112: 817.173115 | D112: 3273.33665 | E112: 7 | F112: 1636.576214 | G112: 884.8901836 | H112: 3221.999437 | I112: 8 | J112: 1163.558296 | K112: 1357.908102 | L112: 3285.0549 | M112: 2 | N112: 1794.248853 | O112: 727.2175442 | P112: 3227.441639 | Q112: 3 | R112: 0 | S112: 0 | T112: 529.0167362 | U112: -44.06056066
A113: 101 | B113: 1413.25334 | C113: 643.766406 | D113: 22871.86077 | E113: 3 | F113: 2057.019746 | G113: 0 | H113: 22833.2936 | I113: 8 | J113: 1158.552968 | K113: 898.4667777 | L113: 23062.21524 | M113: 4 | N113: 1413.25334 | O113: 643.766406 | P113: 22871.86077 | Q113: 3 | R113: 0 | S113: 0 | T113: 64.34590274 | U113: 0
A114: 102 | B114: 4641.531345 | C114: 20635.34332 | D114: 21552.84705 | E114: 4 | F114: 4553.460173 | G114: 20723.41449 | H114: 21338.9078 | I114: 8 | J114: 3877.687502 | K114: 21399.18717 | L114: 21571.92551 | M114: 5 | N114: 5548.946526 | O114: 19727.92814 | P114: 21374.95084 | Q114: 3 | R114: 0 | S114: 0 | T114: 744.7653811 | U114: -729.5189682
A115: 103 | B115: 2849.429385 | C115: 8050.600734 | D115: 7967.505807 | E115: 2 | F115: 3046.520184 | G115: 7853.509935 | H115: 7814.572362 | I115: 8 | J115: 2440.003026 | K115: 8460.027093 | L115: 7899.906335 | M115: 5 | N115: 3353.015953 | O115: 7547.014165 | P115: 7827.771769 | Q115: 3 | R115: 0 | S115: 0 | T115: 477.0258315 | U115: -363.85253
A116: 104 | B116: 360.7123917 | C116: 291.7484913 | D116: 9202.785612 | E116: 7 | F116: 652.4608831 | G116: 0 | H116: 9058.454182 | I116: 8 | J116: 401.8863219 | K116: 250.5745612 | L116: 9073.7546 | M116: 3 | N116: 360.7123917 | O116: 291.7484913 | P116: 9202.785612 | Q116: 7 | R116: 0 | S116: 0 | T116: 87.85708117 | U116: 0
A117: 105 | B117: 54.89857358 | C117: 9180.079902 | D117: 2884.219517 | E117: 3 | F117: 2723.497858 | G117: 6511.480617 | H117: 2879.356066 | I117: 8 | J117: 54.89857358 | K117: 9180.079902 | L117: 2884.219517 | M117: 3 | N117: 2723.497858 | O117: 6511.480617 | P117: 2879.356066 | Q117: 8 | R117: 0 | S117: 1 | T117: 0 | U117: -2663.735833
A118: 106 | B118: 0 | C118: 0 | D118: 8776.277288 | E118: 8 | F118: 0 | G118: 0 | H118: 8776.277288 | I118: 8 | J118: 0 | K118: 0 | L118: 8776.277288 | M118: 8 | N118: 0 | O118: 0 | P118: 8791.101088 | Q118: 3 | R118: 0 | S118: 1 | T118: 0 | U118: -14.82380005
A119: 107 | B119: 3069.149859 | C119: 11572.11195 | D119: 15767.35381 | E119: 8 | F119: 3069.149859 | G119: 11572.11195 | H119: 15767.35381 | I119: 8 | J119: 2814.126201 | K119: 11827.13561 | L119: 15939.53098 | M119: 5 | N119: 2694.67734 | O119: 11946.58447 | P119: 16075.9255 | Q119: 2 | R119: 0 | S119: 0 | T119: 82.84648905 | U119: 65.90083532
A120: 108 | B120: 492.1461883 | C120: 0 | D120: 3370.631458 | E120: 4 | F120: 492.1461883 | G120: 0 | H120: 3337.17368 | I120: 8 | J120: 492.1461883 | K120: 0 | L120: 3337.17368 | M120: 8 | N120: 492.1461883 | O120: 0 | P120: 3342.81042 | Q120: 3 | R120: 0 | S120: 0 | T120: 33.457778 | U120: 27.82103776
A121: 109 | B121: 2018.115279 | C121: 39.11146532 | D121: 5151.168001 | E121: 8 | F121: 2018.115279 | G121: 39.11146532 | H121: 5151.168001 | I121: 8 | J121: 1158.584018 | K121: 898.6427264 | L121: 5202.812492 | M121: 4 | N121: 1882.240666 | O121: 174.9860779 | P121: 5159.868716 | Q121: 3 | R121: 0 | S121: 0 | T121: 807.8867703 | U121: 127.1738979
A122: 110 | B122: 1713.663505 | C122: 1922.971514 | D122: 14504.50747 | E122: 5 | F122: 711.5253123 | G122: 2925.109706 | H122: 14347.83127 | I122: 8 | J122: 120.2529148 | K122: 3516.382104 | L122: 14628.62249 | M122: 2 | N122: 1944.450357 | O122: 1692.184662 | P122: 14576.44015 | Q122: 7 | R122: 0 | S122: 0 | T122: 1469.295568 | U122: -302.7195319
A123: 111 | B123: 2736.174862 | C123: 5103.458818 | D123: 8167.252838 | E123: 7 | F123: 3479.592107 | G123: 4360.041574 | H123: 8039.162135 | I123: 8 | J123: 2025.945093 | K123: 5813.688588 | L123: 8119.761027 | M123: 4 | N123: 3479.592107 | O123: 4360.041574 | P123: 8039.162135 | Q123: 8 | R123: 0 | S123: 0 | T123: 757.7215801 | U123: -615.3265414
A124: 112 | B124: 1134.856296 | C124: 764.18564 | D124: 7087.341556 | E124: 4 | F124: 1899.041936 | G124: 0 | H124: 7016.990732 | I124: 8 | J124: 1134.856296 | K124: 764.18564 | L124: 7087.341556 | M124: 4 | N124: 1899.041936 | O124: 0 | P124: 7016.990732 | Q124: 8 | R124: 0 | S124: 1 | T124: 0 | U124: -693.8348161
A125: 113 | B125: 402.3751933 | C125: 2461.099143 | D125: 9131.438991 | E125: 3 | F125: 2221.1156 | G125: 642.3587365 | H125: 9116.041303 | I125: 8 | J125: 402.3751933 | K125: 2461.099143 | L125: 9131.438991 | M125: 3 | N125: 402.3751933 | O125: 2461.099143 | P125: 9131.438991 | Q125: 3 | R125: 1 | S125: 1 | T125: 0 | U125: 0
A126: 114 | B126: 0 | C126: 0 | D126: 8172.109057 | E126: 4 | F126: 0 | G126: 0 | H126: 8090.990544 | I126: 8 | J126: 0 | K126: 0 | L126: 8090.990544 | M126: 8 | N126: 0 | O126: 0 | P126: 8090.990544 | Q126: 8 | R126: 1 | S126: 0 | T126: 81.11851267 | U126: 81.11851267
A127: 115 | B127: 2105.976863 | C127: 1637.6539 | D127: 16604.35256 | E127: 2 | F127: 2401.613061 | G127: 1342.017701 | H127: 16285.63791 | I127: 8 | J127: 1105.874426 | K127: 2637.756337 | L127: 16313.14559 | M127: 3 | N127: 2105.976863 | O127: 1637.6539 | P127: 16604.35256 | Q127: 2 | R127: 0 | S127: 0 | T127: 1291.309408 | U127: 0
A128: 116 | B128: 0 | C128: 0 | D128: 3332.026194 | E128: 2 | F128: 0 | G128: 0 | H128: 3268.069134 | I128: 8 | J128: 0 | K128: 0 | L128: 3268.069134 | M128: 8 | N128: 0 | O128: 0 | P128: 3268.069134 | Q128: 8 | R128: 1 | S128: 0 | T128: 63.95705995 | U128: 63.95705995
A129: 117 | B129: 0 | C129: 0 | D129: 3530.58377 | E129: 4 | F129: 0 | G129: 0 | H129: 3495.538264 | I129: 8 | J129: 0 | K129: 0 | L129: 3495.538264 | M129: 8 | N129: 0 | O129: 0 | P129: 3495.538264 | Q129: 8 | R129: 1 | S129: 0 | T129: 35.0455069 | U129: 35.0455069
A130: 118 | B130: 5240.289968 | C130: 33662.60916 | D130: 14652.95818 | E130: 5 | F130: 5000 | G130: 33902.89912 | H130: 14494.67843 | I130: 8 | J130: 5000 | K130: 33902.89912 | L130: 14494.67843 | M130: 8 | N130: 5515.997825 | O130: 33386.9013 | P130: 14778.34349 | Q130: 2 | R130: 0 | S130: 0 | T130: 398.5697103 | U130: -401.0931713
A131: 119 | B131: 1247.669242 | C131: 267.6157356 | D131: 3621.439475 | E131: 7 | F131: 1515.284978 | G131: 0 | H131: 3564.642809 | I131: 8 | J131: 1077.29275 | K131: 437.992228 | L131: 3600.381143 | M131: 4 | N131: 1275.118529 | O131: 240.1664488 | P131: 3570.663762 | Q131: 3 | R131: 0 | S131: 0 | T131: 191.4348239 | U131: 23.32642588
A132: 120 | B132: 2288.1333 | C132: 7299.42169 | D132: 6883.765885 | E132: 4 | F132: 3047.76552 | G132: 6539.78947 | H132: 6815.435807 | I132: 8 | J132: 2288.1333 | K132: 7299.42169 | L132: 6883.765885 | M132: 4 | N132: 2949.9417 | O132: 6637.61329 | P132: 6924.028462 | Q132: 7 | R132: 0 | S132: 1 | T132: 0 | U132: -702.0709776
A133: 121 | B133: 7500 | C133: 34452.13927 | D133: 8514.216014 | E133: 3 | F133: 5000 | G133: 36952.13927 | H133: 8499.859105 | I133: 8 | J133: 5000 | K133: 36952.13927 | L133: 8499.859105 | M133: 8 | N133: 7500 | O133: 34452.13927 | P133: 8514.216014 | Q133: 3 | R133: 0 | S133: 0 | T133: 2514.356909 | U133: 0
A134: 122 | B134: 115.1844839 | C134: 0 | D134: 12354.13497 | E134: 4 | F134: 115.1844839 | G134: 0 | H134: 12231.50457 | I134: 8 | J134: 84.34718301 | K134: 30.83730086 | L134: 12252.16451 | M134: 3 | N134: 84.34718301 | O134: 30.83730086 | P134: 12252.16451 | Q134: 3 | R134: 1 | S134: 0 | T134: 132.8077654 | U134: 132.8077654
A135: 123 | B135: 0 | C135: 0 | D135: 5988.840032 | E135: 2 | F135: 0 | G135: 0 | H135: 5873.886374 | I135: 8 | J135: 0 | K135: 0 | L135: 5873.886374 | M135: 8 | N135: 0 | O135: 0 | P135: 5873.886374 | Q135: 8 | R135: 1 | S135: 0 | T135: 114.9536584 | U135: 114.9536584
A136: 124 | B136: 5000 | C136: 23704.51575 | D136: 5511.140525 | E136: 7 | F136: 4836.702923 | G136: 23867.81283 | H136: 5424.706827 | I136: 8 | J136: 4220.451615 | K136: 24484.06413 | L136: 5483.943823 | M136: 5 | N136: 4324.266845 | O136: 24380.2489 | P136: 5530.869912 | Q136: 2 | R136: 0 | S136: 0 | T136: 806.7450871 | U136: 656.003768
A137: 125 | B137: 1942.975336 | C137: 849.6469166 | D137: 3402.483136 | E137: 2 | F137: 2061.229816 | G137: 731.3924371 | H137: 3337.17368 | I137: 8 | J137: 843.9048091 | K137: 1948.717444 | L137: 3342.81042 | M137: 3 | N137: 1192.763001 | O137: 1599.859251 | P137: 3390.346003 | Q137: 7 | R137: 0 | S137: 0 | T137: 1158.743243 | U137: 762.3494682
A138: 126 | B138: 1869.647115 | C138: 1510.586845 | D138: 14257.58966 | E138: 7 | F138: 977.3171196 | G138: 2402.916841 | H138: 14033.98146 | I138: 8 | J138: 169.244843 | K138: 3210.989117 | L138: 14308.63055 | M138: 2 | N138: 1132.328276 | O138: 2247.905685 | P138: 14057.68593 | Q138: 3 | R138: 0 | S138: 0 | T138: 1649.361386 | U138: 937.2225744
A139: 127 | B139: 815.0475336 | C139: 739.4873035 | D139: 6546.624153 | E139: 2 | F139: 913.5929332 | G139: 640.9419039 | H139: 6420.964026 | I139: 8 | J139: 570.0466592 | K139: 984.4881779 | L139: 6431.809523 | M139: 3 | N139: 570.0466592 | O139: 984.4881779 | P139: 6431.809523 | Q139: 3 | R139: 1 | S139: 0 | T139: 359.8155043 | U139: 359.8155043
A140: 128 | B140: 1520.24015 | C140: 182.1613466 | D140: 15616.43238 | E140: 5 | F140: 885.9947141 | G140: 816.4067825 | H140: 15447.74529 | I140: 8 | J140: 472.1040359 | K140: 1230.297461 | L140: 15750.06214 | M140: 2 | N140: 885.9947141 | O140: 816.4067825 | P140: 15447.74529 | Q140: 8 | R140: 0 | S140: 0 | T140: 914.5063535 | U140: 802.932527
A141: 129 | B141: 0 | C141: 0 | D141: 10928.67357 | E141: 7 | F141: 0 | G141: 0 | H141: 10757.27426 | I141: 8 | J141: 0 | K141: 0 | L141: 10757.27426 | M141: 8 | N141: 0 | O141: 0 | P141: 10757.27426 | Q141: 8 | R141: 1 | S141: 0 | T141: 171.3993074 | U141: 171.3993074
A142: 130 | B142: 0 | C142: 0 | D142: 5676.852982 | E142: 4 | F142: 0 | G142: 0 | H142: 5620.50304 | I142: 8 | J142: 0 | K142: 0 | L142: 5620.50304 | M142: 8 | N142: 0 | O142: 0 | P142: 5620.50304 | Q142: 8 | R142: =IF(Q142=M142,1,0) -> 1 | S142: =IF(M142=E142,1,0) -> 0 | T142: =(B142+D142)-(J142+L142) -> 56.3499419 | U142: =(B142+D142)-(N142+P142) -> 56.3499419
A143: 131 | B143: 2121.676549 | C143: 5169.903916 | D143: 24419.20166 | E143: 2 | F143: 3205.675944 | G143: 4085.904521 | H143: 23950.48375 | I143: 8 | J143: 1943.737107 | K143: 5347.843358 | L143: 24190.6061 | M143: 4 | N143: 2121.676549 | O143: 5169.903916 | P143: 24419.20166 | Q143: 2 | R143: 0 | S143: 0 | T143: 406.5350043 | U143: 0
A144: 132 | B144: 3031.233246 | C144: 6457.026224 | D144: 14715.28798 | E144: 3 | F144: 2853.555891 | G144: 6634.703579 | H144: 14690.47465 | I144: 8 | J144: 2273.238971 | K144: 7215.020499 | L144: 14837.75815 | M144: 4 | N144: 2899.163121 | O144: 6589.09635 | P144: 14924.54297 | Q144: 7 | R144: 0 | S144: 0 | T144: 635.5240982 | U144: -77.18487161
A145: 133 | B145: 238.2789238 | C145: 0 | D145: 4961.429911 | E145: 4 | F145: 238.2789238 | G145: 0 | H145: 4912.181448 | I145: 8 | J145: 27.44928679 | K145: 210.829637 | L145: 4920.478496 | M145: 3 | N145: 238.2789238 | O145: 0 | P145: 4912.181448 | Q145: 8 | R145: 0 | S145: 0 | T145: 251.7810523 | U145: 49.24846356
A146: 134 | B146: 2497.925217 | C146: 4157.392178 | D146: 2879.356066 | E146: 8 | F146: 2497.925217 | G146: 4157.392178 | H146: 2879.356066 | I146: 8 | J146: 1848.297643 | K146: 4807.019752 | L146: 2908.223864 | M146: 4 | N146: 2379.778807 | O146: 4275.538588 | P146: 2884.219517 | Q146: 3 | R146: 0 | S146: 0 | T146: 620.7597757 | U146: 113.2829579
A147: 135 | B147: 2197.226807 | C147: 6784.284921 | D147: 14680.71406 | E147: 4 | F147: 3608.722356 | G147: 5372.789372 | H147: 14534.98942 | I147: 8 | J147: 2197.226807 | K147: 6784.284921 | L147: 14680.71406 | M147: 4 | N147: 2386.759401 | O147: 6594.752327 | P147: 14819.44337 | Q147: 2 | R147: 0 | S147: 1 | T147: 0 | U147: -328.2619042
A148: 136 | B148: 7500 | C148: 43769.01138 | D148: 13246.9597 | E148: 4 | F148: 5000 | G148: 46269.01138 | H148: 13115.46688 | I148: 8 | J148: 5000 | K148: 46269.01138 | L148: 13115.46688 | M148: 8 | N148: 5000 | O148: 46269.01138 | P148: 13115.46688 | Q148: 8 | R148: 1 | S148: 0 | T148: 2631.49282 | U148: 2631.49282
A149: 137 | B149: 664.4274862 | C149: 501.8278838 | D149: 13064.09426 | E149: 7 | F149: 1166.25537 | G149: 0 | H149: 12859.20419 | I149: 8 | J149: 719.3260598 | K149: 446.9293102 | L149: 12880.92436 | M149: 3 | N149: 719.3260598 | O149: 446.9293102 | P149: 12880.92436 | Q149: 3 | R149: 1 | S149: 0 | T149: 128.2713237 | U149: 128.2713237
A150: 138 | B150: 289.4977578 | C150: 0 | D150: 3808.654439 | E150: 7 | F150: 289.4977578 | G150: 0 | H150: 3748.921597 | I150: 8 | J150: 289.4977578 | K150: 0 | L150: 3748.921597 | M150: 8 | N150: 289.4977578 | O150: 0 | P150: 3748.921597 | Q150: 8 | R150: 1 | S150: 0 | T150: 59.73284215 | U150: 59.73284215
A151: 139 | B151: 134.7278027 | C151: 0 | D151: 5900.187966 | E151: 5 | F151: 134.7278027 | G151: 0 | H151: 5836.454745 | I151: 8 | J151: 27.44928679 | K151: 107.2785159 | L151: 5846.312961 | M151: 3 | N151: 134.7278027 | O151: 0 | P151: 5950.675855 | Q151: 2 | R151: 0 | S151: 0 | T151: 161.1535214 | U151: -50.48788903
A152: 140 | B152: 0 | C152: 0 | D152: 4545.553899 | E152: 4 | F152: 0 | G152: 0 | H152: 4500.43353 | I152: 8 | J152: 0 | K152: 0 | L152: 4500.43353 | M152: 8 | N152: 0 | O152: 0 | P152: 4572.140468 | Q152: 7 | R152: 0 | S152: 0 | T152: 45.12036843 | U152: -26.5865688
A153: 141 | B153: 2964.888176 | C153: 43652.5811 | D153: 15433.00591 | E153: 2 | F153: 4955.505247 | G153: 41661.96403 | H153: 15136.77484 | I153: 8 | J153: 2964.888176 | K153: 43652.5811 | L153: 15433.00591 | M153: 2 | N153: 4955.505247 | O153: 41661.96403 | P153: 15136.77484 | Q153: 8 | R153: 0 | S153: 1 | T153: 0 | U153: -1694.386002
A154: 142 | B154: 193.1944789 | C154: 0 | D154: 14067.07883 | E154: 4 | F154: 186.7270171 | G154: 6.467461801 | H154: 13927.44529 | I154: 8 | J154: 53.62582851 | K154: 139.5686504 | L154: 13950.9698 | M154: 3 | N154: 53.62582851 | O154: 139.5686504 | P154: 13950.9698 | Q154: 3 | R154: 1 | S154: 0 | T154: 255.6776751 | U154: 255.6776751
A155: 143 | B155: 2054.333391 | C155: 4989.000438 | D155: 16064.69531 | E155: 5 | F155: 2693.786111 | G155: 4349.547718 | H155: 15891.16613 | I155: 8 | J155: 1906.50011 | K155: 5136.833718 | L155: 16050.4875 | M155: 4 | N155: 2693.786111 | O155: 4349.547718 | P155: 15891.16613 | Q155: 8 | R155: 0 | S155: 0 | T155: 162.041084 | U155: -465.9235387
A156: 144 | B156: 0 | C156: 0 | D156: 2910.798207 | E156: 5 | F156: 0 | G156: 0 | H156: 2879.356066 | I156: 8 | J156: 0 | K156: 0 | L156: 2879.356066 | M156: 8 | N156: 0 | O156: 0 | P156: 2879.356066 | Q156: 8 | R156: 1 | S156: 0 | T156: 31.44214187 | U156: 31.44214187
A157: 145 | B157: 1755.117943 | C157: 2296.061446 | D157: 8973.990873 | E157: 5 | F157: 2378.181182 | G157: 1672.998207 | H157: 8877.05475 | I157: 8 | J157: 1457.676927 | K157: 2593.502462 | L157: 8966.054172 | M157: 4 | N157: 2161.381303 | O157: 1889.798086 | P157: 9050.781284 | Q157: 2 | R157: 0 | S157: 0 | T157: 305.377718 | U157: -483.0537706
A158: 146 | B158: 2344.633032 | C158: 2684.935128 | D158: 8499.859105 | E158: 8 | F158: 2344.633032 | G158: 2684.935128 | H158: 8499.859105 | I158: 8 | J158: 1604.435248 | K158: 3425.132912 | L158: 8585.076845 | M158: 4 | N158: 2181.335505 | O158: 2848.232655 | P158: 8635.29025 | Q158: 7 | R158: 0 | S158: 0 | T158: 654.9800442 | U158: 27.86638268
A159: 147 | B159: 2267.347086 | C159: 1984.720931 | D159: 12439.63878 | E159: 3 | F159: 2327.295318 | G159: 1924.7727 | H159: 12418.66271 | I159: 8 | J159: 1487.810222 | K159: 2764.257795 | L159: 12543.16952 | M159: 4 | N159: 2267.347086 | O159: 1984.720931 | P159: 12439.63878 | Q159: 3 | R159: 0 | S159: 0 | T159: 676.0061173 | U159: 0
A160: 148 | B160: 0 | C160: 0 | D160: 8219.907047 | E160: 7 | F160: 0 | G160: 0 | H160: 8090.990544 | I160: 8 | J160: 0 | K160: 0 | L160: 8090.990544 | M160: 8 | N160: 0 | O160: 0 | P160: 8090.990544 | Q160: 8 | R160: 1 | S160: 0 | T160: 128.9165026 | U160: 128.9165026
A161: 149 | B161: 3585.126881 | C161: 17424.77773 | D161: 16252.06785 | E161: 2 | F161: 4156.690199 | G161: 16853.21441 | H161: 15940.11518 | I161: 8 | J161: 3450.99049 | K161: 17558.91412 | L161: 16114.17888 | M161: 5 | N161: 4156.690199 | O161: 16853.21441 | P161: 15940.11518 | Q161: 8 | R161: 0 | S161: 0 | T161: 272.0253668 | U161: -259.6106445
A162: 150 | B162: 0 | C162: 0 | D162: 12428.1019 | E162: 3 | F162: 0 | G162: 0 | H162: 12407.14529 | I162: 8 | J162: 0 | K162: 0 | L162: 12407.14529 | M162: 8 | N162: 0 | O162: 0 | P162: 12604.83255 | Q162: 7 | R162: 0 | S162: 0 | T162: 20.95661235 | U162: -176.730651
A163: 151 | B163: 2369.992796 | C163: 7763.29215 | D163: 14218.30647 | E163: 4 | F163: 2917.38026 | G163: 7215.904686 | H163: 14077.1718 | I163: 8 | J163: 1983.866057 | K163: 8149.418889 | L163: 14301.46817 | M163: 7 | N163: 1983.866057 | O163: 8149.418889 | P163: 14301.46817 | Q163: 7 | R163: 1 | S163: 0 | T163: 302.9650403 | U163: 302.9650403
A164: 152 | B164: 1857.17067 | C164: 3214.53598 | D164: 11614.08485 | E164: 5 | F164: 2354.288445 | G164: 2717.418206 | H164: 11488.6307 | I164: 8 | J164: 1610.756022 | K164: 3460.950629 | L164: 11603.81322 | M164: 4 | N164: 2354.288445 | O164: 2717.418206 | P164: 11488.6307 | Q164: 8 | R164: 0 | S164: 0 | T164: 256.6862801 | U164: -371.6636282
A165: 153 | B165: 86.84932735 | C165: 19.63240629 | D165: 3889.810315 | E165: 2 | F165: 106.4817336 | G165: 0 | H165: 3815.146787 | I165: 8 | J165: 47.08169308 | K165: 59.40004056 | L165: 3821.59086 | M165: 3 | N165: 33.35704968 | O165: 73.12468396 | P165: 3875.934817 | Q165: 7 | R165: 0 | S165: 0 | T165: 107.9870892 | U165: 67.3677752
A166: 154 | B166: 660.2775785 | C166: 0 | D166: 13760.44264 | E166: 8 | F166: 660.2775785 | G166: 0 | H166: 13760.44264 | I166: 8 | J166: 109.7971472 | K166: 550.4804313 | L166: 13783.68507 | M166: 3 | N166: 109.7971472 | O166: 550.4804313 | P166: 13783.68507 | Q166: 3 | R166: 1 | S166: 0 | T166: 527.2379968 | U166: 527.2379968
A167: 155 | B167: 1320.417732 | C167: 0 | D167: 3556.995409 | E167: 5 | F167: 1166.366011 | G167: 154.0517203 | H167: 3518.573112 | I167: 8 | J167: 673.6390135 | K167: 646.7787183 | L167: 3587.432607 | M167: 2 | N167: 1095.404932 | O167: 225.0127994 | P167: 3574.635733 | Q167: 7 | R167: 0 | S167: 0 | T167: 616.3415202 | U167: 207.3724754
A168: 156 | B168: 7500 | C168: 132754.23 | D168: 9705.398675 | E168: 3 | F168: 5000 | G168: 135254.23 | H168: 9689.03316 | I168: 8 | J168: 5000 | K168: 135254.23 | L168: 9689.03316 | M168: 8 | N168: 7500 | O168: 132754.23 | P168: 9705.398675 | Q168: 3 | R168: 0 | S168: 0 | T168: 2516.365514 | U168: 0
A169: 157 | B169: 0 | C169: 0 | D169: 6491.080002 | E169: 5 | F169: 0 | G169: 0 | H169: 6420.964026 | I169: 8 | J169: 0 | K169: 0 | L169: 6420.964026 | M169: 8 | N169: 0 | O169: 0 | P169: 6420.964026 | Q169: 8 | R169: 1 | S169: 0 | T169: 70.11597636 | U169: 70.11597636
A170: 158 | B170: 0 | C170: 0 | D170: 3191.112311 | E170: 2 | F170: 0 | G170: 0 | H170: 3129.860043 | I170: 8 | J170: 0 | K170: 0 | L170: 3129.860043 | M170: 8 | N170: 0 | O170: 0 | P170: 3179.729167 | Q170: 7 | R170: 0 | S170: 0 | T170: 61.25226799 | U170: 11.38314401
A171: 159 | B171: 0 | C171: 0 | D171: 6491.080002 | E171: 5 | F171: 0 | G171: 0 | H171: 6420.964026 | I171: 8 | J171: 0 | K171: 0 | L171: 6420.964026 | M171: 8 | N171: 0 | O171: 0 | P171: 6420.964026 | Q171: 8 | R171: 1 | S171: 0 | T171: 70.11597636 | U171: 70.11597636
A172: 160 | B172: 259.4345291 | C172: 0 | D172: 14672.02468 | E172: 3 | F172: 259.4345291 | G172: 0 | H172: 14647.28431 | I172: 8 | J172: 259.4345291 | K172: 0 | L172: 14647.28431 | M172: 8 | N172: 259.4345291 | O172: 0 | P172: 14647.28431 | Q172: 8 | R172: 1 | S172: 0 | T172: 24.74037758 | U172: 24.74037758
A173: 161 | B173: 1657.253867 | C173: 3724.438406 | D173: 9262.693006 | E173: 4 | F173: 2381.89724 | G173: 2999.795033 | H173: 9170.749069 | I173: 8 | J173: 1657.253867 | K173: 3724.438406 | L173: 9262.693006 | M173: 4 | N173: 2243.933681 | O173: 3137.758592 | P173: 9350.223285 | Q173: 2 | R173: 0 | S173: 1 | T173: 0 | U173: -674.2100934
A174: 162 | B174: 1163.606114 | C174: 927.1012673 | D174: 13828.60447 | E174: 4 | F174: 1883.30582 | G174: 207.401561 | H174: 13691.33809 | I174: 8 | J174: 749.8359855 | K174: 1340.871395 | L174: 13714.4638 | M174: 3 | N174: 768.6040797 | O174: 1322.103301 | P174: 13909.48684 | Q174: 7 | R174: 0 | S174: 0 | T174: 527.9107964 | U174: 314.1196701
A175: 163 | B175: 183.7197309 | C175: 0 | D175: 6849.00186 | E175: 2 | F175: 183.7197309 | G175: 0 | H175: 6717.537701 | I175: 8 | J175: 27.44928679 | K175: 156.2704442 | L175: 6728.884133 | M175: 3 | N175: 27.44928679 | O175: 156.2704442 | P175: 6728.884133 | Q175: 3 | R175: 1 | S175: 0 | T175: 276.3881713 | U175: 276.3881713
A176: 164 | B176: 3310.720382 | C176: 13237.28372 | D176: 20009.7714 | E176: 2 | F176: 3507.811181 | G176: 13040.19292 | H176: 19625.69094 | I176: 8 | J176: 3004.800433 | K176: 13543.20367 | L176: 19840.00058 | M176: 5 | N176: 4061.545586 | O176: 12486.45852 | P176: 19658.84023 | Q176: 3 | R176: 0 | S176: 0 | T176: 475.6907685 | U176: -399.8940308
A177: 165 | B177: 2486.376429 | C177: 901.2961683 | D177: 10739.99812 | E177: 8 | F177: 2486.376429 | G177: 901.2961683 | H177: 10739.99812 | I177: 8 | J177: 1358.150904 | K177: 2029.521693 | L177: 10847.67501 | M177: 4 | N177: 2486.376429 | O177: 901.2961683 | P177: 10739.99812 | Q177: 8 | R177: 0 | S177: 0 | T177: 1020.548638 | U177: 0
A178: 166 | B178: 568.9744395 | C178: 0 | D178: 9273.803089 | E178: 5 | F178: 568.9744395 | G178: 0 | H178: 9173.628425 | I178: 8 | J178: 54.89857358 | K178: 514.0758659 | L178: 9189.123381 | M178: 3 | N178: 27.44928679 | O178: 541.5251527 | P178: 9319.794965 | Q178: 7 | R178: 0 | S178: 0 | T178: 598.7555735 | U178: 495.5332766
A179: 167 | B179: 5.453446191 | C179: 0 | D179: 2925.233824 | E179: 7 | F179: 5.453446191 | G179: 0 | H179: 2879.356066 | I179: 8 | J179: 5.453446191 | K179: 0 | L179: 2879.356066 | M179: 8 | N179: 5.453446191 | O179: 0 | P179: 2884.219517 | Q179: 3 | R179: 0 | S179: 0 | T179: 45.87775895 | U179: 41.01430749
A180: 168 | B180: 110.0130013 | C180: 25.8698472 | D180: 3135.146615 | E180: 3 | F180: 90.30392136 | G180: 45.57892712 | H180: 3129.860043 | I180: 8 | J180: 90.30392136 | K180: 45.57892712 | L180: 3129.860043 | M180: 8 | N180: 110.0130013 | O180: 25.8698472 | P180: 3135.146615 | Q180: 3 | R180: 0 | S180: 0 | T180: 24.99565165 | U180: 0
A181: 169 | B181: 54.89857358 | C181: 445.0417852 | D181: 8099.97246 | E181: 7 | F181: 499.9403587 | G181: 0 | H181: 7972.936945 | I181: 8 | J181: 109.7971472 | K181: 390.1432116 | L181: 7986.403842 | M181: 3 | N181: 499.9403587 | O181: 0 | P181: 7972.936945 | Q181: 8 | R181: 0 | S181: 0 | T181: 58.67004386 | U181: -318.0062706
A182: 170 | B182: 5194.437868 | C182: 23768.48014 | D182: 12511.17906 | E182: 4 | F182: 4330.431509 | G182: 24632.4865 | H182: 12386.98979 | I182: 8 | J182: 3640.613712 | K182: 25322.3043 | L182: 12629.40677 | M182: 2 | N182: 4330.431509 | O182: 24632.4865 | P182: 12386.98979 | Q182: 8 | R182: 0 | S182: 0 | T182: 1435.596444 | U182: 988.1956268
A183: 171 | B183: 2445.080828 | C183: 4774.755836 | D183: 3551.233863 | E183: 7 | F183: 2903.230348 | G183: 4316.606316 | H183: 3495.538264 | I183: 8 | J183: 1932.975537 | K183: 5286.861127 | L183: 3530.58377 | M183: 4 | N183: 2445.080828 | O183: 4774.755836 | P183: 3551.233863 | Q183: 7 | R183: 0 | S183: 0 | T183: 532.7553838 | U183: 0
A184: 172 | B184: 1605.941809 | C184: 149.8250522 | D184: 3495.538264 | E184: 8 | F184: 1605.941809 | G184: 149.8250522 | H184: 3495.538264 | I184: 8 | J184: 1113.365034 | K184: 642.4018275 | L184: 3530.58377 | M184: 4 | N184: 1248.202967 | O184: 507.563894 | P184: 3501.442494 | Q184: 3 | R184: 0 | S184: 0 | T184: 457.5312684 | U184: 351.8346117
A185: 173 | B185: 262.6135749 | C185: 0 | D185: 3556.995409 | E185: 5 | F185: 221.2440575 | G185: 41.36951742 | H185: 3518.573112 | I185: 8 | J185: 53.72806001 | K185: 208.8855149 | L185: 3524.51625 | M185: 3 | N185: 74.80324073 | O185: 187.8103342 | P185: 3574.635733 | Q185: 7 | R185: 0 | S185: 0 | T185: 241.3646746 | U185: 170.1700101
A186: 174 | B186: 558.1308932 | C186: 70.89777813 | D186: 3320.140391 | E186: 7 | F186: 597.705378 | G186: 31.32329339 | H186: 3268.069134 | I186: 8 | J186: 566.8110164 | K186: 62.21765491 | L186: 3273.589152 | M186: 3 | N186: 566.8110164 | O186: 62.21765491 | P186: 3273.589152 | Q186: 3 | R186: 1 | S186: 0 | T186: 37.87111578 | U186: 37.87111578
A187: 175 | B187: 482.679844 | C187: 35.43407849 | D187: 12687.68166 | E187: 3 | F187: 513.1971917 | G187: 4.91673079 | H187: 12666.28733 | I187: 8 | J187: 482.679844 | K187: 35.43407849 | L187: 12687.68166 | M187: 3 | N187: 375.2336323 | O187: 142.8802902 | P187: 12914.17025 | Q187: 2 | R187: 0 | S187: 1 | T187: 0 | U187: -119.0423787
A188: 176 | B188: 2515.545053 | C188: 5396.843729 | D188: 13888.8246 | E188: 2 | F188: 2692.926772 | G188: 5219.462009 | H188: 13622.23355 | I188: 8 | J188: 2036.858358 | K188: 5875.530423 | L188: 13758.8071 | M188: 4 | N188: 2947.80748 | O188: 4964.581301 | P188: 13645.24253 | Q188: 3 | R188: 0 | S188: 0 | T188: 608.7041993 | U188: -188.6803588
A189: 177 | B189: 1556.304934 | C189: 225.2197301 | D189: 2925.233824 | E189: 7 | F189: 1781.524664 | G189: 0 | H189: 2879.356066 | I189: 8 | J189: 1117.228704 | K189: 664.2959595 | L189: 2908.223864 | M189: 4 | N189: 1781.524664 | O189: 0 | P189: 2879.356066 | Q189: 8 | R189: 0 | S189: 0 | T189: 456.0861902 | U189: -179.3419712
A190: 178 | B190: 5973.666965 | C190: 36009.49786 | D190: 12479.68577 | E190: 2 | F190: 5000 | G190: 36983.16483 | H190: 12240.14263 | I190: 8 | J190: 3906.510957 | K190: 38076.65387 | L190: 12260.81717 | M190: 3 | N190: 5973.666965 | O190: 36009.49786 | P190: 12479.68577 | Q190: 2 | R190: 0 | S190: 0 | T190: 2286.024614 | U190: 0
A191: 179 | B191: 0 | C191: 0 | D191: 3755.253811 | E191: 3 | F191: 0 | G191: 0 | H191: 3748.921597 | I191: 8 | J191: 0 | K191: 0 | L191: 3748.921597 | M191: 8 | N191: 0 | O191: 0 | P191: 3748.921597 | Q191: 8 | R191: 1 | S191: 0 | T191: 6.332213803 | U191: 6.332213803
A192: 180 | B192: 2028.619125 | C192: 572.7813133 | D192: 10336.62047 | E192: 2 | F192: 2343.828315 | G192: 257.5721235 | H192: 10138.21271 | I192: 8 | J192: 1240.210075 | K192: 1361.190363 | L192: 10239.85622 | M192: 4 | N192: 2028.619125 | O192: 572.7813133 | P192: 10336.62047 | Q192: 2 | R192: 0 | S192: 0 | T192: 885.1732933 | U192: 0
A193: 181 | B193: 27.44928679 | C193: 30.45026478 | D193: 9085.291478 | E193: 3 | F193: 57.89955157 | G193: 0 | H193: 9069.971606 | I193: 8 | J193: 27.44928679 | K193: 30.45026478 | L193: 9085.291478 | M193: 3 | N193: 27.44928679 | O193: 30.45026478 | P193: 9085.291478 | Q193: 3 | R193: 1 | S193: 1 | T193: 0 | U193: 0
A194: 182 | B194: 0 | C194: 0 | D194: 3738.448828 | E194: 7 | F194: 0 | G194: 0 | H194: 3679.817052 | I194: 8 | J194: 0 | K194: 0 | L194: 3679.817052 | M194: 8 | N194: 0 | O194: 0 | P194: 3679.817052 | Q194: 8 | R194: 1 | S194: 0 | T194: 58.63177594 | U194: 58.63177594
A195: 183 | B195: 57.07995206 | C195: 661.0516506 | D195: 2884.219517 | E195: 3 | F195: 718.1316027 | G195: 0 | H195: 2879.356066 | I195: 8 | J195: 57.07995206 | K195: 661.0516506 | L195: 2884.219517 | M195: 3 | N195: 57.07995206 | O195: 661.0516506 | P195: 2884.219517 | Q195: 3 | R195: 1 | S195: 1 | T195: 0 | U195: 0
A196: 184 | B196: 2992.774371 | C196: 13434.96912 | D196: 11366.667 | E196: 5 | F196: 4061.656339 | G196: 12366.08715 | H196: 11243.88544 | I196: 8 | J196: 2992.774371 | K196: 13434.96912 | L196: 11366.667 | M196: 5 | N196: 3214.165903 | O196: 13213.57759 | P196: 11463.93153 | Q196: 2 | R196: 0 | S196: 1 | T196: 0 | U196: -318.6560637
A197: 185 | B197: 1609.105075 | C197: 981.9456622 | D197: 11384.13179 | E197: 5 | F197: 2301.984309 | G197: 289.0664285 | H197: 11261.16157 | I197: 8 | J197: 1238.65762 | K197: 1352.393117 | L197: 11374.06353 | M197: 4 | N197: 1960.401696 | O197: 630.6490412 | P197: 11280.18253 | Q197: 3 | R197: 0 | S197: 0 | T197: 380.5157137 | U197: -247.3473628
A198: 186 | B198: 2002.451546 | C198: 4522.063843 | D198: 11881.87828 | E198: 5 | F198: 2466.19423 | G198: 4058.321159 | H198: 11753.53146 | I198: 8 | J198: 1828.677341 | K198: 4695.838048 | L198: 11871.36981 | M198: 4 | N198: 2466.19423 | O198: 4058.321159 | P198: 11753.53146 | Q198: 8 | R198: 0 | S198: 0 | T198: 184.2826763 | U198: -335.3958605
A199: 187 | B199: 1576.043224 | C199: 684.3890045 | D199: 11614.08485 | E199: 5 | F199: 1951.997195 | G199: 308.4350335 | H199: 11488.6307 | I199: 8 | J199: 1189.064842 | K199: 1071.367387 | L199: 11603.81322 | M199: 4 | N199: 1892.869955 | O199: 367.5622733 | P199: 11713.46653 | Q199: 2 | R199: 0 | S199: 0 | T199: 397.2500138 | U199: -416.208417
A200: 188 | B200: 7500 | C200: 210581.7294 | D200: 9725.99364 | E200: 2 | F200: 5000 | G200: 213081.7294 | H200: 9539.306645 | I200: 8 | J200: 5000 | K200: 213081.7294 | L200: 9539.306645 | M200: 8 | N200: 5000 | O200: 213081.7294 | P200: 9539.306645 | Q200: 8 | R200: 1 | S200: 0 | T200: 2686.686995 | U200: 2686.686995
A201: 189 | B201: 1354.216115 | C201: 9632.38848 | D201: 8090.990544 | E201: 8 | F201: 1354.216115 | G201: 9632.38848 | H201: 8090.990544 | I201: 8 | J201: 644.6892377 | K201: 10341.91536 | L201: 8249.333574 | M201: 2 | N201: 1065.514679 | O201: 9921.089916 | P201: 8104.656843 | Q201: 3 | R201: 0 | S201: 0 | T201: 551.1838475 | U201: 275.0351374
A202: 190 | B202: 1438.123818 | C202: 244.6202605 | D202: 8104.656843 | E202: 3 | F202: 1682.744078 | G202: 0 | H202: 8090.990544 | I202: 8 | J202: 1102.411616 | K202: 580.3324627 | L202: 8172.109057 | M202: 4 | N202: 1410.674531 | O202: 272.0695473 | P202: 8219.907047 | Q202: 7 | R202: 0 | S202: 0 | T202: 268.2599881 | U202: -87.80091725
A203: 191 | B203: 1527.484865 | C203: 247.3637813 | D203: 6790.892218 | E203: 5 | F203: 1665.975227 | G203: 108.8734198 | H203: 6717.537701 | I203: 8 | J203: 899.627 | K203: 875.2216464 | L203: 6728.884133 | M203: 3 | N203: 899.627 | O203: 875.2216464 | P203: 6728.884133 | Q203: 3 | R203: 1 | S203: 0 | T203: 689.8659497 | U203: 689.8659497
A204: 192 | B204: 1529.907708 | C204: 269.1693708 | D204: 14120.2821 | E204: 5 | F204: 1498.64298 | G204: 300.4340992 | H204: 13967.75627 | I204: 8 | J204: 1119.861567 | K204: 679.2155125 | L204: 14107.79396 | M204: 4 | N204: 1540.351528 | O204: 258.7255507 | P204: 13991.34888 | Q204: 3 | R204: 0 | S204: 0 | T204: 422.5342833 | U204: 118.4894071
A205: 193 | B205: 0 | C205: 0 | D205: 3406.278225 | E205: 8 | F205: 0 | G205: 0 | H205: 3406.278225 | I205: 8 | J205: 0 | K205: 0 | L205: 3406.278225 | M205: 8 | N205: 0 | O205: 0 | P205: 3406.278225 | Q205: 8 | R205: 1 | S205: 1 | T205: 0 | U205: 0
A206: 194 | B206: 1663.74827 | C206: 1473.734407 | D206: 10123.75617 | E206: 5 | F206: 2123.564473 | G206: 1013.918205 | H206: 10014.4004 | I206: 8 | J206: 203.0518999 | K206: 2934.430777 | L206: 10031.31548 | M206: 3 | N206: 2112.65758 | O206: 1024.825097 | P206: 10210.38511 | Q206: 2 | R206: =IF(Q206=M206,1,0) -> 0 | S206: =IF(M206=E206,1,0) -> 0 | T206: =(B206+D206)-(J206+L206) -> 1553.137055 | U206: =(B206+D206)-(N206+P206) -> -535.5382582
A207: 195 | B207: 1886.989896 | C207: 1591.330779 | D207: 7128.79483 | E207: 7 | F207: 1025.956709 | G207: 2452.363966 | H207: 7016.990732 | I207: 8 | J207: 592.3569507 | K207: 2885.963724 | L207: 7154.315274 | M207: 2 | N207: 797.7273052 | O207: 2680.59337 | P207: 7028.842963 | Q207: 3 | R207: 0 | S207: 0 | T207: 1269.112502 | U207: 1189.214458
... 4292 more rows

Sheet Summary Output
D1: Copyright © 2021 Society of Actuaries. All Rights Reserved.
A6: Health Care Cost Trends
A9: Summary Output
C11: Family Size | D11: Percent of Times Prior Year is Optimal | E11: Mean Value of Perfect Foresight Info | F11: Mean Value of Prior Year Info
C12: Families of 1 | D12: =SUMIF(Families!$B$3:$B$4991,"=1",'Detail Output'!$R$13:$R$5001)/COUNTIF(Families!$B$3:$B$4991,"=1") -> 0.3477633478 | E12: =SUMIF(Families!$B$3:$B$4991,"=1",'Detail Output'!$T$13:$T$5001)/COUNTIF(Families!$B$3:$B$4991,"=1") -> 380.112826 | F12: =SUMIF(Families!$B$3:$B$4991,"=1",'Detail Output'!$U$13:$U$5001)/COUNTIF(Families!$B$3:$B$4991,"=1") -> 84.52890203
C13: Families of 2 | D13: =SUMIF(Families!$B$3:$B$4991,"=2",'Detail Output'!$R$13:$R$5001)/COUNTIF(Families!$B$3:$B$4992,"=2") -> 0.2696629213 | E13: =SUMIF(Families!$B$3:$B$4991,"=2",'Detail Output'!$T$13:$T$5001)/COUNTIF(Families!$B$3:$B$4992,"=2") -> 581.5083892 | F13: =SUMIF(Families!$B$3:$B$4991,"=2",'Detail Output'!$U$13:$U$5001)/COUNTIF(Families!$B$3:$B$4992,"=2") -> 111.5632313
C14: Families of 3 | D14: =SUMIF(Families!$B$3:$B$4991,"=3",'Detail Output'!$R$13:$R$5001)/COUNTIF(Families!$B$3:$B$4993,"=3") -> 0.2723463687 | E14: =SUMIF(Families!$B$3:$B$4991,"=3",'Detail Output'!$T$13:$T$5001)/COUNTIF(Families!$B$3:$B$4993,"=3") -> 567.7260522 | F14: =SUMIF(Families!$B$3:$B$4991,"=3",'Detail Output'!$U$13:$U$5001)/COUNTIF(Families!$B$3:$B$4993,"=3") -> 98.76444518
C15: Families of 4 | D15: =SUMIF(Families!$B$3:$B$4991,"=4",'Detail Output'!$R$13:$R$5001)/COUNTIF(Families!$B$3:$B$4994,"=4") -> 0.2637195122 | E15: =SUMIF(Families!$B$3:$B$4991,"=4",'Detail Output'!$T$13:$T$5001)/COUNTIF(Families!$B$3:$B$4994,"=4") -> 557.7333599 | F15: =SUMIF(Families!$B$3:$B$4991,"=4",'Detail Output'!$U$13:$U$5001)/COUNTIF(Families!$B$3:$B$4994,"=4") -> 58.42849379
C16: Families of 5+ | D16: =SUMIF(Families!$B$3:$B$4991,">4",'Detail Output'!$R$13:$R$5001)/COUNTIF(Families!$B$3:$B$4995,">4") -> 0.2914893617 | E16: =SUMIF(Families!$B$3:$B$4991,">4",'Detail Output'!$T$13:$T$5001)/COUNTIF(Families!$B$3:$B$4995,">4") -> 563.5491267 | F16: =SUMIF(Families!$B$3:$B$4991,">4",'Detail Output'!$U$13:$U$5001)/COUNTIF(Families!$B$3:$B$4995,">4") -> 76.79228257
C17: OVERALL | D17: =AVERAGE('Detail Output'!R13:R5001) -> 0.3038685107 | E17: =AVERAGE('Detail Output'!$T$13:$T$5001) -> 490.7874428 | F17: =AVERAGE('Detail Output'!$U$13:$U$5001) -> 88.1984217
C19: Percent of Random Choice Optimal | D19: =AVERAGE('Detail Output'!S13:S5001) -> 0.1653638004
C22: Underwriting Loss due to Selection
C23: Prior Year | D23: ='Detail Output'!O5006 -> 0.01076057188
C24: Perfect Foresight | D24: ='Detail Output'!K5006 -> 0.06332866077

Sheet Batch Results (hidden)
A1: Plans | B1: Prior Yr | C1: Perfect | D1: Val(Prior) | E1: Val(Perf)
A2: 3 | B2: 0.00338783465 | C2: 0.04071362775 | D2: 23.40954382 | E2: 314.5024998 | H2: 2020-09-27T06:04:35 | I2: Start Time
A3: 2 | B3: 0.01545110047 | C3: 0.04046679092 | D3: 115.9845906 | E3: 311.5799767 | H3: 2020-09-27T06:46:06 | I3: End Time
A4: 3 | B4: 0.00436950355 | C4: 0.04901342853 | D4: 31.21373832 | E4: 380.115169
A5: 6 | B5: 0.01800957882 | C5: 0.06718400699 | D5: 142.1452418 | E5: 520.5370549 | H5: =(H3-H2)*24*60*60 -> 2491 | I5: Seconds of Runtime
A6: 4 | B6: 0.007635397633 | C6: 0.05745294247 | D6: 63.93532905 | E6: 446.4016367
A7: 4 | B7: 0.00413709461 | C7: 0.06674864637 | D7: 27.22623869 | E7: 515.5717216
A8: 4 | B8: 0.008225887698 | C8: 0.04953217807 | D8: 61.07704771 | E8: 384.5322563
A9: 4 | B9: 0.005189056873 | C9: 0.05538394489 | D9: 36.84767699 | E9: 429.0557863
A10: 5 | B10: 0.01648354083 | C10: 0.07422101576 | D10: 125.3028708 | E10: 573.5392693
A11: 5 | B11: 0.01044942637 | C11: 0.07180021539 | D11: 82.0009258 | E11: 557.3234521
A12: 5 | B12: 0.01556110254 | C12: 0.07556600999 | D12: 121.6220114 | E12: 586.0524181
A13: 5 | B13: 0.017936366 | C13: 0.07575636313 | D13: 136.0387362 | E13: 584.2751347
A14: 2 | B14: 0.0004668883807 | C14: 0.02637603403 | D14: 9.322670276 | E14: 204.546108
A15: 4 | B15: 0.003676320108 | C15: 0.06416963156 | D15: 22.11837839 | E15: 499.0054519
A16: 4 | B16: 0.01175336968 | C16: 0.04897455465 | D16: 95.57652404 | E16: 379.529929
A17: 5 | B17: 0.0172771759 | C17: 0.06529388813 | D17: 136.1436478 | E17: 504.9165122
A18: 4 | B18: 0.01063543935 | C18: 0.06306307192 | D18: 75.60919724 | E18: 488.4570523
A19: 4 | B19: 0.006585234906 | C19: 0.059831096 | D19: 47.87482666 | E19: 462.2520298
A20: 3 | B20: 0.0004555849962 | C20: 0.04474201503 | D20: 11.31135183 | E20: 345.769117
A21: 5 | B21: 0.01919614086 | C21: 0.07858236108 | D21: 147.4993904 | E21: 604.3387167
A22: 6 | B22: 0.01656774086 | C22: 0.07211860136 | D22: 124.584756 | E22: 556.611041
A23: 4 | B23: 0.01073205916 | C23: 0.04791567135 | D23: 88.08450373 | E23: 372.0379086
A24: 3 | B24: 0.009625141853 | C24: 0.04672644332 | D24: 72.11913309 | E24: 362.1927116
A25: 3 | B25: 0.01030751329 | C25: 0.04854547951 | D25: 76.72847283 | E25: 375.8728469
A26: 4 | B26: 0.0009417612811 | C26: 0.06497066322 | D26: 6.427219472 | E26: 505.4157417
A27: 3 | B27: 0.0008915220685 | C27: 0.05421732698 | D27: 2.461777989 | E27: 420.36749
A28: 5 | B28: 0.01127153695 | C28: 0.06648163586 | D28: 83.95836824 | E28: 515.8874496
A29: 6 | B29: 0.0137755403 | C29: 0.06383387852 | D29: 107.2630597 | E29: 494.3743282
A30: 7 | B30: 0.01899321947 | C30: 0.07963666761 | D30: 147.9600488 | E30: 615.6468289
A31: 4 | B31: 0.003856485229 | C31: 0.06807183815 | D31: 28.64361858 | E31: 527.6321408
A32: 5 | B32: 0.008054166442 | C32: 0.06799748904 | D32: 66.38509627 | E32: 522.9369414
A33: 6 | B33: 0.01897120249 | C33: 0.06819208139 | D33: 149.3620084 | E33: 527.7538215
A34: 5 | B34: 0.01846051631 | C34: 0.06806311236 | D34: 144.851467 | E34: 525.4751478
A35: 7 | B35: 0.01919607268 | C35: 0.07985159325 | D35: 149.6702173 | E35: 617.3569974
A36: 7 | B36: 0.0179479393 | C36: 0.07749008169 | D36: 139.6611686 | E36: 599.2375811
A37: 4 | B37: 0.01299628736 | C37: 0.05026319776 | D37: 105.1369811 | E37: 389.090386
A38: 4 | B38: 0.007698143992 | C38: 0.06127662407 | D38: 58.76124622 | E38: 472.3950233
A39: 2 | B39: -0.001012130632 | C39: 0.03201526054 | D39: -2.22984088 | E39: 246.7465213
A40: 6 | B40: 0.0130334079 | C40: 0.06847292624 | D40: 97.67479935 | E40: 530.59371
A41: 4 | B41: 0.005847158179 | C41: 0.06983222975 | D41: 39.05128599 | E41: 542.1838202
A42: 5 | B42: 0.01061727547 | C42: 0.05998598365 | D42: 86.8053678 | E42: 465.0304751
A43: 3 | B43: 0.002902998653 | C43: 0.0502147257 | D43: 15.84712757 | E43: 389.566402
A44: 5 | B44: 0.001909786712 | C44: 0.06346977253 | D44: 20.62165599 | E44: 491.5537708
A45: 2 | B45: 0.0002366639929 | C45: 0.02612787002 | D45: 7.511717811 | E45: 202.6441736
A46: 4 | B46: 0.00895504069 | C46: 0.07231924297 | D46: 66.25917913 | E46: 562.6648397
A47: 3 | B47: 0.004262804991 | C47: 0.04007192847 | D47: 30.02577145 | E47: 308.8778532
A48: 4 | B48: 0.01719313319 | C48: 0.06342142631 | D48: 133.1551637 | E48: 489.6590445
A49: 5 | B49: 0.01439004465 | C49: 0.06335781182 | D49: 112.2831973 | E49: 490.5782794
A50: 3 | B50: 0.004091132054 | C50: 0.0487226835 | D50: 29.22402492 | E50: 378.1254556
A51: 5 | B51: 0.00724360817 | C51: 0.0721447911 | D51: 53.905909 | E51: 557.6729438
A52: 5 | B52: 0.01436243805 | C52: 0.06130089413 | D52: 112.4241063 | E52: 474.770288
A53: 3 | B53: 0.001380955226 | C53: 0.05473283631 | D53: 6.343912134 | E53: 424.2496241
A54: 3 | B54: 0.005575918247 | C54: 0.05071942871 | D54: 49.02285102 | E54: 395.1908191
A55: 3 | B55: 0.008679647947 | C55: 0.05396249474 | D55: 73.0168258 | E55: 419.1847939
A56: 4 | B56: 0.01486019295 | C56: 0.05393810619 | D56: 113.6283478 | E56: 417.1636754
A57: 6 | B57: 0.008065094817 | C57: 0.07092862087 | D57: 64.62710112 | E57: 548.5697494
A58: 4 | B58: 0.01163573387 | C58: 0.05789365684 | D58: 94.83314175 | E58: 446.3017525
A59: 2 | B59: 0.003593452155 | C59: 0.03353073162 | D59: 25.79808069 | E59: 259.8074808
A60: 7 | B60: 0.01479665797 | C60: 0.07665254483 | D60: 113.1916091 | E60: 593.3562229
A61: 4 | B61: 0.009881905485 | C61: 0.05694387842 | D61: 79.81622831 | E61: 443.4720125
A62: 2 | B62: 0.005659002979 | C62: 0.0344340856 | D62: 41.97321503 | E62: 266.0088595
A63: 3 | B63: 0.005099803679 | C63: 0.04836386421 | D63: 37.76533007 | E63: 375.6624409
A64: 5 | B64: 0.01124663793 | C64: 0.07539544913 | D64: 83.05271243 | E64: 584.4708979
A65: 4 | B65: 0.001659691614 | C65: 0.05786270058 | D65: 17.50938658 | E65: 447.8459494
A66: 6 | B66: 0.01069120254 | C66: 0.07398693826 | D66: 85.84221262 | E66: 572.3482409
A67: 3 | B67: 0.005704930992 | C67: 0.05238137065 | D67: 42.1933807 | E67: 406.599114
A68: 3 | B68: 0.004082279212 | C68: 0.04080050885 | D68: 32.12909805 | E68: 316.8155606
A69: 2 | B69: 0.0004325031657 | C69: 0.04525601486 | D69: 6.313667097 | E69: 352.0896453
A70: 4 | B70: 0.01115115775 | C70: 0.06553802309 | D70: 79.19832523 | E70: 507.3336794
A71: 1 | B71: 0 | C71: 0 | D71: 0 | E71: 0
A72: 7 | B72: 0.0125806025 | C72: 0.07430141198 | D72: 96.17137499 | E72: 576.3359887
A73: 3 | B73: 0.001926002983 | C73: 0.05105630856 | D73: 26.5090847 | E73: 396.4058302
A74: 3 | B74: 0.009861081093 | C74: 0.04423951232 | D74: 81.18987001 | E74: 345.628966
A75: 5 | B75: 0.006223240757 | C75: 0.06862850253 | D75: 49.15895265 | E75: 529.4047504
A76: 2 | B76: -0.0003350032189 | C76: 0.02172423913 | D76: 3.350834874 | E76: 170.9211503
A77: 3 | B77: 0.01185360316 | C77: 0.04636423552 | D77: 95.03780261 | E77: 357.8575784
A78: 4 | B78: 0.01785454783 | C78: 0.06411290022 | D78: 138.5405408 | E78: 495.0444216
A79: 5 | B79: 0.01745344656 | C79: 0.0763086693 | D79: 132.5696034 | E79: 589.1440363
A80: 4 | B80: 0.01833765267 | C80: 0.0581932264 | D80: 138.0142545 | E80: 448.4716364
A81: 4 | B81: -0.0001674633596 | C81: 0.0462972955 | D81: 12.61158256 | E81: 359.6565254
A82: 5 | B82: 0.0006578261481 | C82: 0.06583457302 | D82: 16.12609254 | E82: 508.9745403
A83: 4 | B83: 0.004868434571 | C83: 0.05088581947 | D83: 39.89969789 | E83: 394.2171003
A84: 3 | B84: 0.002371954287 | C84: 0.0396565204 | D84: 15.62047025 | E84: 306.6890003
A85: 3 | B85: 0.006289946455 | C85: 0.04967219915 | D85: 49.6028446 | E85: 385.1154783
A86: 4 | B86: 0.009547841905 | C86: 0.05859884929 | D86: 73.66721185 | E86: 454.3569834
A87: 4 | B87: 0.006022042073 | C87: 0.06665673425 | D87: 40.05240252 | E87: 516.9394761
A88: 5 | B88: 0.01044497857 | C88: 0.06882209031 | D88: 83.34793212 | E88: 532.6253057
A89: 5 | B89: 0.01611553786 | C89: 0.06477368279 | D89: 128.4984738 | E89: 503.8731287
A90: 5 | B90: 0.01422270104 | C90: 0.06705416503 | D90: 105.8686167 | E90: 518.4624846
A91: 3 | B91: 0.0178782638 | C91: 0.05870681915 | D91: 139.3862414 | E91: 452.6436834
A92: 6 | B92: 0.01526999354 | C92: 0.06234982439 | D92: 116.9266221 | E92: 482.9464774
A93: 4 | B93: 0.005654487152 | C93: 0.06224837567 | D93: 38.60103114 | E93: 480.1924484
A94: 6 | B94: 0.0173235392 | C94: 0.07623154036 | D94: 134.9899034 | E94: 589.9177639
A95: 3 | B95: -0.001174758343 | C95: 0.05573237339 | D95: -4.835564115 | E95: 428.2386208
A96: 2 | B96: 0.0001244135423 | C96: 0.02005338404 | D96: 14.47361964 | E96: 159.0560905
A97: 5 | B97: 0.01121768133 | C97: 0.06102771476 | D97: 82.1499833 | E97: 473.3971348
A98: 5 | B98: 0.0100364586 | C98: 0.06611185346 | D98: 71.41801919 | E98: 512.6283954
A99: 6 | B99: 0.01854148585 | C99: 0.07960025077 | D99: 143.541513 | E99: 613.6948881
A100: 6 | B100: 0.00768963268 | C100: 0.07040625302 | D100: 61.03221238 | E100: 542.9108124
A101: 4 | B101: 0.005061021028 | C101: 0.05524951548 | D101: 35.75289319 | E101: 427.9610025
A102: 5 | B102: 0.007685481211 | C102: 0.05890598285 | D102: 63.86523152 | E102: 457.3991738
A103: 4 | B103: 0.01186301412 | C103: 0.06629013979 | D103: 84.54799291 | E103: 512.7006306
A104: 3 | B104: 0.004579276819 | C104: 0.04914273259 | D104: 33.24871086 | E104: 381.5460528
A105: 4 | B105: 0.007881196427 | C105: 0.07117795934 | D105: 58.07980846 | E105: 554.485469
A106: 7 | B106: 0.01116329293 | C106: 0.07467884741 | D106: 89.81788208 | E106: 577.7546662
A107: 3 | B107: 0.008454073516 | C107: 0.05573800373 | D107: 63.38783603 | E107: 430.6537289
A108: 4 | B108: 0.009060813552 | C108: 0.05808815764 | D108: 70.01183264 | E108: 450.7016042
A109: 4 | B109: 0.01600664542 | C109: 0.0684069548 | D109: 118.6095308 | E109: 527.4481313
A110: 5 | B110: 0.01945636088 | C110: 0.06245744119 | D110: 147.3180449 | E110: 481.6886068
A111: 3 | B111: -0.0002545304478 | C111: 0.04730035343 | D111: -8.843464893 | E111: 367.9689516
A112: 6 | B112: 0.01992525977 | C112: 0.06919222392 | D112: 156.7118601 | E112: 535.1036732
A113: 3 | B113: 0.008824651604 | C113: 0.0444913658 | D113: 65.31921232 | E113: 345.34927
A114: 4 | B114: 0.002134600581 | C114: 0.05160849868 | D114: 24.4815039 | E114: 401.495615
A115: 5 | B115: 0.0113553072 | C115: 0.06196574547 | D115: 91.12985015 | E115: 481.8853029
A116: 5 | B116: 0.01746115567 | C116: 0.07525416029 | D116: 132.4797671 | E116: 580.7161656
A117: 6 | B117: 0.01749879928 | C117: 0.06889570553 | D117: 138.423865 | E117: 534.6016537
A118: 4 | B118: 0.002105386434 | C118: 0.0568500882 | D118: 10.2229725 | E118: 441.3949483
A119: 2 | B119: -0.00126604873 | C119: 0.03175294769 | D119: -4.15345563 | E119: 244.8229065
A120: 6 | B120: 0.01169271075 | C120: 0.07700934529 | D120: 86.13359404 | E120: 596.5350233
A121: 3 | B121: 0.009676139064 | C121: 0.04789020913 | D121: 72.05234509 | E121: 371.1967192
A122: 2 | B122: 0.004037669696 | C122: 0.03218957462 | D122: 29.57872772 | E122: 249.1743424
A123: 5 | B123: 0.00482272903 | C123: 0.06739103421 | D123: 39.89275507 | E123: 523.1218607
A124: 3 | B124: 0.00705399963 | C124: 0.05937828704 | D124: 57.13998584 | E124: 457.0851286
A125: 2 | B125: 0.001162538501 | C125: 0.02923382851 | D125: 7.518974747 | E125: 227.1145894
A126: 5 | B126: 0.01799102578 | C126: 0.06926305745 | D126: 133.6863705 | E126: 533.6492107
A127: 5 | B127: 0.001660421396 | C127: 0.06320508555 | D127: 18.55266958 | E127: 489.4847844
A128: 4 | B128: 0.006537342905 | C128: 0.06726445958 | D128: 52.73585824 | E128: 520.6584008
A129: 4 | B129: 0.008649299181 | C129: 0.0622783514 | D129: 65.58300304 | E129: 479.2167801
A130: 5 | B130: 0.01850888198 | C130: 0.07742515703 | D130: 140.97502 | E130: 597.5494529
A131: 3 | B131: -0.001645074562 | C131: 0.0383292602 | D131: -4.713964558 | E131: 298.4674209
A132: 5 | B132: 0.0110210917 | C132: 0.07398692723 | D132: 89.0234544 | E132: 570.21239
A133: 4 | B133: 0.01629884241 | C133: 0.06179010694 | D133: 130.4370117 | E133: 480.6872107
A134: 5 | B134: 0.019831794 | C134: 0.06950117609 | D134: 155.1874483 | E134: 535.811129
A135: 4 | B135: -0.000571044515 | C135: 0.06082955035 | D135: 6.403351315 | E135: 471.0940759
A136: 3 | B136: 0.0171600488 | C136: 0.05362433482 | D136: 129.4523526 | E136: 412.2460536
A137: 7 | B137: 0.01830699774 | C137: 0.0778701423 | D137: 142.8115678 | E137: 602.3879803
A138: 4 | B138: 0.005283648396 | C138: 0.05548325991 | D138: 37.4635507 | E138: 429.67166
A139: 1 | B139: 0 | C139: 0 | D139: 0 | E139: 0
A140: 3 | B140: 0.002062942924 | C140: 0.06061164562 | D140: 21.36307779 | E140: 464.3607226
A141: 4 | B141: 0.01501425593 | C141: 0.05914108833 | D141: 116.9788791 | E141: 457.7205108
A142: 3 | B142: 0.01777609824 | C142: 0.05426246908 | D142: 134.2057429 | E142: 416.9994439
A143: 4 | B143: 0.01769669781 | C143: 0.06265475843 | D143: 138.5462378 | E143: 482.9752969
A144: 3 | B144: 0.01105451838 | C144: 0.04553789688 | D144: 88.77602661 | E144: 351.5958024
A145: 3 | B145: 0.004921327232 | C145: 0.05355769106 | D145: 31.84553346 | E145: 413.6998162
A146: 5 | B146: 0.005712181287 | C146: 0.06404158593 | D146: 42.17462253 | E146: 495.1856599
A147: 4 | B147: 0.001295472915 | C147: 0.05487469985 | D147: 5.713575845 | E147: 425.4397167
A148: 6 | B148: 0.01761937615 | C148: 0.07862286313 | D148: 136.8212527 | E148: 606.9746278
A149: 5 | B149: 0.01100404069 | C149: 0.06713315395 | D149: 78.71114682 | E149: 519.921523
A150: 5 | B150: 0.02077247751 | C150: 0.07481375245 | D150: 154.9276193 | E150: 574.823912
A151: 5 | B151: 0.01351366985 | C151: 0.05742872853 | D151: 103.2341557 | E151: 445.4283513
A152: 4 | B152: 0.002379365876 | C152: 0.05878894472 | D152: 13.53332129 | E152: 455.1247385
A153: 4 | B153: 0.0037550592 | C153: 0.06225714253 | D153: 25.76787144 | E153: 481.3361977
A154: 4 | B154: 0.001291096544 | C154: 0.06534234499 | D154: 8.961553149 | E154: 507.9500753
A155: 3 | B155: 0.007529814161 | C155: 0.04566265045 | D155: 55.51330934 | E155: 354.6576834
A156: 5 | B156: 0.0140907341 | C156: 0.06101661739 | D156: 110.1955367 | E156: 472.5417184
A157: 5 | B157: 0.01455787648 | C157: 0.06733207538 | D157: 108.662615 | E157: 520.7052583
A158: 2 | B158: 0.00207648243 | C158: 0.03196851056 | D158: 14.19360597 | E158: 248.2030061
A159: 2 | B159: 0.0005792928328 | C159: 0.02871620658 | D159: 11.95438044 | E159: 220.705913
A160: 3 | B160: 0.0147216551 | C160: 0.05542359434 | D160: 115.1165653 | E160: 428.3740073
A161: 4 | B161: 0.01564558153 | C161: 0.06567551243 | D161: 116.5647731 | E161: 507.6106182
A162: 5 | B162: 0.01054170716 | C162: 0.06841005014 | D162: 74.65341331 | E162: 529.5062889
A163: 6 | B163: 0.01311923791 | C163: 0.07477182905 | D163: 100.6174571 | E163: 580.012976
A164: 5 | B164: 0.01731834177 | C164: 0.07616574929 | D164: 131.6796151 | E164: 588.2540479
A165: 3 | B165: -0.0005850137067 | C165: 0.04217015613 | D165: 8.679914521 | E165: 327.5671342
A166: 2 | B166: -0.0009403463087 | C166: 0.03315673012 | D166: -7.215741466 | E166: 253.396055
A167: 5 | B167: 0.0131825371 | C167: 0.06588519505 | D167: 98.41800582 | E167: 510.4606492
A168: 4 | B168: 0.007021752798 | C168: 0.06659369243 | D168: 51.87919675 | E168: 515.2619238
A169: 4 | B169: 0.0009608359224 | C169: 0.0624555429 | D169: 17.99376195 | E169: 482.6844865
A170: 2 | B170: 0.0001959902437 | C170: 0.02012638701 | D170: 14.97403469 | E170: 159.5565056
A171: 6 | B171: 0.01489707015 | C171: 0.06501078742 | D171: 115.7827263 | E171: 502.8939948
A172: 2 | B172: -0.0002490002734 | C172: 0.04761222749 | D172: -0.7873074304 | E172: 363.6312669
A173: 5 | B173: 0.01231601557 | C173: 0.07221964213 | D173: 94.32566827 | E173: 560.4261306
A174: 7 | B174: 0.01395904831 | C174: 0.07576387954 | D174: 107.0865126 | E174: 587.2511263
A175: 2 | B175: 0.00416906776 | C175: 0.03346515963 | D175: 30.03212501 | E175: 258.5645631
A176: 6 | B176: 0.00456681222 | C176: 0.06956300664 | D176: 33.48420609 | E176: 539.2347384
A177: 4 | B177: 0.005533536883 | C177: 0.05158137977 | D177: 44.73049103 | E177: 399.0478935
A178: 4 | B178: 0.002602164785 | C178: 0.05885805581 | D178: 24.78629064 | E178: 455.1228535
A179: 4 | B179: 0.01910607593 | C179: 0.05030919373 | D179: 145.3377768 | E179: 390.1152217
A180: 6 | B180: 0.009322164841 | C180: 0.07279551653 | D180: 77.0829873 | E180: 562.5780057
A181: 6 | B181: 0.01883178796 | C181: 0.06649867628 | D181: 148.417545 | E181: 514.8182561
A182: 3 | B182: 0.008778017083 | C182: 0.04470779947 | D182: 65.95353821 | E182: 346.5216409
A183: 4 | B183: 0.005047237793 | C183: 0.05821174266 | D183: 35.90794382 | E183: 450.285147
A184: 3 | B184: 0.003159138696 | C184: 0.0578930854 | D184: 17.93826239 | E184: 448.860803
A185: 1 | B185: 0 | C185: 0 | D185: 0 | E185: 0
A186: 1 | B186: 0 | C186: 0 | D186: 0 | E186: 0
A187: 2 | B187: -0.0003911427636 | C187: 0.0277166118 | D187: 4.358948504 | E187: 213.094294
A188: 5 | B188: 0.00790873287 | C188: 0.065724703 | D188: 61.73524954 | E188: 506.6571357
A189: 3 | B189: 0.005703798042 | C189: 0.05238018511 | D189: 42.2281723 | E189: 406.6339056
A190: 2 | B190: 0.0007918683603 | C190: 0.03387890128 | D190: 11.71461737 | E190: 260.6909795
A191: 6 | B191: 0.01905426135 | C191: 0.06673155828 | D191: 150.4452907 | E191: 516.8460017
A192: 4 | B192: 0.005457548678 | C192: 0.05891689815 | D192: 41.41116004 | E192: 455.0449371
A193: 3 | B193: 0.003018547062 | C193: 0.04032716406 | D193: 20.52828096 | E193: 311.596811
A194: 5 | B194: 0.01816079575 | C194: 0.07705693554 | D194: 138.2532998 | E194: 594.8277326
A195: 6 | B195: 0.01233319231 | C195: 0.06498307074 | D195: 100.1155485 | E195: 502.7045696
A196: 5 | B196: 0.01692836715 | C196: 0.06434003878 | D196: 131.0818472 | E196: 497.0525536
A197: 3 | B197: -0.0001897749957 | C197: 0.05286966842 | D197: 3.947499372 | E197: 406.6582212
A198: 3 | B198: 0.003121209267 | C198: 0.04043364493 | D198: 21.42915153 | E198: 312.4976815
A199: 3 | B199: 0.003116372602 | C199: 0.04042862836 | D199: 21.33182232 | E199: 312.4003523
A200: 4 | B200: 0.004148730529 | C200: 0.06065984645 | D200: 26.9587217 | E200: 468.5674224
... 801 more rows

Sheet dev (hidden)
A1: 1) Gives same result if I manually reset the project; seed not resetting just in program execution
A2: 2) Need to build in elasticities
